Body Name,Portfolio,Organisation Code,Org Code Description,Object Code,Object Code Description,GL Date,Invoice No.,Value,Supplier,Category,Category Description,Supplier No
SHEFFIELD CITY COUNCIL,PLACE,11513300000,WORKSHOPS,8010000,EQUIPMENT PURCHASE AND REPAIR,02/01/2018,527345,322.50,ACE JANITORIAL SUPPLIES LTD,CT021019000,Cleaning Materials & Equipment,20273400
SHEFFIELD CITY COUNCIL,PLACE,11850500000,STOCK CONTROL,8070000,STOCKS AND STORES,02/01/2018,931883368,253.00,ARCO LTD,CT024966190,Safety Equipment & Clothing,20302100
SHEFFIELD CITY COUNCIL,PEOPLE,13003439190,MORLAND DRIVE,8010000,EQUIPMENT PURCHASE AND REPAIR,02/01/2018,7023777RI,291.66,ARGOS BUSINESS SOLUTIONS,CT029915970,Catalogue Showrooms,20302900
SHEFFIELD CITY COUNCIL,PLACE,11850500000,STOCK CONTROL,8070000,STOCKS AND STORES,02/01/2018,P04913956,"1,168.79",ARNOLD LAVER & CO LTD,CT075078210,"Timber Merchants, Importers & Agents",20304500
SHEFFIELD CITY COUNCIL,PLACE,12045321350,CEMETERIES,8010000,EQUIPMENT PURCHASE AND REPAIR,02/01/2018,1/540158,809.40,BUILDERS CENTRE (SHEFFIELD) LTD,CT070511210,Builders' Merchants,20358500
SHEFFIELD CITY COUNCIL,PLACE,12045321350,CEMETERIES,8010000,EQUIPMENT PURCHASE AND REPAIR,02/01/2018,1/540158,"2,226.00",BUILDERS CENTRE (SHEFFIELD) LTD,CT070511210,Builders' Merchants,20358500
SHEFFIELD CITY COUNCIL,PEOPLE,14009242075,VOIDS VACANCY COSTS,9190005,EX POOL CLIENTS,02/01/2018,ACN2017-477,"2,461.38",ABBEYCARE & NURSING,CT230243419,Home Care Services,51841100
SHEFFIELD CITY COUNCIL,PEOPLE,13007933018,100 APPRENTICES,9120000,OTHER AGENCIES,02/01/2018,12,340.00,THE DL COMPANY,CT070653715,Office Refurbishment Services,20441201
SHEFFIELD CITY COUNCIL,PLACE,12046025095,PARKS OPERATIONS WEST,8550000,OTHER SERVICES,02/01/2018,EA30658,671.50,EARTH ANCHORS LTD,CT109969000,Seating Manufacturers,20456300
SHEFFIELD CITY COUNCIL,PEOPLE,13002339240,WEST SERVICES AREA CSS,8010000,EQUIPMENT PURCHASE AND REPAIR,02/01/2018,32635,295.00,GOODMAN SPARKS LTD,CT023647268,Laundry Equipment Mnfrs & Suppliers,20518900
SHEFFIELD CITY COUNCIL,PLACE,12000000000,CORONIAL SERVICES,8440000,FEE EXPENSES,02/01/2018,I-03443,"3,460.50",LANGUAGELINE SOLUTIONS,CT160480090,Translators & Interpreters,20634800
SHEFFIELD CITY COUNCIL,PLACE,12000000000,CORONIAL SERVICES,8440000,FEE EXPENSES,02/01/2018,I-03558,"3,460.50",LANGUAGELINE SOLUTIONS,CT160480090,Translators & Interpreters,20634800
SHEFFIELD CITY COUNCIL,PLACE,11850000000,RESPONSIVE REPAIRS,8530001,SUBCONTRACTOR GENERAL,02/01/2018,DB/FW/C10301,"2,917.95",MALDEN ROOFING CONTRACTORS LTD,CT079965470,Roofing Services,20668300
SHEFFIELD CITY COUNCIL,PLACE,11850000000,RESPONSIVE REPAIRS,8530001,SUBCONTRACTOR GENERAL,02/01/2018,DB/JKB/C10205/14,"9,205.14",MALDEN ROOFING CONTRACTORS LTD,CT079965470,Roofing Services,20668300
SHEFFIELD CITY COUNCIL,PLACE,12046025051,PLAYGROUND MAINTENANCE & INSPE,8010000,EQUIPMENT PURCHASE AND REPAIR,02/01/2018,29832,"2,058.12",PLAYDALE PLAYGROUNDS LTD,CT101859720,Playground Equipment,20757900
SHEFFIELD CITY COUNCIL,RESOURCES,11909800000,CONSTRUCTION CATEGORY TEAM,8440000,FEE EXPENSES,02/01/2018,INV0504449,301.95,POSTURITE LTD,CT079932600,Ergonomics,20761500
SHEFFIELD CITY COUNCIL,PLACE,11850200000,VOIDS REPAIRS,8530001,SUBCONTRACTOR GENERAL,02/01/2018,12234,"6,543.00",PROTEN ENVIRONMENTAL LTD T/A PROTEN SERV,CT073723950,Damp & Dry Rot Control,20770700
SHEFFIELD CITY COUNCIL,PLACE,11513300000,WORKSHOPS,7040000,OTHER VEHICLE RUNNING COSTS,02/01/2018,32763,382.00,SHEAF MATERIALS HANDLING,CT189952790,Newsagents,20835200
SHEFFIELD CITY COUNCIL,PLACE,11513300000,WORKSHOPS,7040000,OTHER VEHICLE RUNNING COSTS,02/01/2018,33079,660.00,SHEAF MATERIALS HANDLING,CT189952790,Newsagents,20835200
SHEFFIELD CITY COUNCIL,PLACE,12045925068,"COUNTRYSIDE, VEHICLES & VSS",8060000,MATERIALS AND SUPPLIES GENERAL,02/01/2018,SIV-SI104703,533.33,SHEFFIELD INTERNATIONAL VENUES LTD,CT209972955,Sports Grounds & Stadiums,20838908
SHEFFIELD CITY COUNCIL,PLACE,11513300000,WORKSHOPS,7010002,EXTERNAL WORK,02/01/2018,45957,420.00,W H HULLEY,CT071846860,Ladder Mnfrs,20934700
SHEFFIELD CITY COUNCIL,PLACE,11853000000,CSSR CORE CONTRACT,8060000,MATERIALS AND SUPPLIES GENERAL,02/01/2018,48326218,510.32,WOLSELEY UK LTD,CT024459860,Plumbers' Merchants,20958400
SHEFFIELD CITY COUNCIL,PLACE,11850100000,HEATING MECHANICAL & ELECTRICA,8060000,MATERIALS AND SUPPLIES GENERAL,02/01/2018,48288724,672.29,WOLSELEY UK LTD,CT024459860,Plumbers' Merchants,20958400
SHEFFIELD CITY COUNCIL,PLACE,11850100000,HEATING MECHANICAL & ELECTRICA,8060000,MATERIALS AND SUPPLIES GENERAL,02/01/2018,48288723,"3,018.90",WOLSELEY UK LTD,CT024459860,Plumbers' Merchants,20958400
SHEFFIELD CITY COUNCIL,RESOURCES,11600116013,MFDS,8370002,MFD CHARGES,02/01/2018,97182741,"4,126.31",XEROX FINANCE LTD,CT130747650,Leasing Services,20963400
SHEFFIELD CITY COUNCIL,PEOPLE,14046949661,LUNCH CLUB GRANT,8180000,GRANTS,02/01/2018,MPA20180201288-0028,"1,061.00",ST TIMOTHY'S LUNCH CLUB,CT230417020,Charities & Voluntary Organisations,29516300
SHEFFIELD CITY COUNCIL,PEOPLE,14046949661,LUNCH CLUB GRANT,8180000,GRANTS,02/01/2018,MPA20180201288-0019,402.00,THE KINGS CENTRE LUNCH CLUB,CT230417020,Charities & Voluntary Organisations,29516400
SHEFFIELD CITY COUNCIL,PEOPLE,14046949661,LUNCH CLUB GRANT,8180000,GRANTS,02/01/2018,MPA20180201288-0015,830.00,THE LIMES LUNCHEON CLUB,CT230417020,Charities & Voluntary Organisations,29516500
SHEFFIELD CITY COUNCIL,PEOPLE,14046949661,LUNCH CLUB GRANT,8180000,GRANTS,02/01/2018,MPA20180201288-0026,502.00,WADSLEY CHURCH LUNCH CLUB,CT230417020,Charities & Voluntary Organisations,29516700
SHEFFIELD CITY COUNCIL,PEOPLE,14046949661,LUNCH CLUB GRANT,8180000,GRANTS,02/01/2018,MPA20180201288-0020,437.93,LOWEDGES THURSDAY LUNCH CLUBLUNCHCL,CT230417020,Charities & Voluntary Organisations,29518900
SHEFFIELD CITY COUNCIL,PEOPLE,14046949661,LUNCH CLUB GRANT,8180000,GRANTS,02/01/2018,MPA20180201288-0022,727.00,SHEFFIELD CHURCH OF THE NAZARENE,CT230417020,Charities & Voluntary Organisations,29519000
SHEFFIELD CITY COUNCIL,PEOPLE,14046949661,LUNCH CLUB GRANT,8180000,GRANTS,02/01/2018,MPA20180201288-0023,649.00,PITSMOOR LUNCH CLUB,CT230417020,Charities & Voluntary Organisations,29519400
SHEFFIELD CITY COUNCIL,PEOPLE,14046949661,LUNCH CLUB GRANT,8180000,GRANTS,02/01/2018,MPA20180201288-0012,570.00,ADLINGTON LUNCHEON CLUB,CT230417020,Charities & Voluntary Organisations,29520100
SHEFFIELD CITY COUNCIL,PEOPLE,14046949661,LUNCH CLUB GRANT,8180000,GRANTS,02/01/2018,MPA20180201288-0027,"1,215.00",SHIREGREEN UNITED REFORMED CHURCH,CT219958820,Places Of Worship,29520300
SHEFFIELD CITY COUNCIL,PEOPLE,14046949661,LUNCH CLUB GRANT,8180000,GRANTS,02/01/2018,MPA20180201288-0013,987.00,DARNALL LUNCH CLUB,CT230417020,Charities & Voluntary Organisations,29521600
SHEFFIELD CITY COUNCIL,PEOPLE,14046949661,LUNCH CLUB GRANT,8180000,GRANTS,02/01/2018,MPA20180201288-0025,259.00,DORE METHODIST LUNCH CLUB,CT230417020,Charities & Voluntary Organisations,29521900
SHEFFIELD CITY COUNCIL,PEOPLE,14046949661,LUNCH CLUB GRANT,8180000,GRANTS,02/01/2018,MPA20180201288-0014,271.00,DORE OPEN DOOR LUNCH CLUB,CT230417020,Charities & Voluntary Organisations,29522000
SHEFFIELD CITY COUNCIL,PEOPLE,14046949661,LUNCH CLUB GRANT,8180000,GRANTS,02/01/2018,MPA20180201288-0010,751.00,ST WILLIAMS LUNCH CLUB,CT230417020,Charities & Voluntary Organisations,29522600
SHEFFIELD CITY COUNCIL,PLACE,11519315191,FA S & S,8060000,MATERIALS AND SUPPLIES GENERAL,02/01/2018,259835319,319.80,YORKSHIRE PURCHASING ORGANISATION,CT024662710,Purchasing Services,29599700
SHEFFIELD CITY COUNCIL,PEOPLE,14046949661,LUNCH CLUB GRANT,8180000,GRANTS,02/01/2018,MPA20180201288-0031,816.00,WILLIAM TEMPLE LUNCH CLUB,CT230417020,Charities & Voluntary Organisations,29980600
SHEFFIELD CITY COUNCIL,PLACE,14068500000,EXECUTIVE,8270000,SUBSCRIPTIONS,02/01/2018,54418,"7,000.00",NORTHERN HOUSING CONSORTIUM LTD,CT050144166,"Housing Associations, Societies, Trusts",30023300
SHEFFIELD CITY COUNCIL,PEOPLE,14046949661,LUNCH CLUB GRANT,8180000,GRANTS,02/01/2018,MPA20180201288-0030,902.00,ST MARYS HANDSWORTH LUNCH CLUB,CT230417020,Charities & Voluntary Organisations,30078000
SHEFFIELD CITY COUNCIL,PEOPLE,14032249785,COMMUNITY WELLBEING PROG PKW,9040000,VOLUNTARY BODIES,02/01/2018,11314,"4,083.33",HEELEY CITY FARM,CT109931410,Energy Conservation Consultants & Equipm,30127701
SHEFFIELD CITY COUNCIL,PEOPLE,14046949661,LUNCH CLUB GRANT,8180000,GRANTS,02/01/2018,MPA20180201288-0033,401.00,ST MARKS LUNCH & FRIENDSHIP CLUB,CT219958820,Places Of Worship,30134600
SHEFFIELD CITY COUNCIL,PEOPLE,13002239084,NORTH SA - CIN S17,9270004,CARELEAVERS INDEPENDENT LIVING,02/01/2018,24707,273.33,BEDS FOR EVERYONE (SHEFFIELD) LTD,CT029958600,Pine Furniture,30210100
SHEFFIELD CITY COUNCIL,PLACE,12045121015,WALKING FOR PURPOSE,5750000,TRAINING EXPENDITURE,02/01/2018,811-18,358.00,TINSLEY FORUM,CT230417020,Charities & Voluntary Organisations,30328300
SHEFFIELD CITY COUNCIL,PLACE,12045121015,WALKING FOR PURPOSE,6280000,HIRE OF PREMISES,02/01/2018,FDP17-021,332.50,FAMILY DEVELOPMENT PROJECT,CT240517580,Childcare Services,31550500
SHEFFIELD CITY COUNCIL,RESOURCES,11516590141,IT WORKSTREAMS,1194000,OTHER FEES,02/01/2018,26296,"1,800.00",EXCITECH LTD,CT170220703,Computer Systems & Software (development,31558800
SHEFFIELD CITY COUNCIL,RESOURCES,11516590141,IT WORKSTREAMS,1194000,OTHER FEES,02/01/2018,26296,"1,800.00",EXCITECH LTD,CT170220703,Computer Systems & Software (development,31558800
SHEFFIELD CITY COUNCIL,RESOURCES,11516590141,IT WORKSTREAMS,1194000,OTHER FEES,02/01/2018,26296,"5,075.20",EXCITECH LTD,CT170220703,Computer Systems & Software (development,31558800
SHEFFIELD CITY COUNCIL,PLACE,11513300000,WORKSHOPS,7040000,OTHER VEHICLE RUNNING COSTS,02/01/2018,23580,364.75,AMBASSADOR REPAIR CENTRE LTD,CT261913330,Car Body Repairs,31597600
SHEFFIELD CITY COUNCIL,PLACE,11513300000,WORKSHOPS,7040000,OTHER VEHICLE RUNNING COSTS,02/01/2018,23600,559.00,AMBASSADOR REPAIR CENTRE LTD,CT261913330,Car Body Repairs,31597600
SHEFFIELD CITY COUNCIL,PLACE,11513300000,WORKSHOPS,7040000,OTHER VEHICLE RUNNING COSTS,02/01/2018,23581,858.18,AMBASSADOR REPAIR CENTRE LTD,CT261913330,Car Body Repairs,31597600
SHEFFIELD CITY COUNCIL,PEOPLE,14010800000,DISABLED FACILITIES TEAM,5750000,TRAINING EXPENDITURE,02/01/2018,38378,350.00,FERRET INFORMATION SYSTEMS LTD,CT170220703,Computer Systems & Software (development,31691000
SHEFFIELD CITY COUNCIL,PLACE,12046025002,GRAVES PARK(CITY),8060000,MATERIALS AND SUPPLIES GENERAL,02/01/2018,2163,260.00,PAUL DAY COUNTRYSIDE SERVICES,CT102180228,Tree Work & Forestry Services,31761800
SHEFFIELD CITY COUNCIL,PEOPLE,14046949661,LUNCH CLUB GRANT,8180000,GRANTS,02/01/2018,MPA20180201288-0008,309.00,TOTLEY RISE LUNCHEON CLUB,CT230417020,Charities & Voluntary Organisations,32190900
SHEFFIELD CITY COUNCIL,PEOPLE,14046949661,LUNCH CLUB GRANT,8180000,GRANTS,02/01/2018,MPA20180201288-0002,511.00,CHRIST CHURCH PITSMOOR LUNCH CLUB,CT230417020,Charities & Voluntary Organisations,32191000
SHEFFIELD CITY COUNCIL,PEOPLE,14046949661,LUNCH CLUB GRANT,8180000,GRANTS,02/01/2018,MPA20180201288-0003,860.00,CROSSPOOL LUNCHEON CLUB,CT230417020,Charities & Voluntary Organisations,32191100
SHEFFIELD CITY COUNCIL,PEOPLE,14046949661,LUNCH CLUB GRANT,8180000,GRANTS,02/01/2018,MPA20180201288-0005,560.00,HALLAM METHODIST LUNCH CLUB,CT230417020,Charities & Voluntary Organisations,32191700
SHEFFIELD CITY COUNCIL,PEOPLE,14046949661,LUNCH CLUB GRANT,8180000,GRANTS,02/01/2018,MPA20180201288-0006,"1,184.00",ST MARYS LUNCH CLUB,CT230417020,Charities & Voluntary Organisations,32201200
SHEFFIELD CITY COUNCIL,PLACE,11850000000,RESPONSIVE REPAIRS,8530001,SUBCONTRACTOR GENERAL,02/01/2018,9121,"3,468.00",FERNWOOD JOINERY LTD,CT029946040,Joinery Manufacturers,32348900
SHEFFIELD CITY COUNCIL,PEOPLE,14046949661,LUNCH CLUB GRANT,8180000,GRANTS,02/01/2018,MPA20180201288-0007,293.00,OUGHTIBRIDGE & DISTRICT LUNCH CLUB,CT230417020,Charities & Voluntary Organisations,32533900
SHEFFIELD CITY COUNCIL,PEOPLE,14046949661,LUNCH CLUB GRANT,8180000,GRANTS,02/01/2018,MPA20180201288-0009,800.00,WOODSEATS METHODIST LUNCH CLUB,CT230417020,Charities & Voluntary Organisations,32566700
SHEFFIELD CITY COUNCIL,PEOPLE,14046949661,LUNCH CLUB GRANT,8180000,GRANTS,02/01/2018,MPA20180201288-0001,663.00,BANNER CROSS LUNCHEON & FRIENDSHIP CLUB,CT219958820,Places Of Worship,32625000
SHEFFIELD CITY COUNCIL,PEOPLE,14046949661,LUNCH CLUB GRANT,8180000,GRANTS,02/01/2018,MPA20180201288-0032,"1,147.00",SHEFFIELD  LIVE AT HOME,CT230417020,Charities & Voluntary Organisations,32712500
SHEFFIELD CITY COUNCIL,PEOPLE,14009242034,PURCHASING LEARNING DISABILITI,9200001,CONTINUING RESIDENTIAL CARE,02/01/2018,J2124471311217,"16,800.00",THE HESLEY GROUP,CT091168200,Schools - Special,32740500
SHEFFIELD CITY COUNCIL,PEOPLE,14046949661,LUNCH CLUB GRANT,8180000,GRANTS,02/01/2018,MPA20180201288-0024,"1,088.00",THE SALVATION ARMY SHEFFIELD CASTLE,CT050144166,"Housing Associations, Societies, Trusts",32778300
SHEFFIELD CITY COUNCIL,PEOPLE,13003932046,OUTDOOR EDUCATION,8400000,PUBLICATIONS AND PERIODICALS,02/01/2018,GA_EVENTS/10199,550.00,THE GEOGRAPHICAL ASSOCIATION,CT230417020,Charities & Voluntary Organisations,32862200
SHEFFIELD CITY COUNCIL,PLACE,12045821312,CITY CENTRE PROMOTIONAL PLAN,8440000,FEE EXPENSES,02/01/2018,2810021327,350.00,YORKSHIRE AMBULANCE SERVICE NHS TRUST,CT149943860,Hospitals,32921500
SHEFFIELD CITY COUNCIL,PLACE,11850000000,RESPONSIVE REPAIRS,8530001,SUBCONTRACTOR GENERAL,02/01/2018,19371,"6,822.64",RICHMOND ENVIRONMENTAL SERVICES,CT072127660,Drain & Sewer Clearance,33147200
SHEFFIELD CITY COUNCIL,PLACE,12000500000,SHEFF TRADING STDS,8440000,FEE EXPENSES,02/01/2018,250001252,"1,392.00",NORTH YORKSHIRE COUNTY COUNCIL,CT219948583,Local Government,33191800
SHEFFIELD CITY COUNCIL,PEOPLE,14009242034,PURCHASING LEARNING DISABILITI,9200001,CONTINUING RESIDENTIAL CARE,02/01/2018,J2124469311217,"15,079.69",THE DAVID LEWIS CENTRE,CT230417020,Charities & Voluntary Organisations,33561300
SHEFFIELD CITY COUNCIL,PEOPLE,14031544012,PARTNERSHIP & GRANT AID MH,9160000,PARTNERSHIP CONTRACTS,02/01/2018,75,"4,625.00",SHEFFIELD MIND LTD,CT230417020,Charities & Voluntary Organisations,34180400
SHEFFIELD CITY COUNCIL,PEOPLE,13002539147,PREVENTION & SUPPORT - CDT,9270004,CARELEAVERS INDEPENDENT LIVING,02/01/2018,231891853,840.00,REED,CT160631230,Employment & Recruitment Agencies,34181800
SHEFFIELD CITY COUNCIL,PEOPLE,13002539147,PREVENTION & SUPPORT - CDT,9270004,CARELEAVERS INDEPENDENT LIVING,02/01/2018,231891853,"2,331.30",REED,CT160631230,Employment & Recruitment Agencies,34181800
SHEFFIELD CITY COUNCIL,PLACE,12018800000,CORPORATE CS MGT,8250000,MARKETING EXPENSES,02/01/2018,1800163965,758.40,THE UNIVERSITY OF SHEFFIELD,CT090381491,Universities & Medical Schools,34705803
SHEFFIELD CITY COUNCIL,PEOPLE,13003239304,ADOPTION SUPPORT GRANT,8550000,OTHER SERVICES,02/01/2018,170936,300.00,CATCHPOINT CONSULTANCY CIC,CT160979980,Training Services,59935700
SHEFFIELD CITY COUNCIL,PEOPLE,14046949661,LUNCH CLUB GRANT,8180000,GRANTS,02/01/2018,MPA20180201288-0035,267.00,LOWEDGES LUNCH CLUB,CT230417020,Charities & Voluntary Organisations,35352200
SHEFFIELD CITY COUNCIL,PLACE,12047124410,THE MOOR INDOOR MARKET,6090000,WASTE DISPOSAL,02/01/2018,1218832,960.00,R L DEAR (WASTE MERCHANTS) LTD,CT102783500,Waste Merchants & Collectors,36013500
SHEFFIELD CITY COUNCIL,PLACE,12047124410,THE MOOR INDOOR MARKET,6090000,WASTE DISPOSAL,02/01/2018,MO337,960.00,R L DEAR (WASTE MERCHANTS) LTD,CT102783500,Waste Merchants & Collectors,36013500
SHEFFIELD CITY COUNCIL,PLACE,12047124410,THE MOOR INDOOR MARKET,6090000,WASTE DISPOSAL,02/01/2018,MO338,"1,200.00",R L DEAR (WASTE MERCHANTS) LTD,CT102783500,Waste Merchants & Collectors,36013500
SHEFFIELD CITY COUNCIL,PEOPLE,14009346039,ADULT SOCIAL CARE PURCHASING,4260018,RESIDENTIAL COSTS RECOVERED,02/01/2018,J2124450031217,-23.06,SCARSDALE GRANGE NURSING HOME,CT230753350,Nursing Homes,36191500
SHEFFIELD CITY COUNCIL,PEOPLE,14009346039,ADULT SOCIAL CARE PURCHASING,4260011,NURSING COSTS RECOVERED,02/01/2018,J2112663311217,"-6,577.55",CRAEGMOOR - RICHMOND HEIGHTS,CT230753350,Nursing Homes,36193300
SHEFFIELD CITY COUNCIL,PEOPLE,14009346039,ADULT SOCIAL CARE PURCHASING,9210001,CONTINUING NURSING CARE,02/01/2018,J2112663311217,"-1,484.57",CRAEGMOOR - RICHMOND HEIGHTS,CT230753350,Nursing Homes,36193300
SHEFFIELD CITY COUNCIL,PEOPLE,14009346039,ADULT SOCIAL CARE PURCHASING,4260011,NURSING COSTS RECOVERED,02/01/2018,J2112663311217,518.59,CRAEGMOOR - RICHMOND HEIGHTS,CT230753350,Nursing Homes,36193300
SHEFFIELD CITY COUNCIL,PEOPLE,14009346039,ADULT SOCIAL CARE PURCHASING,9210001,CONTINUING NURSING CARE,02/01/2018,J2112663311217,"16,836.00",CRAEGMOOR - RICHMOND HEIGHTS,CT230753350,Nursing Homes,36193300
SHEFFIELD CITY COUNCIL,PEOPLE,14046949661,LUNCH CLUB GRANT,8180000,GRANTS,02/01/2018,MPA20180201288-0040,259.00,CHURCH ON THE CORNER,CT219958820,Places Of Worship,36276500
SHEFFIELD CITY COUNCIL,PEOPLE,14045649855,ARCHIVES & CONSERVATION,8010000,EQUIPMENT PURCHASE AND REPAIR,02/01/2018,HJ801698,779.90,CONSERVATION BY DESIGN LTD,CT101521530,Conservation Organisations,36442000
SHEFFIELD CITY COUNCIL,PEOPLE,14009242034,PURCHASING LEARNING DISABILITI,9210001,CONTINUING NURSING CARE,02/01/2018,J2112665311217,-960.00,LOGINI CARE SOLUTIONS LTD,CT230753350,Nursing Homes,36832800
SHEFFIELD CITY COUNCIL,PEOPLE,14009242034,PURCHASING LEARNING DISABILITI,4260011,NURSING COSTS RECOVERED,02/01/2018,J2112665311217,553.24,LOGINI CARE SOLUTIONS LTD,CT230753350,Nursing Homes,36832800
SHEFFIELD CITY COUNCIL,PEOPLE,14009346039,ADULT SOCIAL CARE PURCHASING,4260018,RESIDENTIAL COSTS RECOVERED,02/01/2018,J2112665311217,"2,343.27",LOGINI CARE SOLUTIONS LTD,CT230753350,Nursing Homes,36832800
SHEFFIELD CITY COUNCIL,PEOPLE,14008600000,DAY SERVICES,8540000,SECURITY SERVICES,02/01/2018,522523,361.00,KINGS SECURITY SYSTEMS LIMITED,CT229969210,Security Equipment Installers,36844800
SHEFFIELD CITY COUNCIL,PEOPLE,14008600000,DAY SERVICES,8540000,SECURITY SERVICES,02/01/2018,522523,639.00,KINGS SECURITY SYSTEMS LIMITED,CT229969210,Security Equipment Installers,36844800
SHEFFIELD CITY COUNCIL,PEOPLE,14046949661,LUNCH CLUB GRANT,8180000,GRANTS,02/01/2018,MPA20180201288-0016,559.00,DUKE STREET COMMUNITY CENTRE,CT230820478,Community Centres,37503000
SHEFFIELD CITY COUNCIL,PLACE,11530015215,CORPORATE ROOM BOOKINGS,8440000,FEE EXPENSES,02/01/2018,25297,265.60,ST MARYS CONFERENCE AND CATERING LTD,CT030216040,Caterers,37618600
SHEFFIELD CITY COUNCIL,PLACE,11530015215,CORPORATE ROOM BOOKINGS,8440000,FEE EXPENSES,02/01/2018,25288,272.70,ST MARYS CONFERENCE AND CATERING LTD,CT030216040,Caterers,37618600
SHEFFIELD CITY COUNCIL,PLACE,11530015215,CORPORATE ROOM BOOKINGS,8440000,FEE EXPENSES,02/01/2018,25225,385.00,ST MARYS CONFERENCE AND CATERING LTD,CT030216040,Caterers,37618600
SHEFFIELD CITY COUNCIL,PLACE,11530015215,CORPORATE ROOM BOOKINGS,8440000,FEE EXPENSES,02/01/2018,25297,387.00,ST MARYS CONFERENCE AND CATERING LTD,CT030216040,Caterers,37618600
SHEFFIELD CITY COUNCIL,PLACE,11530015215,CORPORATE ROOM BOOKINGS,8440000,FEE EXPENSES,02/01/2018,25236,400.00,ST MARYS CONFERENCE AND CATERING LTD,CT030216040,Caterers,37618600
SHEFFIELD CITY COUNCIL,PLACE,11530015215,CORPORATE ROOM BOOKINGS,8440000,FEE EXPENSES,02/01/2018,25417,400.00,ST MARYS CONFERENCE AND CATERING LTD,CT030216040,Caterers,37618600
SHEFFIELD CITY COUNCIL,PLACE,11530015215,CORPORATE ROOM BOOKINGS,8440000,FEE EXPENSES,02/01/2018,25288,437.00,ST MARYS CONFERENCE AND CATERING LTD,CT030216040,Caterers,37618600
SHEFFIELD CITY COUNCIL,PLACE,11530015215,CORPORATE ROOM BOOKINGS,8440000,FEE EXPENSES,02/01/2018,25416,460.00,ST MARYS CONFERENCE AND CATERING LTD,CT030216040,Caterers,37618600
SHEFFIELD CITY COUNCIL,PLACE,11530015215,CORPORATE ROOM BOOKINGS,8440000,FEE EXPENSES,02/01/2018,25221,460.00,ST MARYS CONFERENCE AND CATERING LTD,CT030216040,Caterers,37618600
SHEFFIELD CITY COUNCIL,PLACE,11530015215,CORPORATE ROOM BOOKINGS,8440000,FEE EXPENSES,02/01/2018,25311,460.00,ST MARYS CONFERENCE AND CATERING LTD,CT030216040,Caterers,37618600
SHEFFIELD CITY COUNCIL,PLACE,11530015215,CORPORATE ROOM BOOKINGS,8440000,FEE EXPENSES,02/01/2018,25296,820.00,ST MARYS CONFERENCE AND CATERING LTD,CT030216040,Caterers,37618600
SHEFFIELD CITY COUNCIL,PLACE,11530015215,CORPORATE ROOM BOOKINGS,8440000,FEE EXPENSES,02/01/2018,25254,"1,060.00",ST MARYS CONFERENCE AND CATERING LTD,CT030216040,Caterers,37618600
SHEFFIELD CITY COUNCIL,PEOPLE,14046949661,LUNCH CLUB GRANT,8180000,GRANTS,02/01/2018,MPA20180201288-0029,"1,282.00",FRIDAY FOLK LUNCH CLUB,CT230417020,Charities & Voluntary Organisations,38444700
SHEFFIELD CITY COUNCIL,PEOPLE,14046949661,LUNCH CLUB GRANT,8180000,GRANTS,02/01/2018,MPA20180201288-0021,755.00,ST JOHN'S ABBEYDALE LUNCH CLUB,CT230417020,Charities & Voluntary Organisations,38532400
SHEFFIELD CITY COUNCIL,PEOPLE,14046949661,LUNCH CLUB GRANT,8180000,GRANTS,02/01/2018,MPA20180201288-0017,"1,295.00",ST OSWALDS LUNCHEON CLUB,CT230417020,Charities & Voluntary Organisations,38532500
SHEFFIELD CITY COUNCIL,PLACE,14065749331,ESTATE & ENVIRONMENTAL TEAM,6390035,WEED KILLING,02/01/2018,7658,"1,650.00",GREEN ESTATE LTD,CT102683380,Waste Disposal Services,38818900
SHEFFIELD CITY COUNCIL,PEOPLE,14009346039,ADULT SOCIAL CARE PURCHASING,9180000,OTHER CLIENT EXPENDITURE,02/01/2018,450,280.00,EARL MARSHALL GUEST HOUSE LTD,CT010241330,Guest Houses,39158900
SHEFFIELD CITY COUNCIL,PEOPLE,14009346039,ADULT SOCIAL CARE PURCHASING,9180000,OTHER CLIENT EXPENDITURE,02/01/2018,434,350.00,EARL MARSHALL GUEST HOUSE LTD,CT010241330,Guest Houses,39158900
SHEFFIELD CITY COUNCIL,PEOPLE,14009346039,ADULT SOCIAL CARE PURCHASING,9180000,OTHER CLIENT EXPENDITURE,02/01/2018,449,350.00,EARL MARSHALL GUEST HOUSE LTD,CT010241330,Guest Houses,39158900
SHEFFIELD CITY COUNCIL,PEOPLE,14009346039,ADULT SOCIAL CARE PURCHASING,9180000,OTHER CLIENT EXPENDITURE,02/01/2018,444,350.00,EARL MARSHALL GUEST HOUSE LTD,CT010241330,Guest Houses,39158900
SHEFFIELD CITY COUNCIL,PEOPLE,14009346039,ADULT SOCIAL CARE PURCHASING,9180000,OTHER CLIENT EXPENDITURE,02/01/2018,427,450.00,EARL MARSHALL GUEST HOUSE LTD,CT010241330,Guest Houses,39158900
SHEFFIELD CITY COUNCIL,PEOPLE,14009346039,ADULT SOCIAL CARE PURCHASING,9180000,OTHER CLIENT EXPENDITURE,02/01/2018,419,650.00,EARL MARSHALL GUEST HOUSE LTD,CT010241330,Guest Houses,39158900
SHEFFIELD CITY COUNCIL,PLACE,11850000000,RESPONSIVE REPAIRS,8530001,SUBCONTRACTOR GENERAL,02/01/2018,7407,"20,774.44",DIO-MET FABRICATIONS LTD,CT079915447,Architectural Ironmongers,39311900
SHEFFIELD CITY COUNCIL,PEOPLE,14031544012,PARTNERSHIP & GRANT AID MH,9160000,PARTNERSHIP CONTRACTS,02/01/2018,1718-186,488.25,REACH SOUTH SHEFFIELD,CT230417020,Charities & Voluntary Organisations,39437100
SHEFFIELD CITY COUNCIL,PEOPLE,13007633017,AMBITIONS SCR,8440000,FEE EXPENSES,02/01/2018,SCRMI032,790.90,SHEFFIELD CREDIT UNION,CT129922940,Credit Unions,40039700
SHEFFIELD CITY COUNCIL,PEOPLE,13007633017,AMBITIONS SCR,8440000,FEE EXPENSES,02/01/2018,SCR028,"3,950.00",SHEFFIELD CREDIT UNION,CT129922940,Credit Unions,40039700
SHEFFIELD CITY COUNCIL,PEOPLE,14031746125,OLDER PEOPLES MENTAL HEALTH,9160000,PARTNERSHIP CONTRACTS,02/01/2018,3951,"4,070.00",CARE2CARE TRAINING SERVICES,CT9999DIRPY,CAREFIRST DIRECT PAYMENTS,55689300
SHEFFIELD CITY COUNCIL,PLACE,11513300000,WORKSHOPS,7040000,OTHER VEHICLE RUNNING COSTS,02/01/2018,9866,643.01,GPG 2000 LTD,CT261913330,Car Body Repairs,41622500
SHEFFIELD CITY COUNCIL,"POLICY, PERFORMANCE AND COMMS",11800300000,COMMUNICATIONS PPC,8550002,ADVERTISING SERVICES INVOICED,02/01/2018,102654417,"2,500.00",CLEAR CHANNEL UK LTD,CT060801968,Advertising - Outdoor,41713000
SHEFFIELD CITY COUNCIL,RESOURCES,11400300000,STRATEGY & GOVERNANCE,8440000,FEE EXPENSES,02/01/2018,136786,"1,273.65",CARTER BROWN,CT140262100,Psychologists,41724300
SHEFFIELD CITY COUNCIL,PEOPLE,14009346039,ADULT SOCIAL CARE PURCHASING,9200001,CONTINUING RESIDENTIAL CARE,02/01/2018,J2124470311217,"-2,190.00",NORTON LEES HALL/LODGE,CT091167981,Schools - Local Authority,43375000
SHEFFIELD CITY COUNCIL,PEOPLE,14009346039,ADULT SOCIAL CARE PURCHASING,4260018,RESIDENTIAL COSTS RECOVERED,02/01/2018,J2124470311217,"-1,138.24",NORTON LEES HALL/LODGE,CT091167981,Schools - Local Authority,43375000
SHEFFIELD CITY COUNCIL,PEOPLE,14009346039,ADULT SOCIAL CARE PURCHASING,4260018,RESIDENTIAL COSTS RECOVERED,02/01/2018,J2117437031217,-680.40,NORTON LEES HALL/LODGE,CT091167981,Schools - Local Authority,43375000
SHEFFIELD CITY COUNCIL,PEOPLE,14009346039,ADULT SOCIAL CARE PURCHASING,4260018,RESIDENTIAL COSTS RECOVERED,02/01/2018,J2117437031217,-291.60,NORTON LEES HALL/LODGE,CT091167981,Schools - Local Authority,43375000
SHEFFIELD CITY COUNCIL,PEOPLE,14009346039,ADULT SOCIAL CARE PURCHASING,4260018,RESIDENTIAL COSTS RECOVERED,02/01/2018,J2124470311217,672.25,NORTON LEES HALL/LODGE,CT091167981,Schools - Local Authority,43375000
SHEFFIELD CITY COUNCIL,PEOPLE,14009346039,ADULT SOCIAL CARE PURCHASING,9200002,SHORT TERM RESIDENTIAL CARE,02/01/2018,J2117437031217,728.57,NORTON LEES HALL/LODGE,CT091167981,Schools - Local Authority,43375000
SHEFFIELD CITY COUNCIL,PEOPLE,14009346039,ADULT SOCIAL CARE PURCHASING,9200002,SHORT TERM RESIDENTIAL CARE,02/01/2018,J2117437031217,750.86,NORTON LEES HALL/LODGE,CT091167981,Schools - Local Authority,43375000
SHEFFIELD CITY COUNCIL,PEOPLE,14009346039,ADULT SOCIAL CARE PURCHASING,9200002,SHORT TERM RESIDENTIAL CARE,02/01/2018,J2117437031217,"1,752.00",NORTON LEES HALL/LODGE,CT091167981,Schools - Local Authority,43375000
SHEFFIELD CITY COUNCIL,PEOPLE,14009346039,ADULT SOCIAL CARE PURCHASING,9200001,CONTINUING RESIDENTIAL CARE,02/01/2018,J2124470311217,"1,752.00",NORTON LEES HALL/LODGE,CT091167981,Schools - Local Authority,43375000
SHEFFIELD CITY COUNCIL,PEOPLE,14009346039,ADULT SOCIAL CARE PURCHASING,9200001,CONTINUING RESIDENTIAL CARE,02/01/2018,J2124470311217,"11,600.57",NORTON LEES HALL/LODGE,CT091167981,Schools - Local Authority,43375000
SHEFFIELD CITY COUNCIL,PEOPLE,13002439357,SHORT BREAKS FUNDING FOR DISAB,9120000,OTHER AGENCIES,02/01/2018,1634,928.00,SOVA,CT230417020,Charities & Voluntary Organisations,43911400
SHEFFIELD CITY COUNCIL,PEOPLE,13002439357,SHORT BREAKS FUNDING FOR DISAB,9120000,OTHER AGENCIES,02/01/2018,1725,"1,779.36",SOVA,CT230417020,Charities & Voluntary Organisations,43911400
SHEFFIELD CITY COUNCIL,PEOPLE,13002439357,SHORT BREAKS FUNDING FOR DISAB,9120000,OTHER AGENCIES,02/01/2018,1634,"3,361.17",SOVA,CT230417020,Charities & Voluntary Organisations,43911400
SHEFFIELD CITY COUNCIL,PLACE,14066949142,RESPONSIVE HM&E,6030026,REPAIRS TO TENANTED PROPERTIES,02/01/2018,VSL2018,"2,125.50",VIGIL SECURITY SYSTEMS LTD,CT220411700,Burglar & Intruder Alarm Systems,44031700
SHEFFIELD CITY COUNCIL,PLACE,14066949142,RESPONSIVE HM&E,6030026,REPAIRS TO TENANTED PROPERTIES,02/01/2018,VSL1789,"2,220.50",VIGIL SECURITY SYSTEMS LTD,CT220411700,Burglar & Intruder Alarm Systems,44031700
SHEFFIELD CITY COUNCIL,PLACE,14066200000,HME,6020000,REPAIRS AND MTCE - PROGRAMMED,02/01/2018,VSL1791,"5,895.00",VIGIL SECURITY SYSTEMS LTD,CT220411700,Burglar & Intruder Alarm Systems,44031700
SHEFFIELD CITY COUNCIL,PLACE,14064749224,FURNISHED ACCOMMODATION,8050000,FURNITURE PURCHASES,02/01/2018,TK121025,251.40,THOMAS KNEALE & CO LTD,CT029977519,Textile Manufacturing,44158500
SHEFFIELD CITY COUNCIL,PLACE,14064749224,FURNISHED ACCOMMODATION,8050000,FURNITURE PURCHASES,02/01/2018,TK121094,299.50,THOMAS KNEALE & CO LTD,CT029977519,Textile Manufacturing,44158500
SHEFFIELD CITY COUNCIL,PLACE,14064749224,FURNISHED ACCOMMODATION,8050000,FURNITURE PURCHASES,02/01/2018,TK121025,355.20,THOMAS KNEALE & CO LTD,CT029977519,Textile Manufacturing,44158500
SHEFFIELD CITY COUNCIL,PLACE,14064749224,FURNISHED ACCOMMODATION,8050000,FURNITURE PURCHASES,02/01/2018,TK121094,374.50,THOMAS KNEALE & CO LTD,CT029977519,Textile Manufacturing,44158500
SHEFFIELD CITY COUNCIL,PLACE,14064749224,FURNISHED ACCOMMODATION,8050000,FURNITURE PURCHASES,02/01/2018,TK121094,442.50,THOMAS KNEALE & CO LTD,CT029977519,Textile Manufacturing,44158500
SHEFFIELD CITY COUNCIL,PLACE,14064749224,FURNISHED ACCOMMODATION,8050000,FURNITURE PURCHASES,02/01/2018,TK121139,479.50,THOMAS KNEALE & CO LTD,CT029977519,Textile Manufacturing,44158500
SHEFFIELD CITY COUNCIL,PLACE,14064749224,FURNISHED ACCOMMODATION,8050000,FURNITURE PURCHASES,02/01/2018,TK121106,599.00,THOMAS KNEALE & CO LTD,CT029977519,Textile Manufacturing,44158500
SHEFFIELD CITY COUNCIL,PLACE,14064749224,FURNISHED ACCOMMODATION,8050000,FURNITURE PURCHASES,02/01/2018,TK121139,634.50,THOMAS KNEALE & CO LTD,CT029977519,Textile Manufacturing,44158500
SHEFFIELD CITY COUNCIL,PLACE,14064749224,FURNISHED ACCOMMODATION,8050000,FURNITURE PURCHASES,02/01/2018,TK121025,651.00,THOMAS KNEALE & CO LTD,CT029977519,Textile Manufacturing,44158500
SHEFFIELD CITY COUNCIL,PLACE,14064749224,FURNISHED ACCOMMODATION,8050000,FURNITURE PURCHASES,02/01/2018,TK121094,674.00,THOMAS KNEALE & CO LTD,CT029977519,Textile Manufacturing,44158500
SHEFFIELD CITY COUNCIL,PLACE,14064749224,FURNISHED ACCOMMODATION,8050000,FURNITURE PURCHASES,02/01/2018,TK121025,706.80,THOMAS KNEALE & CO LTD,CT029977519,Textile Manufacturing,44158500
SHEFFIELD CITY COUNCIL,PLACE,14064749224,FURNISHED ACCOMMODATION,8050000,FURNITURE PURCHASES,02/01/2018,TK121094,924.50,THOMAS KNEALE & CO LTD,CT029977519,Textile Manufacturing,44158500
SHEFFIELD CITY COUNCIL,PLACE,14064749224,FURNISHED ACCOMMODATION,8050000,FURNITURE PURCHASES,02/01/2018,TK121094,924.50,THOMAS KNEALE & CO LTD,CT029977519,Textile Manufacturing,44158500
SHEFFIELD CITY COUNCIL,PLACE,14064749224,FURNISHED ACCOMMODATION,8050000,FURNITURE PURCHASES,02/01/2018,TK121094,"1,099.50",THOMAS KNEALE & CO LTD,CT029977519,Textile Manufacturing,44158500
SHEFFIELD CITY COUNCIL,PLACE,14064749224,FURNISHED ACCOMMODATION,8050000,FURNITURE PURCHASES,02/01/2018,TK121030,"1,846.58",THOMAS KNEALE & CO LTD,CT029977519,Textile Manufacturing,44158500
SHEFFIELD CITY COUNCIL,PLACE,14064749224,FURNISHED ACCOMMODATION,8050000,FURNITURE PURCHASES,02/01/2018,TK121030,"2,695.47",THOMAS KNEALE & CO LTD,CT029977519,Textile Manufacturing,44158500
SHEFFIELD CITY COUNCIL,PLACE,11513300000,WORKSHOPS,7040000,OTHER VEHICLE RUNNING COSTS,02/01/2018,11620,289.75,ROBERTS MOTOR BODIES LTD,CT261913330,Car Body Repairs,44263900
SHEFFIELD CITY COUNCIL,PEOPLE,13005238208,0-4 HEALTHY WEIGHT SERVICE,9030000,HEALTH,02/01/2018,2606,270.00,REACH OUT CHILD CARE SERVICES LTD,CT240502300,After School Care,44324800
SHEFFIELD CITY COUNCIL,PEOPLE,13005238208,0-4 HEALTHY WEIGHT SERVICE,9030000,HEALTH,02/01/2018,2598,540.00,REACH OUT CHILD CARE SERVICES LTD,CT240502300,After School Care,44324800
SHEFFIELD CITY COUNCIL,PEOPLE,14046949661,LUNCH CLUB GRANT,8180000,GRANTS,02/01/2018,MPA20180201288-0039,895.00,THE THURSDAY CLUB,CT230417020,Charities & Voluntary Organisations,45164100
SHEFFIELD CITY COUNCIL,PLACE,11853000000,CSSR CORE CONTRACT,8530001,SUBCONTRACTOR GENERAL,02/01/2018,19597,"1,574.50",PREMIER GLAZING SERVICES LTD,CT079940470,Glaziers,45738800
SHEFFIELD CITY COUNCIL,PLACE,11850400000,NON OPERATIONAL OVERHEADS,5750000,TRAINING EXPENDITURE,02/01/2018,18928,700.00,BRADLEY ENVIRONMENTAL CONSULTANTS LTD,CT080332415,Environmental Consultants,45906400
SHEFFIELD CITY COUNCIL,PLACE,11513300000,WORKSHOPS,6020000,REPAIRS AND MTCE - PROGRAMMED,02/01/2018,8969444,563.20,CARLTON FUELS,CT260738120,Fuel Dealers,46674100
SHEFFIELD CITY COUNCIL,PLACE,11513300000,WORKSHOPS,6020000,REPAIRS AND MTCE - PROGRAMMED,02/01/2018,8969427,"2,252.80",CARLTON FUELS,CT260738120,Fuel Dealers,46674100
SHEFFIELD CITY COUNCIL,PLACE,11513300000,WORKSHOPS,8070000,STOCKS AND STORES,02/01/2018,14493982,675.30,LOOKERS FORD,CT260213540,Car Dealers,47493900
SHEFFIELD CITY COUNCIL,PLACE,11513300000,WORKSHOPS,8070000,STOCKS AND STORES,02/01/2018,14483764,"1,018.33",LOOKERS FORD,CT260213540,Car Dealers,47493900
SHEFFIELD CITY COUNCIL,PLACE,11513300000,WORKSHOPS,7010000,ROUTINE VEHICLE REPAIR & MTCE,02/01/2018,14483699,"1,046.77",LOOKERS FORD,CT260213540,Car Dealers,47493900
SHEFFIELD CITY COUNCIL,PLACE,11513300000,WORKSHOPS,8070000,STOCKS AND STORES,02/01/2018,14484067,"1,142.38",LOOKERS FORD,CT260213540,Car Dealers,47493900
SHEFFIELD CITY COUNCIL,PLACE,11513300000,WORKSHOPS,7010000,ROUTINE VEHICLE REPAIR & MTCE,02/01/2018,14483552,"1,385.87",LOOKERS FORD,CT260213540,Car Dealers,47493900
SHEFFIELD CITY COUNCIL,PLACE,11513300000,WORKSHOPS,7010000,ROUTINE VEHICLE REPAIR & MTCE,02/01/2018,14483027,"1,449.34",LOOKERS FORD,CT260213540,Car Dealers,47493900
SHEFFIELD CITY COUNCIL,PEOPLE,13002039212,CARELEAVER SUPPORT,9440001,CARELEAVERS,02/01/2018,1693,300.00,ROUNDABOUT LIMITED,CT010143900,Hostels,48314700
SHEFFIELD CITY COUNCIL,PLACE,11513300000,WORKSHOPS,7010000,ROUTINE VEHICLE REPAIR & MTCE,02/01/2018,HSNV130462,277.24,AUTO BATTERY SERVICE LTD,CT262013240,Car Accessories & Parts,48363400
SHEFFIELD CITY COUNCIL,PLACE,11513300000,WORKSHOPS,7010000,ROUTINE VEHICLE REPAIR & MTCE,02/01/2018,HSNV129004,279.56,AUTO BATTERY SERVICE LTD,CT262013240,Car Accessories & Parts,48363400
SHEFFIELD CITY COUNCIL,PLACE,11513300000,WORKSHOPS,7010000,ROUTINE VEHICLE REPAIR & MTCE,02/01/2018,HSNV130113,335.00,AUTO BATTERY SERVICE LTD,CT262013240,Car Accessories & Parts,48363400
SHEFFIELD CITY COUNCIL,PEOPLE,13007933018,100 APPRENTICES,9120000,OTHER AGENCIES,02/01/2018,27555,266.00,SUNNY MEADOWS NURSERY,CT090453088,Nurseries & Creches,37434000
SHEFFIELD CITY COUNCIL,PEOPLE,13001839282,CARE PROCEEDINGS (LEGAL FEES),8470000,LEGAL FEES,02/01/2018,563,600.00,REDACTED PERSONAL DATA,CT190106700,Barristers,59888100
SHEFFIELD CITY COUNCIL,PLACE,12076722189,INTELLIGENT TRANSPORT SYSTEMS,6390005,NETWORK COMMUNICATIONS,02/01/2018,25386,"17,444.00",MOBIUS NETWORKS LIMITED,CT171676510,Telecommunication Services,49043000
SHEFFIELD CITY COUNCIL,PLACE,14059097152,BRADFORD RHB LOANS HAL,1194000,OTHER FEES,02/01/2018,25455,"3,319.00",BRADFORD COUNCIL (HOUSING),CT219948583,Local Government,49247900
SHEFFIELD CITY COUNCIL,PEOPLE,14032149694,DACT INFRASTRUCTURE,8370000,PRINTING,02/01/2018,816,525.00,ALMEGA LIMITED,CT025961893,Promotional Items,49288700
SHEFFIELD CITY COUNCIL,CORPORATE,11993019318,PREMIUMS,8740001,BROKERS FEE,02/01/2018,FEE00002544,"23,115.00",GRIFFITHS & ARMOUR INSURANCE BROKERS LTD,CT121345415,Insurance - Other,50145500
SHEFFIELD CITY COUNCIL,PLACE,14065397838,COMPARTMENTALISATION - FS,1157000,DWELLINGS MAIN CONTRACT,02/01/2018,INV082466,"9,277.44",CONSTANT SECURITY SERVICES LIMITED,CT220369240,Security Services,50193701
SHEFFIELD CITY COUNCIL,"POLICY, PERFORMANCE AND COMMS",11300100000,PUBLIC HEALTH - DPH,9120000,OTHER AGENCIES,02/01/2018,7016202187,"5,000.00",NHS SHEFFIELD CCG,CT149919190,Clinics - N.h.s.,50479900
SHEFFIELD CITY COUNCIL,PLACE,11850000000,RESPONSIVE REPAIRS,8530001,SUBCONTRACTOR GENERAL,02/01/2018,24839,"15,415.00",SOUTH YORKSHIRE TARMACADAM CONTRACTORS,CT079904980,Asphalt & Coated Macadam Laying Contract,50573300
SHEFFIELD CITY COUNCIL,PLACE,11853000000,CSSR CORE CONTRACT,8530001,SUBCONTRACTOR GENERAL,02/01/2018,10809,"1,045.00",AIR ENVIRONMENTAL LTD,CT072502880,Air Conditioning Equipment & Systems,50580200
SHEFFIELD CITY COUNCIL,PLACE,11853000000,CSSR CORE CONTRACT,8530001,SUBCONTRACTOR GENERAL,02/01/2018,10806,"3,838.00",AIR ENVIRONMENTAL LTD,CT072502880,Air Conditioning Equipment & Systems,50580200
SHEFFIELD CITY COUNCIL,PEOPLE,13008533112,LDD PLACEMENTS AUG16-JUL17,8010000,EQUIPMENT PURCHASE AND REPAIR,02/01/2018,33991,300.00,MAYSON SECURITY SERVICES,CT220411700,Burglar & Intruder Alarm Systems,50709100
SHEFFIELD CITY COUNCIL,PLACE,12070228200,BUSINESS CONFERENCING,7140000,PUBLIC TRANSPORT COSTS,02/01/2018,292765,"1,185.00",EAST MIDLANDS TRAINS LTD,CT261763418,Railways,50776900
SHEFFIELD CITY COUNCIL,PEOPLE,13002239084,NORTH SA - CIN S17,8490003,TRANSLATN/SIGN/INTERPRET FEES,02/01/2018,17-11251,350.95,TH LANGUAGES LIMITED,CT160480090,Translators & Interpreters,51001500
SHEFFIELD CITY COUNCIL,PEOPLE,13002239084,NORTH SA - CIN S17,8490003,TRANSLATN/SIGN/INTERPRET FEES,02/01/2018,17-11251,424.50,TH LANGUAGES LIMITED,CT160480090,Translators & Interpreters,51001500
SHEFFIELD CITY COUNCIL,PEOPLE,13002539147,PREVENTION & SUPPORT - CDT,8490003,TRANSLATN/SIGN/INTERPRET FEES,02/01/2018,17-11251,496.20,TH LANGUAGES LIMITED,CT160480090,Translators & Interpreters,51001500
SHEFFIELD CITY COUNCIL,PEOPLE,13002539147,PREVENTION & SUPPORT - CDT,8490003,TRANSLATN/SIGN/INTERPRET FEES,02/01/2018,17-11251,546.20,TH LANGUAGES LIMITED,CT160480090,Translators & Interpreters,51001500
SHEFFIELD CITY COUNCIL,PEOPLE,13002139213,EAST SA - CIN S17,8490003,TRANSLATN/SIGN/INTERPRET FEES,02/01/2018,17-11251,981.87,TH LANGUAGES LIMITED,CT160480090,Translators & Interpreters,51001500
SHEFFIELD CITY COUNCIL,PEOPLE,13002239084,NORTH SA - CIN S17,8490003,TRANSLATN/SIGN/INTERPRET FEES,02/01/2018,17-11251,"1,170.21",TH LANGUAGES LIMITED,CT160480090,Translators & Interpreters,51001500
SHEFFIELD CITY COUNCIL,PEOPLE,13002239084,NORTH SA - CIN S17,8490003,TRANSLATN/SIGN/INTERPRET FEES,02/01/2018,17-11251,"1,518.68",TH LANGUAGES LIMITED,CT160480090,Translators & Interpreters,51001500
SHEFFIELD CITY COUNCIL,PEOPLE,14046949661,LUNCH CLUB GRANT,8180000,GRANTS,02/01/2018,MPA20180201288-0037,877.00,MOSBOROUGH LUNCH & SOCIAL CLUB,CT209919470,Clubs & Associations,51033300
SHEFFIELD CITY COUNCIL,PEOPLE,14046949661,LUNCH CLUB GRANT,8180000,GRANTS,02/01/2018,MPA20180201288-0036,586.00,WESLEY HALL LUNCH CLUB,CT230417020,Charities & Voluntary Organisations,51186600
SHEFFIELD CITY COUNCIL,PEOPLE,14046949661,LUNCH CLUB GRANT,8180000,GRANTS,02/01/2018,MPA20180201288-0038,626.00,VALLEY LUNCH CLUB,CT230417020,Charities & Voluntary Organisations,51428100
SHEFFIELD CITY COUNCIL,PLACE,11850200000,VOIDS REPAIRS,8530001,SUBCONTRACTOR GENERAL,02/01/2018,Y0383573M,"1,864.15",ORBIS PROTECT LIMITED,CT220369240,Security Services,52442400
SHEFFIELD CITY COUNCIL,PEOPLE,14046300000,SCHOOLS LIBRARY SERVICE,8060000,MATERIALS AND SUPPLIES GENERAL,02/01/2018,SIN002880,458.34,SHEFFIELD THEATRES CRUCIBLE TRUST,CT119977640,Theatres,53049300
SHEFFIELD CITY COUNCIL,PEOPLE,14046949661,LUNCH CLUB GRANT,8180000,GRANTS,02/01/2018,MPA20180201288-0041,529.00,MANOR LODGE LUNCHEON CLUB,CT230417020,Charities & Voluntary Organisations,54513500
SHEFFIELD CITY COUNCIL,PEOPLE,14009346039,ADULT SOCIAL CARE PURCHASING,9190004,DIRECT PAYMENTS,02/01/2018,J2124507,977.68,IDK SUPPORT 4 YOU LTD - SUPPORT PLANNING,CT9999DIRPY,CAREFIRST DIRECT PAYMENTS,56217800
SHEFFIELD CITY COUNCIL,PEOPLE,14009346039,ADULT SOCIAL CARE PURCHASING,9190004,DIRECT PAYMENTS,02/01/2018,J2124507,"11,564.14",IDK SUPPORT 4 YOU LTD - SUPPORT PLANNING,CT9999DIRPY,CAREFIRST DIRECT PAYMENTS,56217800
SHEFFIELD CITY COUNCIL,PEOPLE,14009242034,PURCHASING LEARNING DISABILITI,4260008,DIRECT PAYMENTS,02/01/2018,J2124507,413.44,REDACTED PERSONAL DATA,CT9999DIRPY,CAREFIRST DIRECT PAYMENTS,61981700
SHEFFIELD CITY COUNCIL,PLACE,12045121015,WALKING FOR PURPOSE,8440000,FEE EXPENSES,02/01/2018,HLT-SI104842,700.00,7 HILLS LEISURE TRUST,CT209972900,Sports Ground & Stadium Contractors,56650000
SHEFFIELD CITY COUNCIL,PEOPLE,13002739446,TEACHING PARTNERSHIPS,8440000,FEE EXPENSES,02/01/2018,53009502,500.00,LOVE2SHOP,CT025940180,Gift Services,56871700
SHEFFIELD CITY COUNCIL,PEOPLE,13001839282,CARE PROCEEDINGS (LEGAL FEES),8470000,LEGAL FEES,02/01/2018,4695,315.00,REDACTED PERSONAL DATA,CT190106700,Barristers,48621800
SHEFFIELD CITY COUNCIL,PEOPLE,13000336039,SEN TAXIS,7060000,EXTERNAL VEHICLE HIRE,02/01/2018,SCC/SEN-(K713)1017,"1,332.00",TRAVELLERS TAXIS,CT261676350,Taxis & Private Hire,57338300
SHEFFIELD CITY COUNCIL,PEOPLE,13000336039,SEN TAXIS,7060000,EXTERNAL VEHICLE HIRE,02/01/2018,SCC/SEN-1117,"28,281.00",TRAVELLERS TAXIS,CT261676350,Taxis & Private Hire,57338300
SHEFFIELD CITY COUNCIL,RESOURCES,11400514014,CITY WIDE ALARMS SERVICE,8610000,OTHER TELECOMMUNICATIONS,02/01/2018,INV/70074080,"16,401.14",TUNSTALL HEALTHCARE (UK) LIMITED,CT220176520,Telecommunications Equipment & Systems,57441300
SHEFFIELD CITY COUNCIL,PLACE,14058790136,CHAUCER SQUARE MAINTENANCE,1161000,NC&A MAIN CONTRACT,02/01/2018,10368,"6,999.85",ALPHA LABOUR & RECRUITMENT LTD,CT160631230,Employment & Recruitment Agencies,58465700
SHEFFIELD CITY COUNCIL,PEOPLE,13001639006,UASC/ASYLUM 16-17,9410001,MANDATORY AWARDS FEES,02/01/2018,23730,257.14,NEXT STEP CARE MANAGEMENT LTD,CT249917780,Children's Homes,58658500
SHEFFIELD CITY COUNCIL,PEOPLE,14046849706,NORTH EAST,8180000,GRANTS,02/01/2018,25307,700.00,FRIENDS OF FIRTH PARK ACADEMY,CT209919470,Clubs & Associations,59105700
SHEFFIELD CITY COUNCIL,PEOPLE,13003439047,ALDINE HOUSE,8550000,OTHER SERVICES,02/01/2018,9565,"5,890.00",DAILY FAMOUS LTD T/A BMW CONSTRUCTION,CT070621555,Construction Contractors - General,59169200
SHEFFIELD CITY COUNCIL,PEOPLE,14009242034,PURCHASING LEARNING DISABILITI,9190007,FUNDED HOME SUPPORT,02/01/2018,J2124507,"2,722.71",REDACTED PERSONAL DATA,CT9999DIRPY,CAREFIRST DIRECT PAYMENTS,58712500
SHEFFIELD CITY COUNCIL,PEOPLE,13001839282,CARE PROCEEDINGS (LEGAL FEES),8470000,LEGAL FEES,02/01/2018,4692,600.00,REDACTED PERSONAL DATA,CT190106700,Barristers,48621800
SHEFFIELD CITY COUNCIL,PEOPLE,13007933018,100 APPRENTICES,9120000,OTHER AGENCIES,02/01/2018,#03,350.00,REDACTED PERSONAL DATA,CT240417600,Childminders,63816900
SHEFFIELD CITY COUNCIL,PLACE,12045821270,EVENTS IN PARKS,8200001,ART,02/01/2018,834,680.00,EG SKETT & CO LIMITED,CT129949825,MARKET OPERATORS,59647600
SHEFFIELD CITY COUNCIL,PEOPLE,13002739444,POLICY & SERVICE IMPROVEMENT,8440000,FEE EXPENSES,02/01/2018,1350,"3,450.00",CONSILIENT CONSULTING LTD,CT080112100,Business & Management Consultants,44677900
SHEFFIELD CITY COUNCIL,PEOPLE,13001839282,CARE PROCEEDINGS (LEGAL FEES),8470000,LEGAL FEES,02/01/2018,4699,"1,450.00",REDACTED PERSONAL DATA,CT190106700,Barristers,48621800
SHEFFIELD CITY COUNCIL,PLACE,12045121023,INCLUSIVE SPORT PROJECT,8490001,COACHING FEES,02/01/2018,1711171001,"2,265.00",REBOUND THERAPY LTD,CT160979980,Training Services,70131100
SHEFFIELD CITY COUNCIL,PLACE,12018728100,BUSINESS GROWTH TEAM,8250000,MARKETING EXPENSES,02/01/2018,12015,"2,156.83",BUSINESS TO BUSINESS (PART OF BE GROUP),CT160121510,Conference Services,61556100
SHEFFIELD CITY COUNCIL,PEOPLE,13001839282,CARE PROCEEDINGS (LEGAL FEES),8470000,LEGAL FEES,02/01/2018,4691,"1,450.00",REDACTED PERSONAL DATA,CT190106700,Barristers,48621800
SHEFFIELD CITY COUNCIL,PEOPLE,13001839282,CARE PROCEEDINGS (LEGAL FEES),8470000,LEGAL FEES,02/01/2018,2714,600.00,REDACTED PERSONAL DATA,CT190106700,Barristers,48788800
SHEFFIELD CITY COUNCIL,PLACE,11513300000,WORKSHOPS,7040000,OTHER VEHICLE RUNNING COSTS,02/01/2018,3439811,293.00,LEEDS COMMERCIAL LTD,CT261082050,Van & Truck Hire,61765100
SHEFFIELD CITY COUNCIL,PLACE,11850400000,NON OPERATIONAL OVERHEADS,6090000,WASTE DISPOSAL,02/01/2018,110328,710.72,FLETCHER PLANT LIMITED,CT101658996,Recycling Services,61866100
SHEFFIELD CITY COUNCIL,PLACE,11850400000,NON OPERATIONAL OVERHEADS,6090000,WASTE DISPOSAL,02/01/2018,110817,944.50,FLETCHER PLANT LIMITED,CT101658996,Recycling Services,61866100
SHEFFIELD CITY COUNCIL,PLACE,11850400000,NON OPERATIONAL OVERHEADS,6090000,WASTE DISPOSAL,02/01/2018,110334,"3,340.08",FLETCHER PLANT LIMITED,CT101658996,Recycling Services,61866100
SHEFFIELD CITY COUNCIL,PLACE,11850400000,NON OPERATIONAL OVERHEADS,6090000,WASTE DISPOSAL,02/01/2018,110617,"4,581.12",FLETCHER PLANT LIMITED,CT101658996,Recycling Services,61866100
SHEFFIELD CITY COUNCIL,PEOPLE,13001839282,CARE PROCEEDINGS (LEGAL FEES),8470000,LEGAL FEES,02/01/2018,471,600.00,MR SIMON PALLO,CT190372460,Solicitors,61889300
SHEFFIELD CITY COUNCIL,PEOPLE,13007933018,100 APPRENTICES,9120000,OTHER AGENCIES,02/01/2018,33388,325.94,NUMILL LTD,CT079931589,Engineering Services,62339300
SHEFFIELD CITY COUNCIL,PEOPLE,14046949661,LUNCH CLUB GRANT,8180000,GRANTS,02/01/2018,MPA20180201288-0045,529.00,HILLSBOROUGH TRINITY LUNCH CLUB,CT209919470,Clubs & Associations,62361400
SHEFFIELD CITY COUNCIL,PEOPLE,13005739513,CITY WIDE SEN,9050000,OTHER LOCAL AUTHORITIES,02/01/2018,5100460,"2,433.00",UNITY ACADEMY BLACKPOOL,CT091167981,Schools - Local Authority,62386100
SHEFFIELD CITY COUNCIL,PLACE,14065397147,ADAPTATIONS,1157000,DWELLINGS MAIN CONTRACT,02/01/2018,SIP-188025,954.05,THYSSENKRUPP ENCASA,CT072847902,Lift Mnfrs,62780200
SHEFFIELD CITY COUNCIL,PLACE,14065397147,ADAPTATIONS,1157000,DWELLINGS MAIN CONTRACT,02/01/2018,SIP-188024,"1,393.89",THYSSENKRUPP ENCASA,CT072847902,Lift Mnfrs,62780200
SHEFFIELD CITY COUNCIL,PLACE,14065397147,ADAPTATIONS,1157000,DWELLINGS MAIN CONTRACT,02/01/2018,SIP-188292,"1,408.89",THYSSENKRUPP ENCASA,CT072847902,Lift Mnfrs,62780200
SHEFFIELD CITY COUNCIL,PLACE,14065397147,ADAPTATIONS,1157000,DWELLINGS MAIN CONTRACT,02/01/2018,SIP-188441,"1,420.96",THYSSENKRUPP ENCASA,CT072847902,Lift Mnfrs,62780200
SHEFFIELD CITY COUNCIL,PLACE,14065397147,ADAPTATIONS,1157000,DWELLINGS MAIN CONTRACT,02/01/2018,SIP-188434,"1,556.95",THYSSENKRUPP ENCASA,CT072847902,Lift Mnfrs,62780200
SHEFFIELD CITY COUNCIL,PLACE,14065397147,ADAPTATIONS,1157000,DWELLINGS MAIN CONTRACT,02/01/2018,SIP-189796,"2,731.86",THYSSENKRUPP ENCASA,CT072847902,Lift Mnfrs,62780200
SHEFFIELD CITY COUNCIL,PEOPLE,14046949661,LUNCH CLUB GRANT,8180000,GRANTS,02/01/2018,MPA20180201288-0044,522.00,YORK HOUSE LUNCHEON CLUB,CT209919470,Clubs & Associations,62796800
SHEFFIELD CITY COUNCIL,PLACE,11513300000,WORKSHOPS,7040000,OTHER VEHICLE RUNNING COSTS,02/01/2018,5723,515.80,SHEFFIELD VAN HIRE LTD,CT261082050,Van & Truck Hire,63244000
SHEFFIELD CITY COUNCIL,PEOPLE,13007833009,DISADVANTAGED AREA FUNDING,9120000,OTHER AGENCIES,02/01/2018,SOARCO/2939,"6,984.83",SOAR COMMUNITY,CT230417020,Charities & Voluntary Organisations,63305600
SHEFFIELD CITY COUNCIL,PEOPLE,13000236023,CATERING CONTRACT,8270000,SUBSCRIPTIONS,02/01/2018,100008986CR,-180.00,LACA ADMINISTRATION,CT030216270,CATERING SCHOOLS,63350700
SHEFFIELD CITY COUNCIL,PEOPLE,13005739517,LOCALITY SEND,8440000,FEE EXPENSES,02/01/2018,FVSI990,"2,000.00",FORGE VALLEY SCHOOL,CT091167981,Schools - Local Authority,63364600
SHEFFIELD CITY COUNCIL,RESOURCES,11920011079,CORPORATE CLEANING CONTRACT,9620000,FINANCIAL PROCESSES,02/01/2018,CO062374,"133,271.00",CORDANT CLEANING LIMITED,CT021115269,Cleaning Services - Commercial,63439700
SHEFFIELD CITY COUNCIL,PLACE,11853000000,CSSR CORE CONTRACT,8530001,SUBCONTRACTOR GENERAL,02/01/2018,INV-170119BIRLEYSP,301.25,ENERGY SYSTEMS CPI LTD,CT079930580,Electricians & Electrical Contractors,63476900
SHEFFIELD CITY COUNCIL,PLACE,11853000000,CSSR CORE CONTRACT,8530001,SUBCONTRACTOR GENERAL,02/01/2018,INV-17121GREENHILL,330.00,ENERGY SYSTEMS CPI LTD,CT079930580,Electricians & Electrical Contractors,63476900
SHEFFIELD CITY COUNCIL,PLACE,11853000000,CSSR CORE CONTRACT,8530001,SUBCONTRACTOR GENERAL,02/01/2018,INV-170118-NORFOLK,625.00,ENERGY SYSTEMS CPI LTD,CT079930580,Electricians & Electrical Contractors,63476900
SHEFFIELD CITY COUNCIL,PEOPLE,13007933018,100 APPRENTICES,9120000,OTHER AGENCIES,02/01/2018,18,280.00,RICHARD LINACRE PLASTERING,CT079959230,"Plasterers, Screeders & Dry Lining Contr",63540500
SHEFFIELD CITY COUNCIL,PLACE,12000500000,SHEFF TRADING STDS,5750000,TRAINING EXPENDITURE,02/01/2018,1139,250.00,ABC FOOD LAW LIMITED,CT080979960,Training Consultants,63635500
SHEFFIELD CITY COUNCIL,PLACE,14065397442,KITCHEN/BATHRM PLANNED REPLMT,1157000,DWELLINGS MAIN CONTRACT,02/01/2018,80645,"16,856.93",JOINERY AND TIMBER CREATIONS (65) LTD,CT072746420,Kitchen Planners & Furnishers,63784800
SHEFFIELD CITY COUNCIL,PLACE,11513400000,EDUCATION SPECIAL NEEDS,7040000,OTHER VEHICLE RUNNING COSTS,02/01/2018,ADV4166,"1,450.00",ADVANCED TRAVEL,CT261203420,Airport Transfer & Transportation Servic,63797500
SHEFFIELD CITY COUNCIL,PEOPLE,13000336033,SOCIAL CARE TAXIS,7060000,EXTERNAL VEHICLE HIRE,02/01/2018,ADV4167,"2,866.00",ADVANCED TRAVEL,CT261203420,Airport Transfer & Transportation Servic,63797500
SHEFFIELD CITY COUNCIL,PEOPLE,13000336039,SEN TAXIS,7060000,EXTERNAL VEHICLE HIRE,02/01/2018,ADV4168,"5,368.00",ADVANCED TRAVEL,CT261203420,Airport Transfer & Transportation Servic,63797500
SHEFFIELD CITY COUNCIL,PEOPLE,13008533112,LDD PLACEMENTS AUG16-JUL17,9120000,OTHER AGENCIES,02/01/2018,1704,405.00,PARC,CT230625820,Disability & Special Needs - Services,63806400
SHEFFIELD CITY COUNCIL,PLACE,11850000000,RESPONSIVE REPAIRS,8530001,SUBCONTRACTOR GENERAL,02/01/2018,753,"3,026.52",MEDDO LTD,CT070661961,Property Maintenance & Repairs,64442800
SHEFFIELD CITY COUNCIL,PLACE,11850000000,RESPONSIVE REPAIRS,8530001,SUBCONTRACTOR GENERAL,02/01/2018,756,"9,093.62",MEDDO LTD,CT070661961,Property Maintenance & Repairs,64442800
SHEFFIELD CITY COUNCIL,PEOPLE,13003439142,MULBERRY LODGE,8010000,EQUIPMENT PURCHASE AND REPAIR,02/01/2018,4008595,265.94,FIRST IN SERVICE LTD,CT030216111,Catering Equipment,64466200
SHEFFIELD CITY COUNCIL,PEOPLE,13000236021,CATERING PREMISES & EQUIPMENT,6030000,REPAIRS AND MTCE - RESPONSIVE,02/01/2018,325396,"5,055.00",FIRST IN SERVICE LTD,CT030216111,Catering Equipment,64466200
SHEFFIELD CITY COUNCIL,PLACE,11850100000,HEATING MECHANICAL & ELECTRICA,8530001,SUBCONTRACTOR GENERAL,02/01/2018,8285,"7,424.02",POWERPOINT LTD,CT079930580,Electricians & Electrical Contractors,64466300
SHEFFIELD CITY COUNCIL,PLACE,11850200000,VOIDS REPAIRS,8530001,SUBCONTRACTOR GENERAL,02/01/2018,12859,278.00,A COOLE ELECTRICAL LTD,CT079930580,Electricians & Electrical Contractors,64473200
SHEFFIELD CITY COUNCIL,PLACE,12045121015,WALKING FOR PURPOSE,8490001,COACHING FEES,02/01/2018,SI-10045,300.00,THE SUIT WORKS,CT230417020,Charities & Voluntary Organisations,64579900
SHEFFIELD CITY COUNCIL,PEOPLE,14046949661,LUNCH CLUB GRANT,8180000,GRANTS,02/01/2018,MPA20180201288-0046,"1,659.00",CHRIST CHURCH STOCKSBRIDGE LUNCH CLUB,CT209919470,Clubs & Associations,64605100
SHEFFIELD CITY COUNCIL,PLACE,11850400000,NON OPERATIONAL OVERHEADS,8490000,OTHER PROFESSIONAL FEES,02/01/2018,86057914,640.00,NICEIC,CT121216729,Certification Bodies,64610700
SHEFFIELD CITY COUNCIL,PLACE,11850500000,STOCK CONTROL,8070000,STOCKS AND STORES,02/01/2018,800IN87576,665.25,YESSS A,CT270630586,Electricity Companies,64698800
SHEFFIELD CITY COUNCIL,PLACE,11850500000,STOCK CONTROL,8070000,STOCKS AND STORES,02/01/2018,800IN87571,722.55,YESSS A,CT270630586,Electricity Companies,64698800
SHEFFIELD CITY COUNCIL,PLACE,12018090204,CIP - GRANGE CRESCENT,1183000,PURCHASE OF EQUIPMENT,02/01/2018,101151,260.12,MOVECORP LTD,CT025064620,Removals & Storage - Household,64706400
SHEFFIELD CITY COUNCIL,PLACE,12076600000,CAR PARKING MANAGEMENT,8540000,SECURITY SERVICES,02/01/2018,SHEFF006,"1,242.50",PAYBYPHONE UK LTD,CT250113750,Car Parking & Garaging,64708700
SHEFFIELD CITY COUNCIL,PLACE,12076600000,CAR PARKING MANAGEMENT,8540000,SECURITY SERVICES,02/01/2018,SHEFF006,"2,745.34",PAYBYPHONE UK LTD,CT250113750,Car Parking & Garaging,64708700
SHEFFIELD CITY COUNCIL,PLACE,11513300000,WORKSHOPS,5610000,AGENCY STAFF,02/01/2018,7706,"2,618.93",QUESTECH RECRUITMENT LTD,CT160631230,Employment & Recruitment Agencies,70012100
SHEFFIELD CITY COUNCIL,PLACE,11513300000,WORKSHOPS,5610000,AGENCY STAFF,02/01/2018,7662,"2,669.79",QUESTECH RECRUITMENT LTD,CT160631230,Employment & Recruitment Agencies,70012100
SHEFFIELD CITY COUNCIL,PEOPLE,14046949661,LUNCH CLUB GRANT,8180000,GRANTS,02/01/2018,MPA20180201288-0043,500.00,PARSON CROSS FORUM,CT209919470,Clubs & Associations,70045400
SHEFFIELD CITY COUNCIL,"POLICY, PERFORMANCE AND COMMS",11800300000,COMMUNICATIONS PPC,8550001,ADVERTISING SERVICES ALLOCATED,02/01/2018,60647,569.00,CROWN LABELS MFG CO LTD,CT025946630,Labels & Tags,70053200
SHEFFIELD CITY COUNCIL,PLACE,11513400000,EDUCATION SPECIAL NEEDS,7040000,OTHER VEHICLE RUNNING COSTS,02/01/2018,23,319.00,MRG TRAVEL,CT261676350,Taxis & Private Hire,70058700
SHEFFIELD CITY COUNCIL,PLACE,11513400000,EDUCATION SPECIAL NEEDS,7040000,OTHER VEHICLE RUNNING COSTS,02/01/2018,5A,565.00,APOLLO TAXIS 2017 LIMITED,CT261676350,Taxis & Private Hire,70062300
SHEFFIELD CITY COUNCIL,PEOPLE,13000336033,SOCIAL CARE TAXIS,7060000,EXTERNAL VEHICLE HIRE,02/01/2018,3AA,"4,024.00",APOLLO TAXIS 2017 LIMITED,CT261676350,Taxis & Private Hire,70062300
SHEFFIELD CITY COUNCIL,PEOPLE,13000336039,SEN TAXIS,7060000,EXTERNAL VEHICLE HIRE,02/01/2018,4AA,"6,466.50",APOLLO TAXIS 2017 LIMITED,CT261676350,Taxis & Private Hire,70062300
SHEFFIELD CITY COUNCIL,"POLICY, PERFORMANCE AND COMMS",11402000000,PERFORMANCE & RESEARCH,8620008,COMPUTER SOFTWARE LICENCES,02/01/2018,255010,"10,350.00",CACI LTD,CT170911983,Business Information Services,70062700
SHEFFIELD CITY COUNCIL,PEOPLE,13009233050,CONSTRUCTION DESIGN CENTRE,6030000,REPAIRS AND MTCE - RESPONSIVE,02/01/2018,SI-456434,458.33,SOLLU GROUP LTD,CT070621555,Construction Contractors - General,70063300
SHEFFIELD CITY COUNCIL,PEOPLE,13009233050,CONSTRUCTION DESIGN CENTRE,6030000,REPAIRS AND MTCE - RESPONSIVE,02/01/2018,SI-456434,"1,215.00",SOLLU GROUP LTD,CT070621555,Construction Contractors - General,70063300
SHEFFIELD CITY COUNCIL,PEOPLE,13001839282,CARE PROCEEDINGS (LEGAL FEES),8470000,LEGAL FEES,02/01/2018,44,600.00,REDACTED PERSONAL DATA,CT190106700,Barristers,64515800
SHEFFIELD CITY COUNCIL,PEOPLE,13001839282,CARE PROCEEDINGS (LEGAL FEES),8470000,LEGAL FEES,02/01/2018,16,600.00,REDACTED PERSONAL DATA,CT190106700,Barristers,64515800
SHEFFIELD CITY COUNCIL,PEOPLE,13001839282,CARE PROCEEDINGS (LEGAL FEES),8470000,LEGAL FEES,02/01/2018,23,"1,950.00",REDACTED PERSONAL DATA,CT190106700,Barristers,64515800
SHEFFIELD CITY COUNCIL,PLACE,14066400000,REPAIRS AND MAINTENANCE TEAM,8470000,LEGAL FEES,02/01/2018,INV/TT146,350.00,ZENITH CHAMBERS,CT190106700,Barristers,52690600
SHEFFIELD CITY COUNCIL,PLACE,12000123004,KENNELLING,8010000,EQUIPMENT PURCHASE AND REPAIR,03/01/2018,931919554,385.70,ARCO LTD,CT024966190,Safety Equipment & Clothing,20302101
SHEFFIELD CITY COUNCIL,PLACE,12046025001,GRAVES PARK - ANIMAL FARM INC,8060000,MATERIALS AND SUPPLIES GENERAL,03/01/2018,480330,320.70,ARGO FEEDS LTD,CT109957220,Pet Foods & Animal Feeds,20302800
SHEFFIELD CITY COUNCIL,PLACE,12046025001,GRAVES PARK - ANIMAL FARM INC,8060000,MATERIALS AND SUPPLIES GENERAL,03/01/2018,480003,361.30,ARGO FEEDS LTD,CT109957220,Pet Foods & Animal Feeds,20302800
SHEFFIELD CITY COUNCIL,PLACE,12046025001,GRAVES PARK - ANIMAL FARM INC,8060000,MATERIALS AND SUPPLIES GENERAL,03/01/2018,479244,387.65,ARGO FEEDS LTD,CT109957220,Pet Foods & Animal Feeds,20302800
SHEFFIELD CITY COUNCIL,PEOPLE,13003439047,ALDINE HOUSE,8050000,FURNITURE PURCHASES,03/01/2018,1603055,573.28,ARGOS BUSINESS SOLUTIONS,CT029915970,Catalogue Showrooms,20302900
SHEFFIELD CITY COUNCIL,PLACE,11850500000,STOCK CONTROL,8070000,STOCKS AND STORES,03/01/2018,P04913906,300.00,ARNOLD LAVER & CO LTD,CT075078210,"Timber Merchants, Importers & Agents",20304500
SHEFFIELD CITY COUNCIL,PLACE,11850500000,STOCK CONTROL,8070000,STOCKS AND STORES,03/01/2018,P04913968,700.00,ARNOLD LAVER & CO LTD,CT075078210,"Timber Merchants, Importers & Agents",20304500
SHEFFIELD CITY COUNCIL,PLACE,11850500000,STOCK CONTROL,8070000,STOCKS AND STORES,03/01/2018,P04910339,975.00,ARNOLD LAVER & CO LTD,CT075078210,"Timber Merchants, Importers & Agents",20304500
SHEFFIELD CITY COUNCIL,PLACE,11850500000,STOCK CONTROL,8070000,STOCKS AND STORES,03/01/2018,P04913913,"1,511.00",ARNOLD LAVER & CO LTD,CT075078210,"Timber Merchants, Importers & Agents",20304500
SHEFFIELD CITY COUNCIL,PLACE,11850500000,STOCK CONTROL,8070000,STOCKS AND STORES,03/01/2018,P04913969,"1,863.20",ARNOLD LAVER & CO LTD,CT075078210,"Timber Merchants, Importers & Agents",20304500
SHEFFIELD CITY COUNCIL,PLACE,11850100000,HEATING MECHANICAL & ELECTRICA,8060000,MATERIALS AND SUPPLIES GENERAL,03/01/2018,30-Nov-17,298.20,BUILDERS CENTRE (SHEFFIELD) LTD,CT070511210,Builders' Merchants,20358500
SHEFFIELD CITY COUNCIL,PLACE,11850000000,RESPONSIVE REPAIRS,8060000,MATERIALS AND SUPPLIES GENERAL,03/01/2018,30NOVEMBER2017...,"3,184.22",BUILDERS CENTRE (SHEFFIELD) LTD,CT070511210,Builders' Merchants,20358500
SHEFFIELD CITY COUNCIL,PLACE,12046025155,DOG BIN SERVICE,8060000,MATERIALS AND SUPPLIES GENERAL,03/01/2018,INV0121939,476.00,CROMWELL POLYTHENE LTD,CT079959260,Plastic Products - Mnfrs,20414500
SHEFFIELD CITY COUNCIL,PEOPLE,14009346039,ADULT SOCIAL CARE PURCHASING,9190002,BLOCK CONTRACT,03/01/2018,J2112615101217,"-1,913.46",AWESOME HEALTHCARE SOLUTIONS,CT230243419,Home Care Services,64054100
SHEFFIELD CITY COUNCIL,PEOPLE,14009346039,ADULT SOCIAL CARE PURCHASING,9190002,BLOCK CONTRACT,03/01/2018,J2112615101217,"-1,207.43",AWESOME HEALTHCARE SOLUTIONS,CT230243419,Home Care Services,64054100
SHEFFIELD CITY COUNCIL,PEOPLE,14009346039,ADULT SOCIAL CARE PURCHASING,9190002,BLOCK CONTRACT,03/01/2018,J2112615101217,255.64,AWESOME HEALTHCARE SOLUTIONS,CT230243419,Home Care Services,64054100
SHEFFIELD CITY COUNCIL,PEOPLE,14009346039,ADULT SOCIAL CARE PURCHASING,9190002,BLOCK CONTRACT,03/01/2018,J2112615101217,360.80,AWESOME HEALTHCARE SOLUTIONS,CT230243419,Home Care Services,64054100
SHEFFIELD CITY COUNCIL,PEOPLE,14009346039,ADULT SOCIAL CARE PURCHASING,9190002,BLOCK CONTRACT,03/01/2018,J2112615101217,382.76,AWESOME HEALTHCARE SOLUTIONS,CT230243419,Home Care Services,64054100
SHEFFIELD CITY COUNCIL,PEOPLE,14009346039,ADULT SOCIAL CARE PURCHASING,9190002,BLOCK CONTRACT,03/01/2018,J2112615101217,423.92,AWESOME HEALTHCARE SOLUTIONS,CT230243419,Home Care Services,64054100
SHEFFIELD CITY COUNCIL,PEOPLE,14009346039,ADULT SOCIAL CARE PURCHASING,9190002,BLOCK CONTRACT,03/01/2018,J2112615101217,423.92,AWESOME HEALTHCARE SOLUTIONS,CT230243419,Home Care Services,64054100
SHEFFIELD CITY COUNCIL,PEOPLE,14009346039,ADULT SOCIAL CARE PURCHASING,9190002,BLOCK CONTRACT,03/01/2018,J2112615101217,427.00,AWESOME HEALTHCARE SOLUTIONS,CT230243419,Home Care Services,64054100
SHEFFIELD CITY COUNCIL,PEOPLE,14009346039,ADULT SOCIAL CARE PURCHASING,9190002,BLOCK CONTRACT,03/01/2018,J2112615101217,447.16,AWESOME HEALTHCARE SOLUTIONS,CT230243419,Home Care Services,64054100
SHEFFIELD CITY COUNCIL,PEOPLE,14009346039,ADULT SOCIAL CARE PURCHASING,9190002,BLOCK CONTRACT,03/01/2018,J2112615101217,457.52,AWESOME HEALTHCARE SOLUTIONS,CT230243419,Home Care Services,64054100
SHEFFIELD CITY COUNCIL,PEOPLE,14009346039,ADULT SOCIAL CARE PURCHASING,9190002,BLOCK CONTRACT,03/01/2018,J2112615101217,457.52,AWESOME HEALTHCARE SOLUTIONS,CT230243419,Home Care Services,64054100
SHEFFIELD CITY COUNCIL,PEOPLE,14009346039,ADULT SOCIAL CARE PURCHASING,9190002,BLOCK CONTRACT,03/01/2018,J2112615101217,464.92,AWESOME HEALTHCARE SOLUTIONS,CT230243419,Home Care Services,64054100
SHEFFIELD CITY COUNCIL,PEOPLE,14009346039,ADULT SOCIAL CARE PURCHASING,9190002,BLOCK CONTRACT,03/01/2018,J2112615101217,482.56,AWESOME HEALTHCARE SOLUTIONS,CT230243419,Home Care Services,64054100
SHEFFIELD CITY COUNCIL,PEOPLE,14009346039,ADULT SOCIAL CARE PURCHASING,9190002,BLOCK CONTRACT,03/01/2018,J2112615101217,507.20,AWESOME HEALTHCARE SOLUTIONS,CT230243419,Home Care Services,64054100
SHEFFIELD CITY COUNCIL,PEOPLE,14009346039,ADULT SOCIAL CARE PURCHASING,9190002,BLOCK CONTRACT,03/01/2018,J2112615101217,527.00,AWESOME HEALTHCARE SOLUTIONS,CT230243419,Home Care Services,64054100
SHEFFIELD CITY COUNCIL,PEOPLE,14009346039,ADULT SOCIAL CARE PURCHASING,9190002,BLOCK CONTRACT,03/01/2018,J2112615101217,527.06,AWESOME HEALTHCARE SOLUTIONS,CT230243419,Home Care Services,64054100
SHEFFIELD CITY COUNCIL,PEOPLE,14009346039,ADULT SOCIAL CARE PURCHASING,9190002,BLOCK CONTRACT,03/01/2018,J2112615101217,530.36,AWESOME HEALTHCARE SOLUTIONS,CT230243419,Home Care Services,64054100
SHEFFIELD CITY COUNCIL,PEOPLE,14009346039,ADULT SOCIAL CARE PURCHASING,9190002,BLOCK CONTRACT,03/01/2018,J2112642101217,487.64,COMFORT CALL LTD,CT230243419,Home Care Services,55218400
SHEFFIELD CITY COUNCIL,PEOPLE,14009346039,ADULT SOCIAL CARE PURCHASING,9190002,BLOCK CONTRACT,03/01/2018,J2112615101217,565.32,AWESOME HEALTHCARE SOLUTIONS,CT230243419,Home Care Services,64054100
SHEFFIELD CITY COUNCIL,PEOPLE,14009346039,ADULT SOCIAL CARE PURCHASING,9190002,BLOCK CONTRACT,03/01/2018,J2112615101217,565.32,AWESOME HEALTHCARE SOLUTIONS,CT230243419,Home Care Services,64054100
SHEFFIELD CITY COUNCIL,PEOPLE,14009346039,ADULT SOCIAL CARE PURCHASING,9190002,BLOCK CONTRACT,03/01/2018,J2112615101217,575.88,AWESOME HEALTHCARE SOLUTIONS,CT230243419,Home Care Services,64054100
SHEFFIELD CITY COUNCIL,PEOPLE,14009346039,ADULT SOCIAL CARE PURCHASING,9190002,BLOCK CONTRACT,03/01/2018,J2112615101217,628.60,AWESOME HEALTHCARE SOLUTIONS,CT230243419,Home Care Services,64054100
SHEFFIELD CITY COUNCIL,PEOPLE,14009346039,ADULT SOCIAL CARE PURCHASING,9190002,BLOCK CONTRACT,03/01/2018,J2112615101217,638.40,AWESOME HEALTHCARE SOLUTIONS,CT230243419,Home Care Services,64054100
SHEFFIELD CITY COUNCIL,PEOPLE,14009346039,ADULT SOCIAL CARE PURCHASING,9190002,BLOCK CONTRACT,03/01/2018,J2112615101217,646.00,AWESOME HEALTHCARE SOLUTIONS,CT230243419,Home Care Services,64054100
SHEFFIELD CITY COUNCIL,PEOPLE,14009346039,ADULT SOCIAL CARE PURCHASING,9190002,BLOCK CONTRACT,03/01/2018,J2112615101217,651.04,AWESOME HEALTHCARE SOLUTIONS,CT230243419,Home Care Services,64054100
SHEFFIELD CITY COUNCIL,PEOPLE,14009346039,ADULT SOCIAL CARE PURCHASING,9190002,BLOCK CONTRACT,03/01/2018,J2112615101217,665.84,AWESOME HEALTHCARE SOLUTIONS,CT230243419,Home Care Services,64054100
SHEFFIELD CITY COUNCIL,PEOPLE,14009346039,ADULT SOCIAL CARE PURCHASING,9190002,BLOCK CONTRACT,03/01/2018,J2112615101217,670.88,AWESOME HEALTHCARE SOLUTIONS,CT230243419,Home Care Services,64054100
SHEFFIELD CITY COUNCIL,PEOPLE,14009346039,ADULT SOCIAL CARE PURCHASING,9190002,BLOCK CONTRACT,03/01/2018,J2112615101217,680.92,AWESOME HEALTHCARE SOLUTIONS,CT230243419,Home Care Services,64054100
SHEFFIELD CITY COUNCIL,PEOPLE,14009346039,ADULT SOCIAL CARE PURCHASING,9190002,BLOCK CONTRACT,03/01/2018,J2112615101217,686.28,AWESOME HEALTHCARE SOLUTIONS,CT230243419,Home Care Services,64054100
SHEFFIELD CITY COUNCIL,PEOPLE,14009346039,ADULT SOCIAL CARE PURCHASING,9190002,BLOCK CONTRACT,03/01/2018,J2112615101217,745.36,AWESOME HEALTHCARE SOLUTIONS,CT230243419,Home Care Services,64054100
SHEFFIELD CITY COUNCIL,PEOPLE,14009346039,ADULT SOCIAL CARE PURCHASING,9190002,BLOCK CONTRACT,03/01/2018,J2112615101217,745.36,AWESOME HEALTHCARE SOLUTIONS,CT230243419,Home Care Services,64054100
SHEFFIELD CITY COUNCIL,PEOPLE,14009346039,ADULT SOCIAL CARE PURCHASING,9190002,BLOCK CONTRACT,03/01/2018,J2112615101217,770.80,AWESOME HEALTHCARE SOLUTIONS,CT230243419,Home Care Services,64054100
SHEFFIELD CITY COUNCIL,PEOPLE,14009346039,ADULT SOCIAL CARE PURCHASING,9190002,BLOCK CONTRACT,03/01/2018,J2112615101217,782.60,AWESOME HEALTHCARE SOLUTIONS,CT230243419,Home Care Services,64054100
SHEFFIELD CITY COUNCIL,PEOPLE,14009346039,ADULT SOCIAL CARE PURCHASING,9190002,BLOCK CONTRACT,03/01/2018,J2112615101217,798.64,AWESOME HEALTHCARE SOLUTIONS,CT230243419,Home Care Services,64054100
SHEFFIELD CITY COUNCIL,PEOPLE,14009346039,ADULT SOCIAL CARE PURCHASING,9190002,BLOCK CONTRACT,03/01/2018,J2112615101217,809.24,AWESOME HEALTHCARE SOLUTIONS,CT230243419,Home Care Services,64054100
SHEFFIELD CITY COUNCIL,PEOPLE,14009346039,ADULT SOCIAL CARE PURCHASING,9190002,BLOCK CONTRACT,03/01/2018,J2112615101217,849.80,AWESOME HEALTHCARE SOLUTIONS,CT230243419,Home Care Services,64054100
SHEFFIELD CITY COUNCIL,PEOPLE,14009346039,ADULT SOCIAL CARE PURCHASING,9190002,BLOCK CONTRACT,03/01/2018,J2112615101217,887.60,AWESOME HEALTHCARE SOLUTIONS,CT230243419,Home Care Services,64054100
SHEFFIELD CITY COUNCIL,PEOPLE,14009346039,ADULT SOCIAL CARE PURCHASING,9190002,BLOCK CONTRACT,03/01/2018,J2112615101217,982.72,AWESOME HEALTHCARE SOLUTIONS,CT230243419,Home Care Services,64054100
SHEFFIELD CITY COUNCIL,PEOPLE,14009346039,ADULT SOCIAL CARE PURCHASING,9190002,BLOCK CONTRACT,03/01/2018,J2112615101217,"1,266.72",AWESOME HEALTHCARE SOLUTIONS,CT230243419,Home Care Services,64054100
SHEFFIELD CITY COUNCIL,PEOPLE,13008633063,PROVIDER CONTRACT AUG17JUL18,9120000,OTHER AGENCIES,03/01/2018,88,"3,000.00",DARNALL FORUM LTD,CT050220482,Community Projects,44769700
SHEFFIELD CITY COUNCIL,PEOPLE,14009346039,ADULT SOCIAL CARE PURCHASING,9190002,BLOCK CONTRACT,03/01/2018,J2112615101217,"1,266.72",AWESOME HEALTHCARE SOLUTIONS,CT230243419,Home Care Services,64054100
SHEFFIELD CITY COUNCIL,PEOPLE,14009346039,ADULT SOCIAL CARE PURCHASING,9190002,BLOCK CONTRACT,03/01/2018,J2112615101217,"1,413.16",AWESOME HEALTHCARE SOLUTIONS,CT230243419,Home Care Services,64054100
SHEFFIELD CITY COUNCIL,PEOPLE,14009346039,ADULT SOCIAL CARE PURCHASING,9190002,BLOCK CONTRACT,03/01/2018,J2112615101217,"1,479.24",AWESOME HEALTHCARE SOLUTIONS,CT230243419,Home Care Services,64054100
SHEFFIELD CITY COUNCIL,PEOPLE,14009346039,ADULT SOCIAL CARE PURCHASING,9190002,BLOCK CONTRACT,03/01/2018,J2112615101217,"1,483.72",AWESOME HEALTHCARE SOLUTIONS,CT230243419,Home Care Services,64054100
SHEFFIELD CITY COUNCIL,PEOPLE,14009346039,ADULT SOCIAL CARE PURCHASING,9190002,BLOCK CONTRACT,03/01/2018,J2112615101217,"1,775.20",AWESOME HEALTHCARE SOLUTIONS,CT230243419,Home Care Services,64054100
SHEFFIELD CITY COUNCIL,PEOPLE,14009346039,ADULT SOCIAL CARE PURCHASING,9190002,BLOCK CONTRACT,03/01/2018,J2112615101217,"1,836.80",AWESOME HEALTHCARE SOLUTIONS,CT230243419,Home Care Services,64054100
SHEFFIELD CITY COUNCIL,PEOPLE,14009346039,ADULT SOCIAL CARE PURCHASING,9190002,BLOCK CONTRACT,03/01/2018,J2112649101217,"-5,738.83",CAREWATCH (SHEFFIELD),CT230243419,Home Care Services,32849400
SHEFFIELD CITY COUNCIL,PEOPLE,14009346039,ADULT SOCIAL CARE PURCHASING,9190002,BLOCK CONTRACT,03/01/2018,J2112601101217,-718.58,CAREWATCH (SHEFFIELD),CT230243419,Home Care Services,32849400
SHEFFIELD CITY COUNCIL,PEOPLE,14009346039,ADULT SOCIAL CARE PURCHASING,9190002,BLOCK CONTRACT,03/01/2018,J2112647101217,252.40,CAREWATCH (SHEFFIELD),CT230243419,Home Care Services,32849400
SHEFFIELD CITY COUNCIL,PEOPLE,14009346039,ADULT SOCIAL CARE PURCHASING,9190002,BLOCK CONTRACT,03/01/2018,J2112649101217,253.96,CAREWATCH (SHEFFIELD),CT230243419,Home Care Services,32849400
SHEFFIELD CITY COUNCIL,PEOPLE,14009346039,ADULT SOCIAL CARE PURCHASING,9190002,BLOCK CONTRACT,03/01/2018,J2112649101217,253.96,CAREWATCH (SHEFFIELD),CT230243419,Home Care Services,32849400
SHEFFIELD CITY COUNCIL,PEOPLE,14009346039,ADULT SOCIAL CARE PURCHASING,9190002,BLOCK CONTRACT,03/01/2018,J2112649101217,253.96,CAREWATCH (SHEFFIELD),CT230243419,Home Care Services,32849400
SHEFFIELD CITY COUNCIL,PEOPLE,14009346039,ADULT SOCIAL CARE PURCHASING,9190002,BLOCK CONTRACT,03/01/2018,J2112648101217,255.28,CAREWATCH (SHEFFIELD),CT230243419,Home Care Services,32849400
SHEFFIELD CITY COUNCIL,PEOPLE,14009346039,ADULT SOCIAL CARE PURCHASING,9190002,BLOCK CONTRACT,03/01/2018,J2112647101217,257.44,CAREWATCH (SHEFFIELD),CT230243419,Home Care Services,32849400
SHEFFIELD CITY COUNCIL,PEOPLE,14009346039,ADULT SOCIAL CARE PURCHASING,9190002,BLOCK CONTRACT,03/01/2018,J2112649101217,259.16,CAREWATCH (SHEFFIELD),CT230243419,Home Care Services,32849400
SHEFFIELD CITY COUNCIL,PEOPLE,14009346039,ADULT SOCIAL CARE PURCHASING,9190002,BLOCK CONTRACT,03/01/2018,J2112649101217,264.35,CAREWATCH (SHEFFIELD),CT230243419,Home Care Services,32849400
SHEFFIELD CITY COUNCIL,PEOPLE,14009346039,ADULT SOCIAL CARE PURCHASING,9190002,BLOCK CONTRACT,03/01/2018,J2112601101217,267.28,CAREWATCH (SHEFFIELD),CT230243419,Home Care Services,32849400
SHEFFIELD CITY COUNCIL,PEOPLE,14009346039,ADULT SOCIAL CARE PURCHASING,9190002,BLOCK CONTRACT,03/01/2018,J2112647101217,272.52,CAREWATCH (SHEFFIELD),CT230243419,Home Care Services,32849400
SHEFFIELD CITY COUNCIL,PEOPLE,14009242034,PURCHASING LEARNING DISABILITI,9190002,BLOCK CONTRACT,03/01/2018,J2112647101217,272.52,CAREWATCH (SHEFFIELD),CT230243419,Home Care Services,32849400
SHEFFIELD CITY COUNCIL,PEOPLE,14009346039,ADULT SOCIAL CARE PURCHASING,9190002,BLOCK CONTRACT,03/01/2018,J2112648101217,275.61,CAREWATCH (SHEFFIELD),CT230243419,Home Care Services,32849400
SHEFFIELD CITY COUNCIL,PEOPLE,14009346039,ADULT SOCIAL CARE PURCHASING,9190002,BLOCK CONTRACT,03/01/2018,J2112647101217,277.56,CAREWATCH (SHEFFIELD),CT230243419,Home Care Services,32849400
SHEFFIELD CITY COUNCIL,PEOPLE,14009346039,ADULT SOCIAL CARE PURCHASING,9190002,BLOCK CONTRACT,03/01/2018,J2112647101217,282.52,CAREWATCH (SHEFFIELD),CT230243419,Home Care Services,32849400
SHEFFIELD CITY COUNCIL,PEOPLE,14009346039,ADULT SOCIAL CARE PURCHASING,9190002,BLOCK CONTRACT,03/01/2018,J2112648101217,287.00,CAREWATCH (SHEFFIELD),CT230243419,Home Care Services,32849400
SHEFFIELD CITY COUNCIL,PEOPLE,14009346039,ADULT SOCIAL CARE PURCHASING,9190002,BLOCK CONTRACT,03/01/2018,J2112649101217,290.36,CAREWATCH (SHEFFIELD),CT230243419,Home Care Services,32849400
SHEFFIELD CITY COUNCIL,PEOPLE,14009346039,ADULT SOCIAL CARE PURCHASING,9190002,BLOCK CONTRACT,03/01/2018,J2112649101217,290.36,CAREWATCH (SHEFFIELD),CT230243419,Home Care Services,32849400
SHEFFIELD CITY COUNCIL,PEOPLE,14009242034,PURCHASING LEARNING DISABILITI,9190002,BLOCK CONTRACT,03/01/2018,J2112648101217,290.96,CAREWATCH (SHEFFIELD),CT230243419,Home Care Services,32849400
SHEFFIELD CITY COUNCIL,PEOPLE,14009346039,ADULT SOCIAL CARE PURCHASING,9190002,BLOCK CONTRACT,03/01/2018,J2112649101217,295.52,CAREWATCH (SHEFFIELD),CT230243419,Home Care Services,32849400
SHEFFIELD CITY COUNCIL,PEOPLE,14009242034,PURCHASING LEARNING DISABILITI,9190002,BLOCK CONTRACT,03/01/2018,J2112647101217,302.80,CAREWATCH (SHEFFIELD),CT230243419,Home Care Services,32849400
SHEFFIELD CITY COUNCIL,PEOPLE,14009346039,ADULT SOCIAL CARE PURCHASING,9190002,BLOCK CONTRACT,03/01/2018,J2112647101217,302.80,CAREWATCH (SHEFFIELD),CT230243419,Home Care Services,32849400
SHEFFIELD CITY COUNCIL,PEOPLE,14009346039,ADULT SOCIAL CARE PURCHASING,9190002,BLOCK CONTRACT,03/01/2018,J2112647101217,312.80,CAREWATCH (SHEFFIELD),CT230243419,Home Care Services,32849400
SHEFFIELD CITY COUNCIL,PEOPLE,14009346039,ADULT SOCIAL CARE PURCHASING,9190002,BLOCK CONTRACT,03/01/2018,J2112647101217,312.88,CAREWATCH (SHEFFIELD),CT230243419,Home Care Services,32849400
SHEFFIELD CITY COUNCIL,PEOPLE,14009346039,ADULT SOCIAL CARE PURCHASING,9190002,BLOCK CONTRACT,03/01/2018,J2112647101217,312.96,CAREWATCH (SHEFFIELD),CT230243419,Home Care Services,32849400
SHEFFIELD CITY COUNCIL,PEOPLE,14009346039,ADULT SOCIAL CARE PURCHASING,9190002,BLOCK CONTRACT,03/01/2018,J2112648101217,316.48,CAREWATCH (SHEFFIELD),CT230243419,Home Care Services,32849400
SHEFFIELD CITY COUNCIL,PEOPLE,14009346039,ADULT SOCIAL CARE PURCHASING,9190002,BLOCK CONTRACT,03/01/2018,J2112647101217,318.08,CAREWATCH (SHEFFIELD),CT230243419,Home Care Services,32849400
SHEFFIELD CITY COUNCIL,PEOPLE,14009346039,ADULT SOCIAL CARE PURCHASING,9190002,BLOCK CONTRACT,03/01/2018,J2112647101217,318.08,CAREWATCH (SHEFFIELD),CT230243419,Home Care Services,32849400
SHEFFIELD CITY COUNCIL,PEOPLE,14009346039,ADULT SOCIAL CARE PURCHASING,9190002,BLOCK CONTRACT,03/01/2018,J2112647101217,318.08,CAREWATCH (SHEFFIELD),CT230243419,Home Care Services,32849400
SHEFFIELD CITY COUNCIL,PEOPLE,14009346039,ADULT SOCIAL CARE PURCHASING,9190002,BLOCK CONTRACT,03/01/2018,J2112647101217,318.08,CAREWATCH (SHEFFIELD),CT230243419,Home Care Services,32849400
SHEFFIELD CITY COUNCIL,PEOPLE,14009346039,ADULT SOCIAL CARE PURCHASING,9190002,BLOCK CONTRACT,03/01/2018,J2112648101217,321.44,CAREWATCH (SHEFFIELD),CT230243419,Home Care Services,32849400
SHEFFIELD CITY COUNCIL,PEOPLE,14009346039,ADULT SOCIAL CARE PURCHASING,9190007,FUNDED HOME SUPPORT,03/01/2018,J2112648101217,321.60,CAREWATCH (SHEFFIELD),CT230243419,Home Care Services,32849400
SHEFFIELD CITY COUNCIL,PEOPLE,14009346039,ADULT SOCIAL CARE PURCHASING,9190002,BLOCK CONTRACT,03/01/2018,J2112647101217,322.92,CAREWATCH (SHEFFIELD),CT230243419,Home Care Services,32849400
SHEFFIELD CITY COUNCIL,PEOPLE,14009346039,ADULT SOCIAL CARE PURCHASING,9190002,BLOCK CONTRACT,03/01/2018,J2112649101217,326.48,CAREWATCH (SHEFFIELD),CT230243419,Home Care Services,32849400
SHEFFIELD CITY COUNCIL,PEOPLE,14009346039,ADULT SOCIAL CARE PURCHASING,9190002,BLOCK CONTRACT,03/01/2018,J2112649101217,326.48,CAREWATCH (SHEFFIELD),CT230243419,Home Care Services,32849400
SHEFFIELD CITY COUNCIL,PEOPLE,14009346039,ADULT SOCIAL CARE PURCHASING,9190002,BLOCK CONTRACT,03/01/2018,J2112649101217,326.48,CAREWATCH (SHEFFIELD),CT230243419,Home Care Services,32849400
SHEFFIELD CITY COUNCIL,PEOPLE,14009346039,ADULT SOCIAL CARE PURCHASING,9190002,BLOCK CONTRACT,03/01/2018,J2112649101217,326.48,CAREWATCH (SHEFFIELD),CT230243419,Home Care Services,32849400
SHEFFIELD CITY COUNCIL,PEOPLE,14009346039,ADULT SOCIAL CARE PURCHASING,9190002,BLOCK CONTRACT,03/01/2018,J2112649101217,326.48,CAREWATCH (SHEFFIELD),CT230243419,Home Care Services,32849400
SHEFFIELD CITY COUNCIL,PEOPLE,14009346039,ADULT SOCIAL CARE PURCHASING,9190002,BLOCK CONTRACT,03/01/2018,J2112647101217,333.08,CAREWATCH (SHEFFIELD),CT230243419,Home Care Services,32849400
SHEFFIELD CITY COUNCIL,PEOPLE,14009346039,ADULT SOCIAL CARE PURCHASING,9190002,BLOCK CONTRACT,03/01/2018,J2112601101217,340.20,CAREWATCH (SHEFFIELD),CT230243419,Home Care Services,32849400
SHEFFIELD CITY COUNCIL,PEOPLE,14009346039,ADULT SOCIAL CARE PURCHASING,9190002,BLOCK CONTRACT,03/01/2018,J2112649101217,342.04,CAREWATCH (SHEFFIELD),CT230243419,Home Care Services,32849400
SHEFFIELD CITY COUNCIL,PEOPLE,14009346039,ADULT SOCIAL CARE PURCHASING,9190002,BLOCK CONTRACT,03/01/2018,J2112649101217,347.24,CAREWATCH (SHEFFIELD),CT230243419,Home Care Services,32849400
SHEFFIELD CITY COUNCIL,PEOPLE,14009346039,ADULT SOCIAL CARE PURCHASING,9190002,BLOCK CONTRACT,03/01/2018,J2112647101217,348.20,CAREWATCH (SHEFFIELD),CT230243419,Home Care Services,32849400
SHEFFIELD CITY COUNCIL,PEOPLE,14009346039,ADULT SOCIAL CARE PURCHASING,9190002,BLOCK CONTRACT,03/01/2018,J2112647101217,348.28,CAREWATCH (SHEFFIELD),CT230243419,Home Care Services,32849400
SHEFFIELD CITY COUNCIL,PEOPLE,14009346039,ADULT SOCIAL CARE PURCHASING,9190002,BLOCK CONTRACT,03/01/2018,J2112647101217,353.36,CAREWATCH (SHEFFIELD),CT230243419,Home Care Services,32849400
SHEFFIELD CITY COUNCIL,PEOPLE,14009346039,ADULT SOCIAL CARE PURCHASING,9190002,BLOCK CONTRACT,03/01/2018,J2112647101217,353.36,CAREWATCH (SHEFFIELD),CT230243419,Home Care Services,32849400
SHEFFIELD CITY COUNCIL,PEOPLE,14009346039,ADULT SOCIAL CARE PURCHASING,9190002,BLOCK CONTRACT,03/01/2018,J2112648101217,357.28,CAREWATCH (SHEFFIELD),CT230243419,Home Care Services,32849400
SHEFFIELD CITY COUNCIL,PEOPLE,14009346039,ADULT SOCIAL CARE PURCHASING,9190002,BLOCK CONTRACT,03/01/2018,J2112649101217,362.88,CAREWATCH (SHEFFIELD),CT230243419,Home Care Services,32849400
SHEFFIELD CITY COUNCIL,PEOPLE,14009346039,ADULT SOCIAL CARE PURCHASING,9190002,BLOCK CONTRACT,03/01/2018,J2112649101217,362.88,CAREWATCH (SHEFFIELD),CT230243419,Home Care Services,32849400
SHEFFIELD CITY COUNCIL,PEOPLE,14009346039,ADULT SOCIAL CARE PURCHASING,9190002,BLOCK CONTRACT,03/01/2018,J2112649101217,362.88,CAREWATCH (SHEFFIELD),CT230243419,Home Care Services,32849400
SHEFFIELD CITY COUNCIL,PEOPLE,14009346039,ADULT SOCIAL CARE PURCHASING,9190002,BLOCK CONTRACT,03/01/2018,J2112649101217,362.88,CAREWATCH (SHEFFIELD),CT230243419,Home Care Services,32849400
SHEFFIELD CITY COUNCIL,PEOPLE,14009346039,ADULT SOCIAL CARE PURCHASING,9190002,BLOCK CONTRACT,03/01/2018,J2112649101217,362.88,CAREWATCH (SHEFFIELD),CT230243419,Home Care Services,32849400
SHEFFIELD CITY COUNCIL,PEOPLE,14009346039,ADULT SOCIAL CARE PURCHASING,9190002,BLOCK CONTRACT,03/01/2018,J2112601101217,368.56,CAREWATCH (SHEFFIELD),CT230243419,Home Care Services,32849400
SHEFFIELD CITY COUNCIL,PEOPLE,14009346039,ADULT SOCIAL CARE PURCHASING,9190002,BLOCK CONTRACT,03/01/2018,J2112648101217,377.68,CAREWATCH (SHEFFIELD),CT230243419,Home Care Services,32849400
SHEFFIELD CITY COUNCIL,PEOPLE,14009346039,ADULT SOCIAL CARE PURCHASING,9190002,BLOCK CONTRACT,03/01/2018,J2112649101217,380.94,CAREWATCH (SHEFFIELD),CT230243419,Home Care Services,32849400
SHEFFIELD CITY COUNCIL,PEOPLE,14009346039,ADULT SOCIAL CARE PURCHASING,9190002,BLOCK CONTRACT,03/01/2018,J2112648101217,382.68,CAREWATCH (SHEFFIELD),CT230243419,Home Care Services,32849400
SHEFFIELD CITY COUNCIL,PEOPLE,14009346039,ADULT SOCIAL CARE PURCHASING,9190002,BLOCK CONTRACT,03/01/2018,J2112648101217,382.68,CAREWATCH (SHEFFIELD),CT230243419,Home Care Services,32849400
SHEFFIELD CITY COUNCIL,PEOPLE,14009346039,ADULT SOCIAL CARE PURCHASING,9190002,BLOCK CONTRACT,03/01/2018,J2112649101217,383.64,CAREWATCH (SHEFFIELD),CT230243419,Home Care Services,32849400
SHEFFIELD CITY COUNCIL,PEOPLE,14009346039,ADULT SOCIAL CARE PURCHASING,9190002,BLOCK CONTRACT,03/01/2018,J2112601101217,384.76,CAREWATCH (SHEFFIELD),CT230243419,Home Care Services,32849400
SHEFFIELD CITY COUNCIL,PEOPLE,14009346039,ADULT SOCIAL CARE PURCHASING,9190002,BLOCK CONTRACT,03/01/2018,J2112648101217,387.92,CAREWATCH (SHEFFIELD),CT230243419,Home Care Services,32849400
SHEFFIELD CITY COUNCIL,PEOPLE,14009346039,ADULT SOCIAL CARE PURCHASING,9190002,BLOCK CONTRACT,03/01/2018,J2112648101217,392.84,CAREWATCH (SHEFFIELD),CT230243419,Home Care Services,32849400
SHEFFIELD CITY COUNCIL,PEOPLE,14009346039,ADULT SOCIAL CARE PURCHASING,9190002,BLOCK CONTRACT,03/01/2018,J2112649101217,396.58,CAREWATCH (SHEFFIELD),CT230243419,Home Care Services,32849400
SHEFFIELD CITY COUNCIL,PEOPLE,14009346039,ADULT SOCIAL CARE PURCHASING,9190002,BLOCK CONTRACT,03/01/2018,J2112601101217,397.04,CAREWATCH (SHEFFIELD),CT230243419,Home Care Services,32849400
SHEFFIELD CITY COUNCIL,PEOPLE,14009346039,ADULT SOCIAL CARE PURCHASING,9190002,BLOCK CONTRACT,03/01/2018,J2112649101217,404.32,CAREWATCH (SHEFFIELD),CT230243419,Home Care Services,32849400
SHEFFIELD CITY COUNCIL,PEOPLE,14009346039,ADULT SOCIAL CARE PURCHASING,9190002,BLOCK CONTRACT,03/01/2018,J2112649101217,409.40,CAREWATCH (SHEFFIELD),CT230243419,Home Care Services,32849400
SHEFFIELD CITY COUNCIL,PEOPLE,14009346039,ADULT SOCIAL CARE PURCHASING,9190002,BLOCK CONTRACT,03/01/2018,J2112649101217,419.84,CAREWATCH (SHEFFIELD),CT230243419,Home Care Services,32849400
SHEFFIELD CITY COUNCIL,PEOPLE,14009346039,ADULT SOCIAL CARE PURCHASING,9190007,FUNDED HOME SUPPORT,03/01/2018,J2112647101217,423.92,CAREWATCH (SHEFFIELD),CT230243419,Home Care Services,32849400
SHEFFIELD CITY COUNCIL,PEOPLE,14009346039,ADULT SOCIAL CARE PURCHASING,9190002,BLOCK CONTRACT,03/01/2018,J2112647101217,423.92,CAREWATCH (SHEFFIELD),CT230243419,Home Care Services,32849400
SHEFFIELD CITY COUNCIL,PEOPLE,14009346039,ADULT SOCIAL CARE PURCHASING,9190002,BLOCK CONTRACT,03/01/2018,J2112647101217,423.92,CAREWATCH (SHEFFIELD),CT230243419,Home Care Services,32849400
SHEFFIELD CITY COUNCIL,PEOPLE,14009346039,ADULT SOCIAL CARE PURCHASING,9190002,BLOCK CONTRACT,03/01/2018,J2112648101217,428.68,CAREWATCH (SHEFFIELD),CT230243419,Home Care Services,32849400
SHEFFIELD CITY COUNCIL,PEOPLE,14009346039,ADULT SOCIAL CARE PURCHASING,9190002,BLOCK CONTRACT,03/01/2018,J2112648101217,428.68,CAREWATCH (SHEFFIELD),CT230243419,Home Care Services,32849400
SHEFFIELD CITY COUNCIL,PEOPLE,14009346039,ADULT SOCIAL CARE PURCHASING,9190002,BLOCK CONTRACT,03/01/2018,J2112648101217,428.68,CAREWATCH (SHEFFIELD),CT230243419,Home Care Services,32849400
SHEFFIELD CITY COUNCIL,PEOPLE,14009346039,ADULT SOCIAL CARE PURCHASING,9190002,BLOCK CONTRACT,03/01/2018,J2112601101217,433.36,CAREWATCH (SHEFFIELD),CT230243419,Home Care Services,32849400
SHEFFIELD CITY COUNCIL,PEOPLE,14009346039,ADULT SOCIAL CARE PURCHASING,9190002,BLOCK CONTRACT,03/01/2018,J2112649101217,435.40,CAREWATCH (SHEFFIELD),CT230243419,Home Care Services,32849400
SHEFFIELD CITY COUNCIL,PEOPLE,14009346039,ADULT SOCIAL CARE PURCHASING,9190002,BLOCK CONTRACT,03/01/2018,J2112649101217,435.40,CAREWATCH (SHEFFIELD),CT230243419,Home Care Services,32849400
SHEFFIELD CITY COUNCIL,PEOPLE,14009346039,ADULT SOCIAL CARE PURCHASING,9190002,BLOCK CONTRACT,03/01/2018,J2112649101217,435.40,CAREWATCH (SHEFFIELD),CT230243419,Home Care Services,32849400
SHEFFIELD CITY COUNCIL,PEOPLE,14009346039,ADULT SOCIAL CARE PURCHASING,9190002,BLOCK CONTRACT,03/01/2018,J2112649101217,435.40,CAREWATCH (SHEFFIELD),CT230243419,Home Care Services,32849400
SHEFFIELD CITY COUNCIL,PEOPLE,14009346039,ADULT SOCIAL CARE PURCHASING,9190002,BLOCK CONTRACT,03/01/2018,J2112647101217,439.08,CAREWATCH (SHEFFIELD),CT230243419,Home Care Services,32849400
SHEFFIELD CITY COUNCIL,PEOPLE,14009346039,ADULT SOCIAL CARE PURCHASING,9190002,BLOCK CONTRACT,03/01/2018,J2112648101217,444.00,CAREWATCH (SHEFFIELD),CT230243419,Home Care Services,32849400
SHEFFIELD CITY COUNCIL,PEOPLE,14009346039,ADULT SOCIAL CARE PURCHASING,9190002,BLOCK CONTRACT,03/01/2018,J2112647101217,444.08,CAREWATCH (SHEFFIELD),CT230243419,Home Care Services,32849400
SHEFFIELD CITY COUNCIL,PEOPLE,14009346039,ADULT SOCIAL CARE PURCHASING,9190002,BLOCK CONTRACT,03/01/2018,J2112649101217,445.76,CAREWATCH (SHEFFIELD),CT230243419,Home Care Services,32849400
SHEFFIELD CITY COUNCIL,PEOPLE,14009346039,ADULT SOCIAL CARE PURCHASING,9190002,BLOCK CONTRACT,03/01/2018,J2112647101217,454.20,CAREWATCH (SHEFFIELD),CT230243419,Home Care Services,32849400
SHEFFIELD CITY COUNCIL,PEOPLE,14009346039,ADULT SOCIAL CARE PURCHASING,9190002,BLOCK CONTRACT,03/01/2018,J2112649101217,456.12,CAREWATCH (SHEFFIELD),CT230243419,Home Care Services,32849400
SHEFFIELD CITY COUNCIL,PEOPLE,14009346039,ADULT SOCIAL CARE PURCHASING,9190002,BLOCK CONTRACT,03/01/2018,J2112647101217,459.20,CAREWATCH (SHEFFIELD),CT230243419,Home Care Services,32849400
SHEFFIELD CITY COUNCIL,PEOPLE,14009346039,ADULT SOCIAL CARE PURCHASING,9190002,BLOCK CONTRACT,03/01/2018,J2112648101217,459.32,CAREWATCH (SHEFFIELD),CT230243419,Home Care Services,32849400
SHEFFIELD CITY COUNCIL,PEOPLE,14009346039,ADULT SOCIAL CARE PURCHASING,9190002,BLOCK CONTRACT,03/01/2018,J2112601101217,461.72,CAREWATCH (SHEFFIELD),CT230243419,Home Care Services,32849400
SHEFFIELD CITY COUNCIL,PEOPLE,14009346039,ADULT SOCIAL CARE PURCHASING,9190002,BLOCK CONTRACT,03/01/2018,J2112647101217,464.28,CAREWATCH (SHEFFIELD),CT230243419,Home Care Services,32849400
SHEFFIELD CITY COUNCIL,PEOPLE,14009346039,ADULT SOCIAL CARE PURCHASING,9190002,BLOCK CONTRACT,03/01/2018,J2112648101217,464.52,CAREWATCH (SHEFFIELD),CT230243419,Home Care Services,32849400
SHEFFIELD CITY COUNCIL,PEOPLE,14009346039,ADULT SOCIAL CARE PURCHASING,9190002,BLOCK CONTRACT,03/01/2018,J2112648101217,464.52,CAREWATCH (SHEFFIELD),CT230243419,Home Care Services,32849400
SHEFFIELD CITY COUNCIL,PEOPLE,14009346039,ADULT SOCIAL CARE PURCHASING,9190002,BLOCK CONTRACT,03/01/2018,J2112648101217,464.52,CAREWATCH (SHEFFIELD),CT230243419,Home Care Services,32849400
SHEFFIELD CITY COUNCIL,PEOPLE,14009346039,ADULT SOCIAL CARE PURCHASING,9190002,BLOCK CONTRACT,03/01/2018,J2112648101217,464.52,CAREWATCH (SHEFFIELD),CT230243419,Home Care Services,32849400
SHEFFIELD CITY COUNCIL,PEOPLE,14009346039,ADULT SOCIAL CARE PURCHASING,9190002,BLOCK CONTRACT,03/01/2018,J2112649101217,466.52,CAREWATCH (SHEFFIELD),CT230243419,Home Care Services,32849400
SHEFFIELD CITY COUNCIL,PEOPLE,14009346039,ADULT SOCIAL CARE PURCHASING,9190002,BLOCK CONTRACT,03/01/2018,J2112649101217,466.64,CAREWATCH (SHEFFIELD),CT230243419,Home Care Services,32849400
SHEFFIELD CITY COUNCIL,PEOPLE,14009346039,ADULT SOCIAL CARE PURCHASING,9190002,BLOCK CONTRACT,03/01/2018,J2112647101217,494.48,CAREWATCH (SHEFFIELD),CT230243419,Home Care Services,32849400
SHEFFIELD CITY COUNCIL,PEOPLE,14009346039,ADULT SOCIAL CARE PURCHASING,9190002,BLOCK CONTRACT,03/01/2018,J2112647101217,494.48,CAREWATCH (SHEFFIELD),CT230243419,Home Care Services,32849400
SHEFFIELD CITY COUNCIL,PEOPLE,14009346039,ADULT SOCIAL CARE PURCHASING,9190002,BLOCK CONTRACT,03/01/2018,J2112649101217,497.64,CAREWATCH (SHEFFIELD),CT230243419,Home Care Services,32849400
SHEFFIELD CITY COUNCIL,PEOPLE,14009346039,ADULT SOCIAL CARE PURCHASING,9190002,BLOCK CONTRACT,03/01/2018,J2112648101217,500.16,CAREWATCH (SHEFFIELD),CT230243419,Home Care Services,32849400
SHEFFIELD CITY COUNCIL,PEOPLE,14009346039,ADULT SOCIAL CARE PURCHASING,9190002,BLOCK CONTRACT,03/01/2018,J2112649101217,507.92,CAREWATCH (SHEFFIELD),CT230243419,Home Care Services,32849400
SHEFFIELD CITY COUNCIL,PEOPLE,14009346039,ADULT SOCIAL CARE PURCHASING,9190002,BLOCK CONTRACT,03/01/2018,J2112649101217,507.92,CAREWATCH (SHEFFIELD),CT230243419,Home Care Services,32849400
SHEFFIELD CITY COUNCIL,PEOPLE,14009346039,ADULT SOCIAL CARE PURCHASING,9190002,BLOCK CONTRACT,03/01/2018,J2112649101217,507.92,CAREWATCH (SHEFFIELD),CT230243419,Home Care Services,32849400
SHEFFIELD CITY COUNCIL,PEOPLE,14009346039,ADULT SOCIAL CARE PURCHASING,9190002,BLOCK CONTRACT,03/01/2018,J2112649101217,507.92,CAREWATCH (SHEFFIELD),CT230243419,Home Care Services,32849400
SHEFFIELD CITY COUNCIL,PEOPLE,14009346039,ADULT SOCIAL CARE PURCHASING,9190002,BLOCK CONTRACT,03/01/2018,J2112649101217,507.92,CAREWATCH (SHEFFIELD),CT230243419,Home Care Services,32849400
SHEFFIELD CITY COUNCIL,PEOPLE,14009346039,ADULT SOCIAL CARE PURCHASING,9190002,BLOCK CONTRACT,03/01/2018,J2112601101217,510.44,CAREWATCH (SHEFFIELD),CT230243419,Home Care Services,32849400
SHEFFIELD CITY COUNCIL,PEOPLE,14009346039,ADULT SOCIAL CARE PURCHASING,9190002,BLOCK CONTRACT,03/01/2018,J2112648101217,515.32,CAREWATCH (SHEFFIELD),CT230243419,Home Care Services,32849400
SHEFFIELD CITY COUNCIL,PEOPLE,14009346039,ADULT SOCIAL CARE PURCHASING,9190002,BLOCK CONTRACT,03/01/2018,J2112648101217,516.78,CAREWATCH (SHEFFIELD),CT230243419,Home Care Services,32849400
SHEFFIELD CITY COUNCIL,PEOPLE,14009346039,ADULT SOCIAL CARE PURCHASING,9190002,BLOCK CONTRACT,03/01/2018,J2112647101217,519.72,CAREWATCH (SHEFFIELD),CT230243419,Home Care Services,32849400
SHEFFIELD CITY COUNCIL,PEOPLE,14009346039,ADULT SOCIAL CARE PURCHASING,9190002,BLOCK CONTRACT,03/01/2018,J2112648101217,520.48,CAREWATCH (SHEFFIELD),CT230243419,Home Care Services,32849400
SHEFFIELD CITY COUNCIL,PEOPLE,14009346039,ADULT SOCIAL CARE PURCHASING,9190002,BLOCK CONTRACT,03/01/2018,J2112647101217,524.84,CAREWATCH (SHEFFIELD),CT230243419,Home Care Services,32849400
SHEFFIELD CITY COUNCIL,PEOPLE,14009346039,ADULT SOCIAL CARE PURCHASING,9190002,BLOCK CONTRACT,03/01/2018,J2112648101217,530.68,CAREWATCH (SHEFFIELD),CT230243419,Home Care Services,32849400
SHEFFIELD CITY COUNCIL,PEOPLE,14009346039,ADULT SOCIAL CARE PURCHASING,9190002,BLOCK CONTRACT,03/01/2018,J2112648101217,535.92,CAREWATCH (SHEFFIELD),CT230243419,Home Care Services,32849400
SHEFFIELD CITY COUNCIL,PEOPLE,14009346039,ADULT SOCIAL CARE PURCHASING,9190002,BLOCK CONTRACT,03/01/2018,J2112648101217,535.92,CAREWATCH (SHEFFIELD),CT230243419,Home Care Services,32849400
SHEFFIELD CITY COUNCIL,PEOPLE,14009346039,ADULT SOCIAL CARE PURCHASING,9190002,BLOCK CONTRACT,03/01/2018,J2112648101217,535.92,CAREWATCH (SHEFFIELD),CT230243419,Home Care Services,32849400
SHEFFIELD CITY COUNCIL,PEOPLE,14009346039,ADULT SOCIAL CARE PURCHASING,9190002,BLOCK CONTRACT,03/01/2018,J2112648101217,535.92,CAREWATCH (SHEFFIELD),CT230243419,Home Care Services,32849400
SHEFFIELD CITY COUNCIL,PEOPLE,14009346039,ADULT SOCIAL CARE PURCHASING,9190002,BLOCK CONTRACT,03/01/2018,J2112648101217,535.92,CAREWATCH (SHEFFIELD),CT230243419,Home Care Services,32849400
SHEFFIELD CITY COUNCIL,PEOPLE,14009346039,ADULT SOCIAL CARE PURCHASING,9190002,BLOCK CONTRACT,03/01/2018,J2112649101217,539.04,CAREWATCH (SHEFFIELD),CT230243419,Home Care Services,32849400
SHEFFIELD CITY COUNCIL,PEOPLE,14009346039,ADULT SOCIAL CARE PURCHASING,9190002,BLOCK CONTRACT,03/01/2018,J2112648101217,540.88,CAREWATCH (SHEFFIELD),CT230243419,Home Care Services,32849400
SHEFFIELD CITY COUNCIL,PEOPLE,14009346039,ADULT SOCIAL CARE PURCHASING,9190002,BLOCK CONTRACT,03/01/2018,J2112649101217,544.32,CAREWATCH (SHEFFIELD),CT230243419,Home Care Services,32849400
SHEFFIELD CITY COUNCIL,PEOPLE,14009346039,ADULT SOCIAL CARE PURCHASING,9190002,BLOCK CONTRACT,03/01/2018,J2112647101217,545.04,CAREWATCH (SHEFFIELD),CT230243419,Home Care Services,32849400
SHEFFIELD CITY COUNCIL,PEOPLE,14009346039,ADULT SOCIAL CARE PURCHASING,9190002,BLOCK CONTRACT,03/01/2018,J2112648101217,546.04,CAREWATCH (SHEFFIELD),CT230243419,Home Care Services,32849400
SHEFFIELD CITY COUNCIL,PEOPLE,14009346039,ADULT SOCIAL CARE PURCHASING,9190002,BLOCK CONTRACT,03/01/2018,J2112649101217,549.40,CAREWATCH (SHEFFIELD),CT230243419,Home Care Services,32849400
SHEFFIELD CITY COUNCIL,PEOPLE,14009346039,ADULT SOCIAL CARE PURCHASING,9190002,BLOCK CONTRACT,03/01/2018,J2112648101217,551.16,CAREWATCH (SHEFFIELD),CT230243419,Home Care Services,32849400
SHEFFIELD CITY COUNCIL,PEOPLE,14009346039,ADULT SOCIAL CARE PURCHASING,9190002,BLOCK CONTRACT,03/01/2018,J2112648101217,551.24,CAREWATCH (SHEFFIELD),CT230243419,Home Care Services,32849400
SHEFFIELD CITY COUNCIL,PEOPLE,14009346039,ADULT SOCIAL CARE PURCHASING,9190002,BLOCK CONTRACT,03/01/2018,J2112647101217,555.04,CAREWATCH (SHEFFIELD),CT230243419,Home Care Services,32849400
SHEFFIELD CITY COUNCIL,PEOPLE,14009346039,ADULT SOCIAL CARE PURCHASING,9190002,BLOCK CONTRACT,03/01/2018,J2112647101217,555.04,CAREWATCH (SHEFFIELD),CT230243419,Home Care Services,32849400
SHEFFIELD CITY COUNCIL,PEOPLE,14009346039,ADULT SOCIAL CARE PURCHASING,9190002,BLOCK CONTRACT,03/01/2018,J2112648101217,556.28,CAREWATCH (SHEFFIELD),CT230243419,Home Care Services,32849400
SHEFFIELD CITY COUNCIL,PEOPLE,14009346039,ADULT SOCIAL CARE PURCHASING,9190002,BLOCK CONTRACT,03/01/2018,J2112649101217,559.80,CAREWATCH (SHEFFIELD),CT230243419,Home Care Services,32849400
SHEFFIELD CITY COUNCIL,PEOPLE,14009346039,ADULT SOCIAL CARE PURCHASING,9190002,BLOCK CONTRACT,03/01/2018,J2112647101217,565.32,CAREWATCH (SHEFFIELD),CT230243419,Home Care Services,32849400
SHEFFIELD CITY COUNCIL,PEOPLE,14009346039,ADULT SOCIAL CARE PURCHASING,9190002,BLOCK CONTRACT,03/01/2018,J2112647101217,565.32,CAREWATCH (SHEFFIELD),CT230243419,Home Care Services,32849400
SHEFFIELD CITY COUNCIL,PEOPLE,14009346039,ADULT SOCIAL CARE PURCHASING,9190002,BLOCK CONTRACT,03/01/2018,J2112601101217,567.00,CAREWATCH (SHEFFIELD),CT230243419,Home Care Services,32849400
SHEFFIELD CITY COUNCIL,PEOPLE,14009346039,ADULT SOCIAL CARE PURCHASING,9190002,BLOCK CONTRACT,03/01/2018,J2112601101217,571.04,CAREWATCH (SHEFFIELD),CT230243419,Home Care Services,32849400
SHEFFIELD CITY COUNCIL,PEOPLE,14009346039,ADULT SOCIAL CARE PURCHASING,9190002,BLOCK CONTRACT,03/01/2018,J2112648101217,571.48,CAREWATCH (SHEFFIELD),CT230243419,Home Care Services,32849400
SHEFFIELD CITY COUNCIL,PEOPLE,14009346039,ADULT SOCIAL CARE PURCHASING,9190002,BLOCK CONTRACT,03/01/2018,J2112648101217,571.48,CAREWATCH (SHEFFIELD),CT230243419,Home Care Services,32849400
SHEFFIELD CITY COUNCIL,PEOPLE,14009346039,ADULT SOCIAL CARE PURCHASING,9190002,BLOCK CONTRACT,03/01/2018,J2112648101217,571.48,CAREWATCH (SHEFFIELD),CT230243419,Home Care Services,32849400
SHEFFIELD CITY COUNCIL,PEOPLE,14009346039,ADULT SOCIAL CARE PURCHASING,9190002,BLOCK CONTRACT,03/01/2018,J2112648101217,576.72,CAREWATCH (SHEFFIELD),CT230243419,Home Care Services,32849400
SHEFFIELD CITY COUNCIL,PEOPLE,14009346039,ADULT SOCIAL CARE PURCHASING,9190002,BLOCK CONTRACT,03/01/2018,J2112649101217,580.44,CAREWATCH (SHEFFIELD),CT230243419,Home Care Services,32849400
SHEFFIELD CITY COUNCIL,PEOPLE,14009346039,ADULT SOCIAL CARE PURCHASING,9190002,BLOCK CONTRACT,03/01/2018,J2112647101217,590.44,CAREWATCH (SHEFFIELD),CT230243419,Home Care Services,32849400
SHEFFIELD CITY COUNCIL,PEOPLE,14009346039,ADULT SOCIAL CARE PURCHASING,9190002,BLOCK CONTRACT,03/01/2018,J2112649101217,590.92,CAREWATCH (SHEFFIELD),CT230243419,Home Care Services,32849400
SHEFFIELD CITY COUNCIL,PEOPLE,14009346039,ADULT SOCIAL CARE PURCHASING,9190002,BLOCK CONTRACT,03/01/2018,J2112648101217,592.08,CAREWATCH (SHEFFIELD),CT230243419,Home Care Services,32849400
SHEFFIELD CITY COUNCIL,PEOPLE,14009346039,ADULT SOCIAL CARE PURCHASING,9190002,BLOCK CONTRACT,03/01/2018,J2112647101217,600.60,CAREWATCH (SHEFFIELD),CT230243419,Home Care Services,32849400
SHEFFIELD CITY COUNCIL,PEOPLE,14009346039,ADULT SOCIAL CARE PURCHASING,9190002,BLOCK CONTRACT,03/01/2018,J2112648101217,602.12,CAREWATCH (SHEFFIELD),CT230243419,Home Care Services,32849400
SHEFFIELD CITY COUNCIL,PEOPLE,14009346039,ADULT SOCIAL CARE PURCHASING,9190002,BLOCK CONTRACT,03/01/2018,J2112647101217,605.60,CAREWATCH (SHEFFIELD),CT230243419,Home Care Services,32849400
SHEFFIELD CITY COUNCIL,PEOPLE,14009346039,ADULT SOCIAL CARE PURCHASING,9190002,BLOCK CONTRACT,03/01/2018,J2112649101217,611.56,CAREWATCH (SHEFFIELD),CT230243419,Home Care Services,32849400
SHEFFIELD CITY COUNCIL,PEOPLE,14009346039,ADULT SOCIAL CARE PURCHASING,9190002,BLOCK CONTRACT,03/01/2018,J2112648101217,612.44,CAREWATCH (SHEFFIELD),CT230243419,Home Care Services,32849400
SHEFFIELD CITY COUNCIL,PEOPLE,14009346039,ADULT SOCIAL CARE PURCHASING,9190002,BLOCK CONTRACT,03/01/2018,J2112649101217,622.04,CAREWATCH (SHEFFIELD),CT230243419,Home Care Services,32849400
SHEFFIELD CITY COUNCIL,PEOPLE,14009346039,ADULT SOCIAL CARE PURCHASING,9190002,BLOCK CONTRACT,03/01/2018,J2112647101217,625.88,CAREWATCH (SHEFFIELD),CT230243419,Home Care Services,32849400
SHEFFIELD CITY COUNCIL,PEOPLE,14009346039,ADULT SOCIAL CARE PURCHASING,9190002,BLOCK CONTRACT,03/01/2018,J2112647101217,635.88,CAREWATCH (SHEFFIELD),CT230243419,Home Care Services,32849400
SHEFFIELD CITY COUNCIL,PEOPLE,14009346039,ADULT SOCIAL CARE PURCHASING,9190002,BLOCK CONTRACT,03/01/2018,J2112647101217,635.88,CAREWATCH (SHEFFIELD),CT230243419,Home Care Services,32849400
SHEFFIELD CITY COUNCIL,PEOPLE,14009346039,ADULT SOCIAL CARE PURCHASING,9190002,BLOCK CONTRACT,03/01/2018,J2112647101217,635.88,CAREWATCH (SHEFFIELD),CT230243419,Home Care Services,32849400
SHEFFIELD CITY COUNCIL,PEOPLE,14009346039,ADULT SOCIAL CARE PURCHASING,9190002,BLOCK CONTRACT,03/01/2018,J2112649101217,642.64,CAREWATCH (SHEFFIELD),CT230243419,Home Care Services,32849400
SHEFFIELD CITY COUNCIL,PEOPLE,14009346039,ADULT SOCIAL CARE PURCHASING,9190002,BLOCK CONTRACT,03/01/2018,J2112648101217,643.16,CAREWATCH (SHEFFIELD),CT230243419,Home Care Services,32849400
SHEFFIELD CITY COUNCIL,PEOPLE,14009346039,ADULT SOCIAL CARE PURCHASING,9190002,BLOCK CONTRACT,03/01/2018,J2112648101217,643.16,CAREWATCH (SHEFFIELD),CT230243419,Home Care Services,32849400
SHEFFIELD CITY COUNCIL,PEOPLE,14009346039,ADULT SOCIAL CARE PURCHASING,9190002,BLOCK CONTRACT,03/01/2018,J2112648101217,648.24,CAREWATCH (SHEFFIELD),CT230243419,Home Care Services,32849400
SHEFFIELD CITY COUNCIL,PEOPLE,14009346039,ADULT SOCIAL CARE PURCHASING,9190002,BLOCK CONTRACT,03/01/2018,J2112649101217,653.12,CAREWATCH (SHEFFIELD),CT230243419,Home Care Services,32849400
SHEFFIELD CITY COUNCIL,PEOPLE,14009346039,ADULT SOCIAL CARE PURCHASING,9190002,BLOCK CONTRACT,03/01/2018,J2112649101217,653.24,CAREWATCH (SHEFFIELD),CT230243419,Home Care Services,32849400
SHEFFIELD CITY COUNCIL,PEOPLE,14009346039,ADULT SOCIAL CARE PURCHASING,9190002,BLOCK CONTRACT,03/01/2018,J2112649101217,653.24,CAREWATCH (SHEFFIELD),CT230243419,Home Care Services,32849400
SHEFFIELD CITY COUNCIL,PEOPLE,14009346039,ADULT SOCIAL CARE PURCHASING,9190002,BLOCK CONTRACT,03/01/2018,J2112649101217,653.24,CAREWATCH (SHEFFIELD),CT230243419,Home Care Services,32849400
SHEFFIELD CITY COUNCIL,PEOPLE,14009346039,ADULT SOCIAL CARE PURCHASING,9190002,BLOCK CONTRACT,03/01/2018,J2112649101217,653.24,CAREWATCH (SHEFFIELD),CT230243419,Home Care Services,32849400
SHEFFIELD CITY COUNCIL,PEOPLE,14009346039,ADULT SOCIAL CARE PURCHASING,9190002,BLOCK CONTRACT,03/01/2018,J2112648101217,658.40,CAREWATCH (SHEFFIELD),CT230243419,Home Care Services,32849400
SHEFFIELD CITY COUNCIL,PEOPLE,14009346039,ADULT SOCIAL CARE PURCHASING,9190002,BLOCK CONTRACT,03/01/2018,J2112647101217,661.20,CAREWATCH (SHEFFIELD),CT230243419,Home Care Services,32849400
SHEFFIELD CITY COUNCIL,PEOPLE,14009346039,ADULT SOCIAL CARE PURCHASING,9190002,BLOCK CONTRACT,03/01/2018,J2112648101217,666.14,CAREWATCH (SHEFFIELD),CT230243419,Home Care Services,32849400
SHEFFIELD CITY COUNCIL,PEOPLE,14009346039,ADULT SOCIAL CARE PURCHASING,9190002,BLOCK CONTRACT,03/01/2018,J2112649101217,668.76,CAREWATCH (SHEFFIELD),CT230243419,Home Care Services,32849400
SHEFFIELD CITY COUNCIL,PEOPLE,14009346039,ADULT SOCIAL CARE PURCHASING,9190002,BLOCK CONTRACT,03/01/2018,J2112649101217,673.96,CAREWATCH (SHEFFIELD),CT230243419,Home Care Services,32849400
SHEFFIELD CITY COUNCIL,PEOPLE,14009346039,ADULT SOCIAL CARE PURCHASING,9190002,BLOCK CONTRACT,03/01/2018,J2112648101217,678.72,CAREWATCH (SHEFFIELD),CT230243419,Home Care Services,32849400
SHEFFIELD CITY COUNCIL,PEOPLE,14009346039,ADULT SOCIAL CARE PURCHASING,9190002,BLOCK CONTRACT,03/01/2018,J2112648101217,678.72,CAREWATCH (SHEFFIELD),CT230243419,Home Care Services,32849400
SHEFFIELD CITY COUNCIL,PEOPLE,14009346039,ADULT SOCIAL CARE PURCHASING,9190002,BLOCK CONTRACT,03/01/2018,J2112647101217,686.44,CAREWATCH (SHEFFIELD),CT230243419,Home Care Services,32849400
SHEFFIELD CITY COUNCIL,PEOPLE,14009346039,ADULT SOCIAL CARE PURCHASING,9190002,BLOCK CONTRACT,03/01/2018,J2112649101217,689.36,CAREWATCH (SHEFFIELD),CT230243419,Home Care Services,32849400
SHEFFIELD CITY COUNCIL,PEOPLE,14009346039,ADULT SOCIAL CARE PURCHASING,9190002,BLOCK CONTRACT,03/01/2018,J2112649101217,689.36,CAREWATCH (SHEFFIELD),CT230243419,Home Care Services,32849400
SHEFFIELD CITY COUNCIL,PEOPLE,14009346039,ADULT SOCIAL CARE PURCHASING,9190002,BLOCK CONTRACT,03/01/2018,J2112649101217,694.64,CAREWATCH (SHEFFIELD),CT230243419,Home Care Services,32849400
SHEFFIELD CITY COUNCIL,PEOPLE,14009346039,ADULT SOCIAL CARE PURCHASING,9190002,BLOCK CONTRACT,03/01/2018,J2112647101217,696.44,CAREWATCH (SHEFFIELD),CT230243419,Home Care Services,32849400
SHEFFIELD CITY COUNCIL,PEOPLE,14009346039,ADULT SOCIAL CARE PURCHASING,9190002,BLOCK CONTRACT,03/01/2018,J2112647101217,696.44,CAREWATCH (SHEFFIELD),CT230243419,Home Care Services,32849400
SHEFFIELD CITY COUNCIL,PEOPLE,14009346039,ADULT SOCIAL CARE PURCHASING,9190002,BLOCK CONTRACT,03/01/2018,J2112647101217,696.48,CAREWATCH (SHEFFIELD),CT230243419,Home Care Services,32849400
SHEFFIELD CITY COUNCIL,PEOPLE,14009346039,ADULT SOCIAL CARE PURCHASING,9190002,BLOCK CONTRACT,03/01/2018,J2112648101217,704.32,CAREWATCH (SHEFFIELD),CT230243419,Home Care Services,32849400
SHEFFIELD CITY COUNCIL,PEOPLE,14009346039,ADULT SOCIAL CARE PURCHASING,9190002,BLOCK CONTRACT,03/01/2018,J2112648101217,704.40,CAREWATCH (SHEFFIELD),CT230243419,Home Care Services,32849400
SHEFFIELD CITY COUNCIL,PEOPLE,14009346039,ADULT SOCIAL CARE PURCHASING,9190002,BLOCK CONTRACT,03/01/2018,J2112647101217,706.44,CAREWATCH (SHEFFIELD),CT230243419,Home Care Services,32849400
SHEFFIELD CITY COUNCIL,PEOPLE,14009346039,ADULT SOCIAL CARE PURCHASING,9190002,BLOCK CONTRACT,03/01/2018,J2112647101217,711.60,CAREWATCH (SHEFFIELD),CT230243419,Home Care Services,32849400
SHEFFIELD CITY COUNCIL,PEOPLE,14009346039,ADULT SOCIAL CARE PURCHASING,9190002,BLOCK CONTRACT,03/01/2018,J2112648101217,714.56,CAREWATCH (SHEFFIELD),CT230243419,Home Care Services,32849400
SHEFFIELD CITY COUNCIL,PEOPLE,14009346039,ADULT SOCIAL CARE PURCHASING,9190002,BLOCK CONTRACT,03/01/2018,J2112605101217,721.72,CAREWATCH (SHEFFIELD),CT230243419,Home Care Services,32849400
SHEFFIELD CITY COUNCIL,PEOPLE,14009346039,ADULT SOCIAL CARE PURCHASING,9190002,BLOCK CONTRACT,03/01/2018,J2112649101217,725.76,CAREWATCH (SHEFFIELD),CT230243419,Home Care Services,32849400
SHEFFIELD CITY COUNCIL,PEOPLE,14009346039,ADULT SOCIAL CARE PURCHASING,9190002,BLOCK CONTRACT,03/01/2018,J2112649101217,725.76,CAREWATCH (SHEFFIELD),CT230243419,Home Care Services,32849400
SHEFFIELD CITY COUNCIL,PEOPLE,14009346039,ADULT SOCIAL CARE PURCHASING,9190002,BLOCK CONTRACT,03/01/2018,J2112647101217,726.72,CAREWATCH (SHEFFIELD),CT230243419,Home Care Services,32849400
SHEFFIELD CITY COUNCIL,PEOPLE,14009346039,ADULT SOCIAL CARE PURCHASING,9190002,BLOCK CONTRACT,03/01/2018,J2112648101217,734.92,CAREWATCH (SHEFFIELD),CT230243419,Home Care Services,32849400
SHEFFIELD CITY COUNCIL,PEOPLE,14009346039,ADULT SOCIAL CARE PURCHASING,9190002,BLOCK CONTRACT,03/01/2018,J2112647101217,736.84,CAREWATCH (SHEFFIELD),CT230243419,Home Care Services,32849400
SHEFFIELD CITY COUNCIL,PEOPLE,14009346039,ADULT SOCIAL CARE PURCHASING,9190002,BLOCK CONTRACT,03/01/2018,J2112648101217,740.08,CAREWATCH (SHEFFIELD),CT230243419,Home Care Services,32849400
SHEFFIELD CITY COUNCIL,PEOPLE,14009346039,ADULT SOCIAL CARE PURCHASING,9190002,BLOCK CONTRACT,03/01/2018,J2112647101217,757.00,CAREWATCH (SHEFFIELD),CT230243419,Home Care Services,32849400
SHEFFIELD CITY COUNCIL,PEOPLE,14009346039,ADULT SOCIAL CARE PURCHASING,9190002,BLOCK CONTRACT,03/01/2018,J2112648101217,760.44,CAREWATCH (SHEFFIELD),CT230243419,Home Care Services,32849400
SHEFFIELD CITY COUNCIL,PEOPLE,14009346039,ADULT SOCIAL CARE PURCHASING,9190002,BLOCK CONTRACT,03/01/2018,J2112649101217,761.88,CAREWATCH (SHEFFIELD),CT230243419,Home Care Services,32849400
SHEFFIELD CITY COUNCIL,PEOPLE,14009346039,ADULT SOCIAL CARE PURCHASING,9190002,BLOCK CONTRACT,03/01/2018,J2112647101217,767.08,CAREWATCH (SHEFFIELD),CT230243419,Home Care Services,32849400
SHEFFIELD CITY COUNCIL,PEOPLE,14009346039,ADULT SOCIAL CARE PURCHASING,9190002,BLOCK CONTRACT,03/01/2018,J2112648101217,775.80,CAREWATCH (SHEFFIELD),CT230243419,Home Care Services,32849400
SHEFFIELD CITY COUNCIL,PEOPLE,14009346039,ADULT SOCIAL CARE PURCHASING,9190002,BLOCK CONTRACT,03/01/2018,J2112647101217,777.28,CAREWATCH (SHEFFIELD),CT230243419,Home Care Services,32849400
SHEFFIELD CITY COUNCIL,PEOPLE,14009346039,ADULT SOCIAL CARE PURCHASING,9190002,BLOCK CONTRACT,03/01/2018,J2112649101217,782.80,CAREWATCH (SHEFFIELD),CT230243419,Home Care Services,32849400
SHEFFIELD CITY COUNCIL,PEOPLE,14009346039,ADULT SOCIAL CARE PURCHASING,9190002,BLOCK CONTRACT,03/01/2018,J2112648101217,785.96,CAREWATCH (SHEFFIELD),CT230243419,Home Care Services,32849400
SHEFFIELD CITY COUNCIL,PEOPLE,14009346039,ADULT SOCIAL CARE PURCHASING,9190002,BLOCK CONTRACT,03/01/2018,J2112648101217,785.96,CAREWATCH (SHEFFIELD),CT230243419,Home Care Services,32849400
SHEFFIELD CITY COUNCIL,PEOPLE,14009346039,ADULT SOCIAL CARE PURCHASING,9190002,BLOCK CONTRACT,03/01/2018,J2112649101217,792.96,CAREWATCH (SHEFFIELD),CT230243419,Home Care Services,32849400
SHEFFIELD CITY COUNCIL,PEOPLE,14009346039,ADULT SOCIAL CARE PURCHASING,9190002,BLOCK CONTRACT,03/01/2018,J2112648101217,808.94,CAREWATCH (SHEFFIELD),CT230243419,Home Care Services,32849400
SHEFFIELD CITY COUNCIL,PEOPLE,14009346039,ADULT SOCIAL CARE PURCHASING,9190002,BLOCK CONTRACT,03/01/2018,J2112648101217,811.36,CAREWATCH (SHEFFIELD),CT230243419,Home Care Services,32849400
SHEFFIELD CITY COUNCIL,PEOPLE,14009346039,ADULT SOCIAL CARE PURCHASING,9190002,BLOCK CONTRACT,03/01/2018,J2112647101217,812.56,CAREWATCH (SHEFFIELD),CT230243419,Home Care Services,32849400
SHEFFIELD CITY COUNCIL,PEOPLE,14009346039,ADULT SOCIAL CARE PURCHASING,9190002,BLOCK CONTRACT,03/01/2018,J2112649101217,819.12,CAREWATCH (SHEFFIELD),CT230243419,Home Care Services,32849400
SHEFFIELD CITY COUNCIL,PEOPLE,14009346039,ADULT SOCIAL CARE PURCHASING,9190002,BLOCK CONTRACT,03/01/2018,J2112648101217,821.72,CAREWATCH (SHEFFIELD),CT230243419,Home Care Services,32849400
SHEFFIELD CITY COUNCIL,PEOPLE,14009346039,ADULT SOCIAL CARE PURCHASING,9190002,BLOCK CONTRACT,03/01/2018,J2112648101217,822.96,CAREWATCH (SHEFFIELD),CT230243419,Home Care Services,32849400
SHEFFIELD CITY COUNCIL,PEOPLE,14009346039,ADULT SOCIAL CARE PURCHASING,9190002,BLOCK CONTRACT,03/01/2018,J2112649101217,834.40,CAREWATCH (SHEFFIELD),CT230243419,Home Care Services,32849400
SHEFFIELD CITY COUNCIL,PEOPLE,14009242034,PURCHASING LEARNING DISABILITI,9190002,BLOCK CONTRACT,03/01/2018,J2112649101217,839.72,CAREWATCH (SHEFFIELD),CT230243419,Home Care Services,32849400
SHEFFIELD CITY COUNCIL,PEOPLE,14009346039,ADULT SOCIAL CARE PURCHASING,9190002,BLOCK CONTRACT,03/01/2018,J2112647101217,847.84,CAREWATCH (SHEFFIELD),CT230243419,Home Care Services,32849400
SHEFFIELD CITY COUNCIL,PEOPLE,14009242034,PURCHASING LEARNING DISABILITI,9190002,BLOCK CONTRACT,03/01/2018,J2112647101217,847.84,CAREWATCH (SHEFFIELD),CT230243419,Home Care Services,32849400
SHEFFIELD CITY COUNCIL,PEOPLE,14009346039,ADULT SOCIAL CARE PURCHASING,9190002,BLOCK CONTRACT,03/01/2018,J2112647101217,847.84,CAREWATCH (SHEFFIELD),CT230243419,Home Care Services,32849400
SHEFFIELD CITY COUNCIL,PEOPLE,14009346039,ADULT SOCIAL CARE PURCHASING,9190002,BLOCK CONTRACT,03/01/2018,J2112647101217,847.84,CAREWATCH (SHEFFIELD),CT230243419,Home Care Services,32849400
SHEFFIELD CITY COUNCIL,PEOPLE,14009346039,ADULT SOCIAL CARE PURCHASING,9190002,BLOCK CONTRACT,03/01/2018,J2112648101217,857.36,CAREWATCH (SHEFFIELD),CT230243419,Home Care Services,32849400
SHEFFIELD CITY COUNCIL,PEOPLE,14009346039,ADULT SOCIAL CARE PURCHASING,9190002,BLOCK CONTRACT,03/01/2018,J2112648101217,857.36,CAREWATCH (SHEFFIELD),CT230243419,Home Care Services,32849400
SHEFFIELD CITY COUNCIL,PEOPLE,14009346039,ADULT SOCIAL CARE PURCHASING,9190002,BLOCK CONTRACT,03/01/2018,J2112648101217,857.36,CAREWATCH (SHEFFIELD),CT230243419,Home Care Services,32849400
SHEFFIELD CITY COUNCIL,PEOPLE,14009346039,ADULT SOCIAL CARE PURCHASING,9190002,BLOCK CONTRACT,03/01/2018,J2112647101217,873.12,CAREWATCH (SHEFFIELD),CT230243419,Home Care Services,32849400
SHEFFIELD CITY COUNCIL,PEOPLE,14009346039,ADULT SOCIAL CARE PURCHASING,9190002,BLOCK CONTRACT,03/01/2018,J2112647101217,873.12,CAREWATCH (SHEFFIELD),CT230243419,Home Care Services,32849400
SHEFFIELD CITY COUNCIL,PEOPLE,14009346039,ADULT SOCIAL CARE PURCHASING,9190002,BLOCK CONTRACT,03/01/2018,J2112601101217,915.28,CAREWATCH (SHEFFIELD),CT230243419,Home Care Services,32849400
SHEFFIELD CITY COUNCIL,PEOPLE,14009346039,ADULT SOCIAL CARE PURCHASING,9190002,BLOCK CONTRACT,03/01/2018,J2112648101217,918.60,CAREWATCH (SHEFFIELD),CT230243419,Home Care Services,32849400
SHEFFIELD CITY COUNCIL,PEOPLE,14009346039,ADULT SOCIAL CARE PURCHASING,9190002,BLOCK CONTRACT,03/01/2018,J2112649101217,933.00,CAREWATCH (SHEFFIELD),CT230243419,Home Care Services,32849400
SHEFFIELD CITY COUNCIL,PEOPLE,14009346039,ADULT SOCIAL CARE PURCHASING,9190002,BLOCK CONTRACT,03/01/2018,J2112649101217,933.00,CAREWATCH (SHEFFIELD),CT230243419,Home Care Services,32849400
SHEFFIELD CITY COUNCIL,PEOPLE,14009346039,ADULT SOCIAL CARE PURCHASING,9190002,BLOCK CONTRACT,03/01/2018,J2112647101217,943.68,CAREWATCH (SHEFFIELD),CT230243419,Home Care Services,32849400
SHEFFIELD CITY COUNCIL,PEOPLE,14009346039,ADULT SOCIAL CARE PURCHASING,9190002,BLOCK CONTRACT,03/01/2018,J2112601101217,980.12,CAREWATCH (SHEFFIELD),CT230243419,Home Care Services,32849400
SHEFFIELD CITY COUNCIL,PEOPLE,14009346039,ADULT SOCIAL CARE PURCHASING,9190002,BLOCK CONTRACT,03/01/2018,J2112647101217,989.12,CAREWATCH (SHEFFIELD),CT230243419,Home Care Services,32849400
SHEFFIELD CITY COUNCIL,PEOPLE,14009346039,ADULT SOCIAL CARE PURCHASING,9190002,BLOCK CONTRACT,03/01/2018,J2112601101217,"1,028.72",CAREWATCH (SHEFFIELD),CT230243419,Home Care Services,32849400
SHEFFIELD CITY COUNCIL,PEOPLE,14009346039,ADULT SOCIAL CARE PURCHASING,9190002,BLOCK CONTRACT,03/01/2018,J2112649101217,"1,031.60",CAREWATCH (SHEFFIELD),CT230243419,Home Care Services,32849400
SHEFFIELD CITY COUNCIL,PEOPLE,14009346039,ADULT SOCIAL CARE PURCHASING,9190002,BLOCK CONTRACT,03/01/2018,J2112648101217,"1,059.56",CAREWATCH (SHEFFIELD),CT230243419,Home Care Services,32849400
SHEFFIELD CITY COUNCIL,PEOPLE,14009346039,ADULT SOCIAL CARE PURCHASING,9190002,BLOCK CONTRACT,03/01/2018,J2112647101217,"1,059.80",CAREWATCH (SHEFFIELD),CT230243419,Home Care Services,32849400
SHEFFIELD CITY COUNCIL,PEOPLE,14009346039,ADULT SOCIAL CARE PURCHASING,9190002,BLOCK CONTRACT,03/01/2018,J2112647101217,"1,059.88",CAREWATCH (SHEFFIELD),CT230243419,Home Care Services,32849400
SHEFFIELD CITY COUNCIL,PEOPLE,14009346039,ADULT SOCIAL CARE PURCHASING,9190002,BLOCK CONTRACT,03/01/2018,J2112647101217,"1,130.36",CAREWATCH (SHEFFIELD),CT230243419,Home Care Services,32849400
SHEFFIELD CITY COUNCIL,PEOPLE,14009346039,ADULT SOCIAL CARE PURCHASING,9190002,BLOCK CONTRACT,03/01/2018,J2112649101217,"1,161.16",CAREWATCH (SHEFFIELD),CT230243419,Home Care Services,32849400
SHEFFIELD CITY COUNCIL,PEOPLE,14009346039,ADULT SOCIAL CARE PURCHASING,9190002,BLOCK CONTRACT,03/01/2018,J2112647101217,"1,170.76",CAREWATCH (SHEFFIELD),CT230243419,Home Care Services,32849400
SHEFFIELD CITY COUNCIL,PEOPLE,14009346039,ADULT SOCIAL CARE PURCHASING,9190002,BLOCK CONTRACT,03/01/2018,J2112649101217,"1,181.88",CAREWATCH (SHEFFIELD),CT230243419,Home Care Services,32849400
SHEFFIELD CITY COUNCIL,PEOPLE,14009346039,ADULT SOCIAL CARE PURCHASING,9190002,BLOCK CONTRACT,03/01/2018,J2112648101217,"1,189.12",CAREWATCH (SHEFFIELD),CT230243419,Home Care Services,32849400
SHEFFIELD CITY COUNCIL,PEOPLE,14009346039,ADULT SOCIAL CARE PURCHASING,9190002,BLOCK CONTRACT,03/01/2018,J2112647101217,"1,206.20",CAREWATCH (SHEFFIELD),CT230243419,Home Care Services,32849400
SHEFFIELD CITY COUNCIL,PEOPLE,14009346039,ADULT SOCIAL CARE PURCHASING,9190002,BLOCK CONTRACT,03/01/2018,J2112649101217,"1,212.90",CAREWATCH (SHEFFIELD),CT230243419,Home Care Services,32849400
SHEFFIELD CITY COUNCIL,PEOPLE,14009346039,ADULT SOCIAL CARE PURCHASING,9190002,BLOCK CONTRACT,03/01/2018,J2112649101217,"1,233.68",CAREWATCH (SHEFFIELD),CT230243419,Home Care Services,32849400
SHEFFIELD CITY COUNCIL,PEOPLE,14009346039,ADULT SOCIAL CARE PURCHASING,9190002,BLOCK CONTRACT,03/01/2018,J2112649101217,"1,306.20",CAREWATCH (SHEFFIELD),CT230243419,Home Care Services,32849400
SHEFFIELD CITY COUNCIL,PEOPLE,14009346039,ADULT SOCIAL CARE PURCHASING,9190002,BLOCK CONTRACT,03/01/2018,J2112649101217,"1,306.20",CAREWATCH (SHEFFIELD),CT230243419,Home Care Services,32849400
SHEFFIELD CITY COUNCIL,PEOPLE,14009346039,ADULT SOCIAL CARE PURCHASING,9190002,BLOCK CONTRACT,03/01/2018,J2112649101217,"1,306.24",CAREWATCH (SHEFFIELD),CT230243419,Home Care Services,32849400
SHEFFIELD CITY COUNCIL,PEOPLE,14009346039,ADULT SOCIAL CARE PURCHASING,9190002,BLOCK CONTRACT,03/01/2018,J2112648101217,"1,324.21",CAREWATCH (SHEFFIELD),CT230243419,Home Care Services,32849400
SHEFFIELD CITY COUNCIL,PEOPLE,14009346039,ADULT SOCIAL CARE PURCHASING,9190002,BLOCK CONTRACT,03/01/2018,J2112648101217,"1,357.44",CAREWATCH (SHEFFIELD),CT230243419,Home Care Services,32849400
SHEFFIELD CITY COUNCIL,PEOPLE,14009346039,ADULT SOCIAL CARE PURCHASING,9190002,BLOCK CONTRACT,03/01/2018,J2112649101217,"1,378.72",CAREWATCH (SHEFFIELD),CT230243419,Home Care Services,32849400
SHEFFIELD CITY COUNCIL,PEOPLE,14009346039,ADULT SOCIAL CARE PURCHASING,9190002,BLOCK CONTRACT,03/01/2018,J2112647101217,"1,403.12",CAREWATCH (SHEFFIELD),CT230243419,Home Care Services,32849400
SHEFFIELD CITY COUNCIL,PEOPLE,14009346039,ADULT SOCIAL CARE PURCHASING,9190002,BLOCK CONTRACT,03/01/2018,J2112648101217,"1,403.50",CAREWATCH (SHEFFIELD),CT230243419,Home Care Services,32849400
SHEFFIELD CITY COUNCIL,PEOPLE,14009346039,ADULT SOCIAL CARE PURCHASING,9190002,BLOCK CONTRACT,03/01/2018,J2112647101217,"1,413.16",CAREWATCH (SHEFFIELD),CT230243419,Home Care Services,32849400
SHEFFIELD CITY COUNCIL,PEOPLE,14009346039,ADULT SOCIAL CARE PURCHASING,9190002,BLOCK CONTRACT,03/01/2018,J2112647101217,"1,413.16",CAREWATCH (SHEFFIELD),CT230243419,Home Care Services,32849400
SHEFFIELD CITY COUNCIL,PEOPLE,14009346039,ADULT SOCIAL CARE PURCHASING,9190002,BLOCK CONTRACT,03/01/2018,J2112649101217,"1,415.12",CAREWATCH (SHEFFIELD),CT230243419,Home Care Services,32849400
SHEFFIELD CITY COUNCIL,PEOPLE,14009346039,ADULT SOCIAL CARE PURCHASING,9190002,BLOCK CONTRACT,03/01/2018,J2112647101217,"1,418.01",CAREWATCH (SHEFFIELD),CT230243419,Home Care Services,32849400
SHEFFIELD CITY COUNCIL,PEOPLE,14009346039,ADULT SOCIAL CARE PURCHASING,9190002,BLOCK CONTRACT,03/01/2018,J2112647101217,"1,453.48",CAREWATCH (SHEFFIELD),CT230243419,Home Care Services,32849400
SHEFFIELD CITY COUNCIL,PEOPLE,14009346039,ADULT SOCIAL CARE PURCHASING,9190002,BLOCK CONTRACT,03/01/2018,J2112601101217,"1,514.72",CAREWATCH (SHEFFIELD),CT230243419,Home Care Services,32849400
SHEFFIELD CITY COUNCIL,PEOPLE,14009346039,ADULT SOCIAL CARE PURCHASING,9190002,BLOCK CONTRACT,03/01/2018,J2112649101217,"1,539.60",CAREWATCH (SHEFFIELD),CT230243419,Home Care Services,32849400
SHEFFIELD CITY COUNCIL,PEOPLE,14009346039,ADULT SOCIAL CARE PURCHASING,9190002,BLOCK CONTRACT,03/01/2018,J2112647101217,"1,544.45",CAREWATCH (SHEFFIELD),CT230243419,Home Care Services,32849400
SHEFFIELD CITY COUNCIL,PEOPLE,14009346039,ADULT SOCIAL CARE PURCHASING,9190002,BLOCK CONTRACT,03/01/2018,J2112647101217,"1,554.28",CAREWATCH (SHEFFIELD),CT230243419,Home Care Services,32849400
SHEFFIELD CITY COUNCIL,PEOPLE,14009346039,ADULT SOCIAL CARE PURCHASING,9190002,BLOCK CONTRACT,03/01/2018,J2112647101217,"1,580.88",CAREWATCH (SHEFFIELD),CT230243419,Home Care Services,32849400
SHEFFIELD CITY COUNCIL,PEOPLE,14009346039,ADULT SOCIAL CARE PURCHASING,9190002,BLOCK CONTRACT,03/01/2018,J2112649101217,"1,596.56",CAREWATCH (SHEFFIELD),CT230243419,Home Care Services,32849400
SHEFFIELD CITY COUNCIL,PEOPLE,14009346039,ADULT SOCIAL CARE PURCHASING,9190002,BLOCK CONTRACT,03/01/2018,J2112649101217,"1,617.20",CAREWATCH (SHEFFIELD),CT230243419,Home Care Services,32849400
SHEFFIELD CITY COUNCIL,PEOPLE,14009346039,ADULT SOCIAL CARE PURCHASING,9190002,BLOCK CONTRACT,03/01/2018,J2112649101217,"1,617.28",CAREWATCH (SHEFFIELD),CT230243419,Home Care Services,32849400
SHEFFIELD CITY COUNCIL,PEOPLE,14009346039,ADULT SOCIAL CARE PURCHASING,9190002,BLOCK CONTRACT,03/01/2018,J2112648101217,"1,663.72",CAREWATCH (SHEFFIELD),CT230243419,Home Care Services,32849400
SHEFFIELD CITY COUNCIL,PEOPLE,14009346039,ADULT SOCIAL CARE PURCHASING,9190002,BLOCK CONTRACT,03/01/2018,J2112647101217,"1,665.40",CAREWATCH (SHEFFIELD),CT230243419,Home Care Services,32849400
SHEFFIELD CITY COUNCIL,PEOPLE,14009346039,ADULT SOCIAL CARE PURCHASING,9190002,BLOCK CONTRACT,03/01/2018,J2112601101217,"1,684.80",CAREWATCH (SHEFFIELD),CT230243419,Home Care Services,32849400
SHEFFIELD CITY COUNCIL,PEOPLE,14009346039,ADULT SOCIAL CARE PURCHASING,9190002,BLOCK CONTRACT,03/01/2018,J2112647101217,"1,695.60",CAREWATCH (SHEFFIELD),CT230243419,Home Care Services,32849400
SHEFFIELD CITY COUNCIL,PEOPLE,14009346039,ADULT SOCIAL CARE PURCHASING,9190002,BLOCK CONTRACT,03/01/2018,J2112649101217,"1,741.60",CAREWATCH (SHEFFIELD),CT230243419,Home Care Services,32849400
SHEFFIELD CITY COUNCIL,PEOPLE,14009346039,ADULT SOCIAL CARE PURCHASING,9190002,BLOCK CONTRACT,03/01/2018,J2112648101217,"1,786.12",CAREWATCH (SHEFFIELD),CT230243419,Home Care Services,32849400
SHEFFIELD CITY COUNCIL,PEOPLE,14009346039,ADULT SOCIAL CARE PURCHASING,9190002,BLOCK CONTRACT,03/01/2018,J2112649101217,"1,959.44",CAREWATCH (SHEFFIELD),CT230243419,Home Care Services,32849400
SHEFFIELD CITY COUNCIL,PEOPLE,14009346039,ADULT SOCIAL CARE PURCHASING,9190002,BLOCK CONTRACT,03/01/2018,J2112605101217,"2,041.08",CAREWATCH (SHEFFIELD),CT230243419,Home Care Services,32849400
SHEFFIELD CITY COUNCIL,PEOPLE,14009346039,ADULT SOCIAL CARE PURCHASING,9190002,BLOCK CONTRACT,03/01/2018,J2112648101217,"2,072.00",CAREWATCH (SHEFFIELD),CT230243419,Home Care Services,32849400
SHEFFIELD CITY COUNCIL,PEOPLE,14009242034,PURCHASING LEARNING DISABILITI,9190002,BLOCK CONTRACT,03/01/2018,J2112605101217,"2,102.19",CAREWATCH (SHEFFIELD),CT230243419,Home Care Services,32849400
SHEFFIELD CITY COUNCIL,PEOPLE,14009346039,ADULT SOCIAL CARE PURCHASING,9190002,BLOCK CONTRACT,03/01/2018,J2112647101217,"2,119.60",CAREWATCH (SHEFFIELD),CT230243419,Home Care Services,32849400
SHEFFIELD CITY COUNCIL,PEOPLE,14009346039,ADULT SOCIAL CARE PURCHASING,9190002,BLOCK CONTRACT,03/01/2018,J2112649101217,"2,285.72",CAREWATCH (SHEFFIELD),CT230243419,Home Care Services,32849400
SHEFFIELD CITY COUNCIL,PEOPLE,14009346039,ADULT SOCIAL CARE PURCHASING,9190002,BLOCK CONTRACT,03/01/2018,J2112648101217,"2,286.20",CAREWATCH (SHEFFIELD),CT230243419,Home Care Services,32849400
SHEFFIELD CITY COUNCIL,PEOPLE,14009346039,ADULT SOCIAL CARE PURCHASING,9190002,BLOCK CONTRACT,03/01/2018,J2112647101217,"2,402.12",CAREWATCH (SHEFFIELD),CT230243419,Home Care Services,32849400
SHEFFIELD CITY COUNCIL,PEOPLE,14009346039,ADULT SOCIAL CARE PURCHASING,9190002,BLOCK CONTRACT,03/01/2018,J2112647101217,"2,402.12",CAREWATCH (SHEFFIELD),CT230243419,Home Care Services,32849400
SHEFFIELD CITY COUNCIL,PEOPLE,14009346039,ADULT SOCIAL CARE PURCHASING,9190002,BLOCK CONTRACT,03/01/2018,J2112649101217,"2,612.40",CAREWATCH (SHEFFIELD),CT230243419,Home Care Services,32849400
SHEFFIELD CITY COUNCIL,PEOPLE,14009346039,ADULT SOCIAL CARE PURCHASING,9190002,BLOCK CONTRACT,03/01/2018,J2112648101217,"2,954.84",CAREWATCH (SHEFFIELD),CT230243419,Home Care Services,32849400
SHEFFIELD CITY COUNCIL,PEOPLE,14009346039,ADULT SOCIAL CARE PURCHASING,9190002,BLOCK CONTRACT,03/01/2018,J2112647101217,"3,255.04",CAREWATCH (SHEFFIELD),CT230243419,Home Care Services,32849400
SHEFFIELD CITY COUNCIL,PEOPLE,14009346039,ADULT SOCIAL CARE PURCHASING,9190002,BLOCK CONTRACT,03/01/2018,J2112642101217,"-5,354.41",COMFORT CALL LTD,CT230243419,Home Care Services,55218400
SHEFFIELD CITY COUNCIL,PEOPLE,14009242034,PURCHASING LEARNING DISABILITI,9190002,BLOCK CONTRACT,03/01/2018,J2112641101217,"-2,286.31",COMFORT CALL LTD,CT230243419,Home Care Services,55218400
SHEFFIELD CITY COUNCIL,PEOPLE,14009346039,ADULT SOCIAL CARE PURCHASING,9190002,BLOCK CONTRACT,03/01/2018,J2112642101217,267.59,COMFORT CALL LTD,CT230243419,Home Care Services,55218400
SHEFFIELD CITY COUNCIL,PEOPLE,14009346039,ADULT SOCIAL CARE PURCHASING,9190002,BLOCK CONTRACT,03/01/2018,J2112642101217,281.40,COMFORT CALL LTD,CT230243419,Home Care Services,55218400
SHEFFIELD CITY COUNCIL,PEOPLE,14009346039,ADULT SOCIAL CARE PURCHASING,9190002,BLOCK CONTRACT,03/01/2018,J2112643101217,339.39,COMFORT CALL LTD,CT230243419,Home Care Services,55218400
SHEFFIELD CITY COUNCIL,PEOPLE,14009346039,ADULT SOCIAL CARE PURCHASING,9190002,BLOCK CONTRACT,03/01/2018,J2112641101217,347.76,COMFORT CALL LTD,CT230243419,Home Care Services,55218400
SHEFFIELD CITY COUNCIL,PEOPLE,14009346039,ADULT SOCIAL CARE PURCHASING,9190002,BLOCK CONTRACT,03/01/2018,J2112642101217,351.96,COMFORT CALL LTD,CT230243419,Home Care Services,55218400
SHEFFIELD CITY COUNCIL,PEOPLE,14009346039,ADULT SOCIAL CARE PURCHASING,9190002,BLOCK CONTRACT,03/01/2018,J2112642101217,360.60,COMFORT CALL LTD,CT230243419,Home Care Services,55218400
SHEFFIELD CITY COUNCIL,PEOPLE,14009346039,ADULT SOCIAL CARE PURCHASING,9190002,BLOCK CONTRACT,03/01/2018,J2112642101217,422.24,COMFORT CALL LTD,CT230243419,Home Care Services,55218400
SHEFFIELD CITY COUNCIL,PEOPLE,14009346039,ADULT SOCIAL CARE PURCHASING,9190002,BLOCK CONTRACT,03/01/2018,J2112642101217,447.28,COMFORT CALL LTD,CT230243419,Home Care Services,55218400
SHEFFIELD CITY COUNCIL,PEOPLE,14009346039,ADULT SOCIAL CARE PURCHASING,9190007,FUNDED HOME SUPPORT,03/01/2018,J2112642101217,502.68,COMFORT CALL LTD,CT230243419,Home Care Services,55218400
SHEFFIELD CITY COUNCIL,PEOPLE,14009346039,ADULT SOCIAL CARE PURCHASING,9190002,BLOCK CONTRACT,03/01/2018,J2112643101217,508.95,COMFORT CALL LTD,CT230243419,Home Care Services,55218400
SHEFFIELD CITY COUNCIL,"POLICY, PERFORMANCE AND COMMS",11800300000,COMMUNICATIONS PPC,8420000,ADVERTISING AND PUBLICITY,03/01/2018,INV-40061,897.12,GALT SIGNS LTD T/A FASTSIGNS,CT074470920,Signs & Nameplates,20482600
SHEFFIELD CITY COUNCIL,PLACE,11850000000,RESPONSIVE REPAIRS,8530001,SUBCONTRACTOR GENERAL,03/01/2018,215144,"8,060.07",HI-POINT ACCESS LTD,CT079967140,Scaffolding Erectors & Hirers,20549600
SHEFFIELD CITY COUNCIL,PLACE,12046025053,PLAYGROUND INSTALLATIONS,8060000,MATERIALS AND SUPPLIES GENERAL,03/01/2018,2703,250.00,NOTTS SPORT LTD,CT109977410,Tennis Courts & Sports Surfaces - Constr,20718300
SHEFFIELD CITY COUNCIL,PLACE,12046025053,PLAYGROUND INSTALLATIONS,8060000,MATERIALS AND SUPPLIES GENERAL,03/01/2018,2703,"9,114.00",NOTTS SPORT LTD,CT109977410,Tennis Courts & Sports Surfaces - Constr,20718300
SHEFFIELD CITY COUNCIL,PLACE,12017722049,ENERGY -SCHEME,6150003,ELECTRICITY - INVOICE,03/01/2018,LGU6C9XX,"33,779.03",NPOWER NORTHERN LTD,CT270630586,Electricity Companies,20719100
SHEFFIELD CITY COUNCIL,PLACE,12017722049,ENERGY -SCHEME,6150003,ELECTRICITY - INVOICE,03/01/2018,LGU6C9XX,"57,841.23",NPOWER NORTHERN LTD,CT270630586,Electricity Companies,20719100
SHEFFIELD CITY COUNCIL,"POLICY, PERFORMANCE AND COMMS",11800300000,COMMUNICATIONS PPC,8550002,ADVERTISING SERVICES INVOICED,03/01/2018,16715,440.00,THE PRINT AND DESIGN FACTORY LTD,CT060461540,Printers,20766300
SHEFFIELD CITY COUNCIL,PLACE,12046025053,PLAYGROUND INSTALLATIONS,8010000,EQUIPMENT PURCHASE AND REPAIR,03/01/2018,55635,373.00,HAGS SMP LTD,CT101859720,Playground Equipment,20851600
SHEFFIELD CITY COUNCIL,PLACE,12046025053,PLAYGROUND INSTALLATIONS,8010000,EQUIPMENT PURCHASE AND REPAIR,03/01/2018,55635,"5,420.00",HAGS SMP LTD,CT101859720,Playground Equipment,20851600
SHEFFIELD CITY COUNCIL,PEOPLE,13009233050,CONSTRUCTION DESIGN CENTRE,8010000,EQUIPMENT PURCHASE AND REPAIR,03/01/2018,4723,"1,666.00",PYRAMID CARPETS,CT022115410,Carpets & Rugs - Retail,20897501
SHEFFIELD CITY COUNCIL,PEOPLE,14032546060,ASC PROGRAMME FUNDING,9120000,OTHER AGENCIES,03/01/2018,41374,"17,496.00",VOLUNTARY ACTION SHEFFIELD,CT230417020,Charities & Voluntary Organisations,29528300
SHEFFIELD CITY COUNCIL,PEOPLE,14031746125,OLDER PEOPLES MENTAL HEALTH,9160000,PARTNERSHIP CONTRACTS,03/01/2018,SI1000000918,394.29,SPRINGWOOD HOUSE (SHEFFCARE LTD),CT230164710,Residential Care Homes,29956600
SHEFFIELD CITY COUNCIL,PEOPLE,14031746125,OLDER PEOPLES MENTAL HEALTH,9160000,PARTNERSHIP CONTRACTS,03/01/2018,SI1000000917,"10,560.03",SPRINGWOOD HOUSE (SHEFFCARE LTD),CT230164710,Residential Care Homes,29956600
SHEFFIELD CITY COUNCIL,PLACE,12046025094,PARKS OPS SOUTH & SOUTH EAST,8060000,MATERIALS AND SUPPLIES GENERAL,03/01/2018,39916,520.00,BROADFIELD MOWERS LTD,CT101247400,Lawnmowers & Garden Machinery - Sales &,29994100
SHEFFIELD CITY COUNCIL,PLACE,11513400000,EDUCATION SPECIAL NEEDS,7040000,OTHER VEHICLE RUNNING COSTS,03/01/2018,38659,"5,461.70",NORTHERN TAXIS LIMITED,CT261676350,Taxis & Private Hire,30118200
SHEFFIELD CITY COUNCIL,PEOPLE,13000336033,SOCIAL CARE TAXIS,7060000,EXTERNAL VEHICLE HIRE,03/01/2018,38658ASOCIALCARE,"6,976.25",NORTHERN TAXIS LIMITED,CT261676350,Taxis & Private Hire,30118200
SHEFFIELD CITY COUNCIL,PEOPLE,13000336039,SEN TAXIS,7060000,EXTERNAL VEHICLE HIRE,03/01/2018,38658SENBILLING,"15,056.00",NORTHERN TAXIS LIMITED,CT261676350,Taxis & Private Hire,30118200
SHEFFIELD CITY COUNCIL,PEOPLE,13002839083,SUCCESSFUL FAMILIES PROGRAMME,8440000,FEE EXPENSES,03/01/2018,67312,"6,330.60",POLICE AND CRIME COMMISSIONER STH YORKSM,CT259960064,Police,30161600
SHEFFIELD CITY COUNCIL,RESOURCES,11401100000,OUT OF HOURS SERVICE,8610000,OTHER TELECOMMUNICATIONS,03/01/2018,67143,"20,579.42",POLICE AND CRIME COMMISSIONER STH YORKSM,CT259960064,Police,30161600
SHEFFIELD CITY COUNCIL,RESOURCES,11401100000,OUT OF HOURS SERVICE,8610000,OTHER TELECOMMUNICATIONS,03/01/2018,66305,"21,983.09",POLICE AND CRIME COMMISSIONER STH YORKSM,CT259960064,Police,30161600
SHEFFIELD CITY COUNCIL,PLACE,11850200000,VOIDS REPAIRS,8530001,SUBCONTRACTOR GENERAL,03/01/2018,129771,"16,304.59",BURNGREAVE BUILDING CO LTD,CT070661961,Property Maintenance & Repairs,30215400
SHEFFIELD CITY COUNCIL,PEOPLE,13008633063,PROVIDER CONTRACT AUG17JUL18,9120000,OTHER AGENCIES,03/01/2018,11307,"4,333.33",ASPIRING COMMUNITIES TOGETHER LTD,CT230417020,Charities & Voluntary Organisations,30394900
SHEFFIELD CITY COUNCIL,PEOPLE,13002639550,SECURE WELFARE,9270014,SECURE PLACEMENTS - WELFARE,03/01/2018,6810094264,"8,844.00",LEEDS CITY COUNCIL,CT219948583,Local Government,31637300
SHEFFIELD CITY COUNCIL,PLACE,12077022221,AIR QUALITY GRANT,8240000,CONFERENCE EXPENSES,03/01/2018,6171120,295.00,RICARDO-AEA LTD,CT080332415,Environmental Consultants,32098600
SHEFFIELD CITY COUNCIL,RESOURCES,11803200000,LEARNING & DEVELOPMENT,8270000,SUBSCRIPTIONS,03/01/2018,8159,700.00,GIZWARE SYSTEMS,CT170220703,Computer Systems & Software (development,32720600
SHEFFIELD CITY COUNCIL,PEOPLE,14009346039,ADULT SOCIAL CARE PURCHASING,9190002,BLOCK CONTRACT,03/01/2018,J2112642101217,598.08,COMFORT CALL LTD,CT230243419,Home Care Services,55218400
SHEFFIELD CITY COUNCIL,PEOPLE,14009346039,ADULT SOCIAL CARE PURCHASING,9190002,BLOCK CONTRACT,03/01/2018,J2112643101217,610.74,COMFORT CALL LTD,CT230243419,Home Care Services,55218400
SHEFFIELD CITY COUNCIL,PEOPLE,14009346039,ADULT SOCIAL CARE PURCHASING,9190002,BLOCK CONTRACT,03/01/2018,J2112641101217,625.80,COMFORT CALL LTD,CT230243419,Home Care Services,55218400
SHEFFIELD CITY COUNCIL,PEOPLE,14009346039,ADULT SOCIAL CARE PURCHASING,9190002,BLOCK CONTRACT,03/01/2018,J2112642101217,703.64,COMFORT CALL LTD,CT230243419,Home Care Services,55218400
SHEFFIELD CITY COUNCIL,PEOPLE,14009346039,ADULT SOCIAL CARE PURCHASING,9190002,BLOCK CONTRACT,03/01/2018,J2112642101217,784.16,COMFORT CALL LTD,CT230243419,Home Care Services,55218400
SHEFFIELD CITY COUNCIL,PEOPLE,14009346039,ADULT SOCIAL CARE PURCHASING,9190002,BLOCK CONTRACT,03/01/2018,J2112642101217,844.48,COMFORT CALL LTD,CT230243419,Home Care Services,55218400
SHEFFIELD CITY COUNCIL,PEOPLE,14009346039,ADULT SOCIAL CARE PURCHASING,9190002,BLOCK CONTRACT,03/01/2018,J2112641101217,894.00,COMFORT CALL LTD,CT230243419,Home Care Services,55218400
SHEFFIELD CITY COUNCIL,PEOPLE,14009346039,ADULT SOCIAL CARE PURCHASING,9190002,BLOCK CONTRACT,03/01/2018,J2112642101217,950.04,COMFORT CALL LTD,CT230243419,Home Care Services,55218400
SHEFFIELD CITY COUNCIL,PEOPLE,14009346039,ADULT SOCIAL CARE PURCHASING,9190002,BLOCK CONTRACT,03/01/2018,J2112642101217,954.94,COMFORT CALL LTD,CT230243419,Home Care Services,55218400
SHEFFIELD CITY COUNCIL,PEOPLE,14009346039,ADULT SOCIAL CARE PURCHASING,9190002,BLOCK CONTRACT,03/01/2018,J2112643101217,"1,100.76",COMFORT CALL LTD,CT230243419,Home Care Services,55218400
SHEFFIELD CITY COUNCIL,PEOPLE,14009346039,ADULT SOCIAL CARE PURCHASING,9190002,BLOCK CONTRACT,03/01/2018,J2112642101217,"1,196.36",COMFORT CALL LTD,CT230243419,Home Care Services,55218400
SHEFFIELD CITY COUNCIL,PEOPLE,14009346039,ADULT SOCIAL CARE PURCHASING,9190002,BLOCK CONTRACT,03/01/2018,J2112642101217,"1,206.60",COMFORT CALL LTD,CT230243419,Home Care Services,55218400
SHEFFIELD CITY COUNCIL,PEOPLE,14009346039,ADULT SOCIAL CARE PURCHASING,9190002,BLOCK CONTRACT,03/01/2018,J2112642101217,"1,407.56",COMFORT CALL LTD,CT230243419,Home Care Services,55218400
SHEFFIELD CITY COUNCIL,PEOPLE,14009346039,ADULT SOCIAL CARE PURCHASING,9190002,BLOCK CONTRACT,03/01/2018,J2112642101217,"1,900.08",COMFORT CALL LTD,CT230243419,Home Care Services,55218400
SHEFFIELD CITY COUNCIL,PEOPLE,14009346039,ADULT SOCIAL CARE PURCHASING,9190002,BLOCK CONTRACT,03/01/2018,J2112643101217,"5,471.76",COMFORT CALL LTD,CT230243419,Home Care Services,55218400
SHEFFIELD CITY COUNCIL,PEOPLE,14009346039,ADULT SOCIAL CARE PURCHASING,9190002,BLOCK CONTRACT,03/01/2018,J2112651101217,"-13,738.08",DIRECT HEALTH UK LTD,CT230243419,Home Care Services,20438800
SHEFFIELD CITY COUNCIL,PEOPLE,14009346039,ADULT SOCIAL CARE PURCHASING,9190002,BLOCK CONTRACT,03/01/2018,J2112626101217,"-9,858.13",DIRECT HEALTH UK LTD,CT230243419,Home Care Services,20438800
SHEFFIELD CITY COUNCIL,PEOPLE,14009346039,ADULT SOCIAL CARE PURCHASING,9190002,BLOCK CONTRACT,03/01/2018,J2112593101217,"-8,427.44",DIRECT HEALTH UK LTD,CT230243419,Home Care Services,20438800
SHEFFIELD CITY COUNCIL,PEOPLE,14009346039,ADULT SOCIAL CARE PURCHASING,9190002,BLOCK CONTRACT,03/01/2018,J2112625101217,"-7,016.15",DIRECT HEALTH UK LTD,CT230243419,Home Care Services,20438800
SHEFFIELD CITY COUNCIL,PEOPLE,14009346039,ADULT SOCIAL CARE PURCHASING,9190007,FUNDED HOME SUPPORT,03/01/2018,J2112593101217,"-5,016.15",DIRECT HEALTH UK LTD,CT230243419,Home Care Services,20438800
SHEFFIELD CITY COUNCIL,PEOPLE,14009346039,ADULT SOCIAL CARE PURCHASING,9190002,BLOCK CONTRACT,03/01/2018,J2112652101217,-787.85,DIRECT HEALTH UK LTD,CT230243419,Home Care Services,20438800
SHEFFIELD CITY COUNCIL,PEOPLE,14009346039,ADULT SOCIAL CARE PURCHASING,9190002,BLOCK CONTRACT,03/01/2018,J2112626101217,-153.00,DIRECT HEALTH UK LTD,CT230243419,Home Care Services,20438800
SHEFFIELD CITY COUNCIL,PEOPLE,14009346039,ADULT SOCIAL CARE PURCHASING,9190002,BLOCK CONTRACT,03/01/2018,J2112626101217,-61.68,DIRECT HEALTH UK LTD,CT230243419,Home Care Services,20438800
SHEFFIELD CITY COUNCIL,PEOPLE,14009346039,ADULT SOCIAL CARE PURCHASING,9190002,BLOCK CONTRACT,03/01/2018,J2112624101217,255.60,DIRECT HEALTH UK LTD,CT230243419,Home Care Services,20438800
SHEFFIELD CITY COUNCIL,PEOPLE,14009346039,ADULT SOCIAL CARE PURCHASING,9190002,BLOCK CONTRACT,03/01/2018,J2112625101217,256.12,DIRECT HEALTH UK LTD,CT230243419,Home Care Services,20438800
SHEFFIELD CITY COUNCIL,PEOPLE,14009346039,ADULT SOCIAL CARE PURCHASING,9190002,BLOCK CONTRACT,03/01/2018,J2112651101217,261.80,DIRECT HEALTH UK LTD,CT230243419,Home Care Services,20438800
SHEFFIELD CITY COUNCIL,PEOPLE,14009346039,ADULT SOCIAL CARE PURCHASING,9190002,BLOCK CONTRACT,03/01/2018,J2112593101217,263.76,DIRECT HEALTH UK LTD,CT230243419,Home Care Services,20438800
SHEFFIELD CITY COUNCIL,PEOPLE,14009346039,ADULT SOCIAL CARE PURCHASING,9190002,BLOCK CONTRACT,03/01/2018,J2112593101217,263.76,DIRECT HEALTH UK LTD,CT230243419,Home Care Services,20438800
SHEFFIELD CITY COUNCIL,PEOPLE,14009346039,ADULT SOCIAL CARE PURCHASING,9190002,BLOCK CONTRACT,03/01/2018,J2112593101217,263.76,DIRECT HEALTH UK LTD,CT230243419,Home Care Services,20438800
SHEFFIELD CITY COUNCIL,PEOPLE,14009346039,ADULT SOCIAL CARE PURCHASING,9190002,BLOCK CONTRACT,03/01/2018,J2112625101217,266.04,DIRECT HEALTH UK LTD,CT230243419,Home Care Services,20438800
SHEFFIELD CITY COUNCIL,PEOPLE,14009346039,ADULT SOCIAL CARE PURCHASING,9190002,BLOCK CONTRACT,03/01/2018,J2112624101217,270.72,DIRECT HEALTH UK LTD,CT230243419,Home Care Services,20438800
SHEFFIELD CITY COUNCIL,PEOPLE,14009346039,ADULT SOCIAL CARE PURCHASING,9190002,BLOCK CONTRACT,03/01/2018,J2112651101217,272.48,DIRECT HEALTH UK LTD,CT230243419,Home Care Services,20438800
SHEFFIELD CITY COUNCIL,PEOPLE,14009346039,ADULT SOCIAL CARE PURCHASING,9190002,BLOCK CONTRACT,03/01/2018,J2112651101217,272.52,DIRECT HEALTH UK LTD,CT230243419,Home Care Services,20438800
SHEFFIELD CITY COUNCIL,PEOPLE,14009346039,ADULT SOCIAL CARE PURCHASING,9190002,BLOCK CONTRACT,03/01/2018,J2112593101217,273.18,DIRECT HEALTH UK LTD,CT230243419,Home Care Services,20438800
SHEFFIELD CITY COUNCIL,PEOPLE,14009346039,ADULT SOCIAL CARE PURCHASING,9190007,FUNDED HOME SUPPORT,03/01/2018,J2112626101217,277.84,DIRECT HEALTH UK LTD,CT230243419,Home Care Services,20438800
SHEFFIELD CITY COUNCIL,PEOPLE,14009346039,ADULT SOCIAL CARE PURCHASING,9190002,BLOCK CONTRACT,03/01/2018,J2112652101217,278.04,DIRECT HEALTH UK LTD,CT230243419,Home Care Services,20438800
SHEFFIELD CITY COUNCIL,PEOPLE,14009346039,ADULT SOCIAL CARE PURCHASING,9190002,BLOCK CONTRACT,03/01/2018,J2112626101217,288.12,DIRECT HEALTH UK LTD,CT230243419,Home Care Services,20438800
SHEFFIELD CITY COUNCIL,PEOPLE,14009346039,ADULT SOCIAL CARE PURCHASING,9190002,BLOCK CONTRACT,03/01/2018,J2112626101217,288.12,DIRECT HEALTH UK LTD,CT230243419,Home Care Services,20438800
SHEFFIELD CITY COUNCIL,PEOPLE,14009346039,ADULT SOCIAL CARE PURCHASING,9190002,BLOCK CONTRACT,03/01/2018,J2112626101217,288.12,DIRECT HEALTH UK LTD,CT230243419,Home Care Services,20438800
SHEFFIELD CITY COUNCIL,PEOPLE,14009346039,ADULT SOCIAL CARE PURCHASING,9190002,BLOCK CONTRACT,03/01/2018,J2112626101217,288.12,DIRECT HEALTH UK LTD,CT230243419,Home Care Services,20438800
SHEFFIELD CITY COUNCIL,PEOPLE,14009346039,ADULT SOCIAL CARE PURCHASING,9190002,BLOCK CONTRACT,03/01/2018,J2112651101217,288.54,DIRECT HEALTH UK LTD,CT230243419,Home Care Services,20438800
SHEFFIELD CITY COUNCIL,PEOPLE,14009346039,ADULT SOCIAL CARE PURCHASING,9190002,BLOCK CONTRACT,03/01/2018,J2112651101217,291.26,DIRECT HEALTH UK LTD,CT230243419,Home Care Services,20438800
SHEFFIELD CITY COUNCIL,PEOPLE,14009346039,ADULT SOCIAL CARE PURCHASING,9190002,BLOCK CONTRACT,03/01/2018,J2112651101217,293.88,DIRECT HEALTH UK LTD,CT230243419,Home Care Services,20438800
SHEFFIELD CITY COUNCIL,PEOPLE,14009346039,ADULT SOCIAL CARE PURCHASING,9190002,BLOCK CONTRACT,03/01/2018,J2112625101217,295.60,DIRECT HEALTH UK LTD,CT230243419,Home Care Services,20438800
SHEFFIELD CITY COUNCIL,PEOPLE,14009346039,ADULT SOCIAL CARE PURCHASING,9190002,BLOCK CONTRACT,03/01/2018,J2112625101217,295.64,DIRECT HEALTH UK LTD,CT230243419,Home Care Services,20438800
SHEFFIELD CITY COUNCIL,PEOPLE,14009346039,ADULT SOCIAL CARE PURCHASING,9190002,BLOCK CONTRACT,03/01/2018,J2112652101217,298.00,DIRECT HEALTH UK LTD,CT230243419,Home Care Services,20438800
SHEFFIELD CITY COUNCIL,PEOPLE,14009346039,ADULT SOCIAL CARE PURCHASING,9190002,BLOCK CONTRACT,03/01/2018,J2112652101217,298.00,DIRECT HEALTH UK LTD,CT230243419,Home Care Services,20438800
SHEFFIELD CITY COUNCIL,PEOPLE,14009346039,ADULT SOCIAL CARE PURCHASING,9190002,BLOCK CONTRACT,03/01/2018,J2112624101217,298.35,DIRECT HEALTH UK LTD,CT230243419,Home Care Services,20438800
SHEFFIELD CITY COUNCIL,PEOPLE,14009346039,ADULT SOCIAL CARE PURCHASING,9190007,FUNDED HOME SUPPORT,03/01/2018,J2112651101217,299.24,DIRECT HEALTH UK LTD,CT230243419,Home Care Services,20438800
SHEFFIELD CITY COUNCIL,PEOPLE,14009346039,ADULT SOCIAL CARE PURCHASING,9190002,BLOCK CONTRACT,03/01/2018,J2112651101217,299.32,DIRECT HEALTH UK LTD,CT230243419,Home Care Services,20438800
SHEFFIELD CITY COUNCIL,PEOPLE,14009346039,ADULT SOCIAL CARE PURCHASING,9190002,BLOCK CONTRACT,03/01/2018,J2112651101217,299.32,DIRECT HEALTH UK LTD,CT230243419,Home Care Services,20438800
SHEFFIELD CITY COUNCIL,PEOPLE,14009346039,ADULT SOCIAL CARE PURCHASING,9190002,BLOCK CONTRACT,03/01/2018,J2112651101217,299.32,DIRECT HEALTH UK LTD,CT230243419,Home Care Services,20438800
SHEFFIELD CITY COUNCIL,PEOPLE,14009346039,ADULT SOCIAL CARE PURCHASING,9190002,BLOCK CONTRACT,03/01/2018,J2112651101217,299.32,DIRECT HEALTH UK LTD,CT230243419,Home Care Services,20438800
SHEFFIELD CITY COUNCIL,PEOPLE,14009346039,ADULT SOCIAL CARE PURCHASING,9190002,BLOCK CONTRACT,03/01/2018,J2112651101217,299.32,DIRECT HEALTH UK LTD,CT230243419,Home Care Services,20438800
SHEFFIELD CITY COUNCIL,PEOPLE,14009346039,ADULT SOCIAL CARE PURCHASING,9190002,BLOCK CONTRACT,03/01/2018,J2112625101217,304.18,DIRECT HEALTH UK LTD,CT230243419,Home Care Services,20438800
SHEFFIELD CITY COUNCIL,PEOPLE,14009346039,ADULT SOCIAL CARE PURCHASING,9190002,BLOCK CONTRACT,03/01/2018,J2112651101217,310.00,DIRECT HEALTH UK LTD,CT230243419,Home Care Services,20438800
SHEFFIELD CITY COUNCIL,PEOPLE,14009346039,ADULT SOCIAL CARE PURCHASING,9190002,BLOCK CONTRACT,03/01/2018,J2112625101217,310.52,DIRECT HEALTH UK LTD,CT230243419,Home Care Services,20438800
SHEFFIELD CITY COUNCIL,PEOPLE,14009346039,ADULT SOCIAL CARE PURCHASING,9190002,BLOCK CONTRACT,03/01/2018,J2112624101217,310.76,DIRECT HEALTH UK LTD,CT230243419,Home Care Services,20438800
SHEFFIELD CITY COUNCIL,PEOPLE,14009346039,ADULT SOCIAL CARE PURCHASING,9190002,BLOCK CONTRACT,03/01/2018,J2112652101217,313.04,DIRECT HEALTH UK LTD,CT230243419,Home Care Services,20438800
SHEFFIELD CITY COUNCIL,PEOPLE,14009346039,ADULT SOCIAL CARE PURCHASING,9190002,BLOCK CONTRACT,03/01/2018,J2112652101217,313.04,DIRECT HEALTH UK LTD,CT230243419,Home Care Services,20438800
SHEFFIELD CITY COUNCIL,PEOPLE,14009346039,ADULT SOCIAL CARE PURCHASING,9190002,BLOCK CONTRACT,03/01/2018,J2112652101217,313.04,DIRECT HEALTH UK LTD,CT230243419,Home Care Services,20438800
SHEFFIELD CITY COUNCIL,PEOPLE,14009346039,ADULT SOCIAL CARE PURCHASING,9190002,BLOCK CONTRACT,03/01/2018,J2112652101217,313.04,DIRECT HEALTH UK LTD,CT230243419,Home Care Services,20438800
SHEFFIELD CITY COUNCIL,PEOPLE,14009346039,ADULT SOCIAL CARE PURCHASING,9190002,BLOCK CONTRACT,03/01/2018,J2112625101217,315.28,DIRECT HEALTH UK LTD,CT230243419,Home Care Services,20438800
SHEFFIELD CITY COUNCIL,PEOPLE,14009346039,ADULT SOCIAL CARE PURCHASING,9190002,BLOCK CONTRACT,03/01/2018,J2112624101217,315.84,DIRECT HEALTH UK LTD,CT230243419,Home Care Services,20438800
SHEFFIELD CITY COUNCIL,PEOPLE,14009346039,ADULT SOCIAL CARE PURCHASING,9190002,BLOCK CONTRACT,03/01/2018,J2112624101217,315.84,DIRECT HEALTH UK LTD,CT230243419,Home Care Services,20438800
SHEFFIELD CITY COUNCIL,PEOPLE,14009346039,ADULT SOCIAL CARE PURCHASING,9190002,BLOCK CONTRACT,03/01/2018,J2112625101217,320.24,DIRECT HEALTH UK LTD,CT230243419,Home Care Services,20438800
SHEFFIELD CITY COUNCIL,PEOPLE,14009346039,ADULT SOCIAL CARE PURCHASING,9190002,BLOCK CONTRACT,03/01/2018,J2112626101217,323.96,DIRECT HEALTH UK LTD,CT230243419,Home Care Services,20438800
SHEFFIELD CITY COUNCIL,PEOPLE,14009346039,ADULT SOCIAL CARE PURCHASING,9190002,BLOCK CONTRACT,03/01/2018,J2112626101217,323.96,DIRECT HEALTH UK LTD,CT230243419,Home Care Services,20438800
SHEFFIELD CITY COUNCIL,PEOPLE,14009346039,ADULT SOCIAL CARE PURCHASING,9190002,BLOCK CONTRACT,03/01/2018,J2112626101217,323.96,DIRECT HEALTH UK LTD,CT230243419,Home Care Services,20438800
SHEFFIELD CITY COUNCIL,PEOPLE,14009346039,ADULT SOCIAL CARE PURCHASING,9190002,BLOCK CONTRACT,03/01/2018,J2112626101217,323.96,DIRECT HEALTH UK LTD,CT230243419,Home Care Services,20438800
SHEFFIELD CITY COUNCIL,PEOPLE,14009346039,ADULT SOCIAL CARE PURCHASING,9190002,BLOCK CONTRACT,03/01/2018,J2112624101217,325.80,DIRECT HEALTH UK LTD,CT230243419,Home Care Services,20438800
SHEFFIELD CITY COUNCIL,PEOPLE,14009346039,ADULT SOCIAL CARE PURCHASING,9190002,BLOCK CONTRACT,03/01/2018,J2112626101217,329.12,DIRECT HEALTH UK LTD,CT230243419,Home Care Services,20438800
SHEFFIELD CITY COUNCIL,PEOPLE,14009346039,ADULT SOCIAL CARE PURCHASING,9190002,BLOCK CONTRACT,03/01/2018,J2112625101217,334.92,DIRECT HEALTH UK LTD,CT230243419,Home Care Services,20438800
SHEFFIELD CITY COUNCIL,PEOPLE,14009242034,PURCHASING LEARNING DISABILITI,9190002,BLOCK CONTRACT,03/01/2018,J2112652101217,335.34,DIRECT HEALTH UK LTD,CT230243419,Home Care Services,20438800
SHEFFIELD CITY COUNCIL,PEOPLE,14009346039,ADULT SOCIAL CARE PURCHASING,9190002,BLOCK CONTRACT,03/01/2018,J2112651101217,336.56,DIRECT HEALTH UK LTD,CT230243419,Home Care Services,20438800
SHEFFIELD CITY COUNCIL,PEOPLE,14009346039,ADULT SOCIAL CARE PURCHASING,9190002,BLOCK CONTRACT,03/01/2018,J2112651101217,336.56,DIRECT HEALTH UK LTD,CT230243419,Home Care Services,20438800
SHEFFIELD CITY COUNCIL,PEOPLE,14009346039,ADULT SOCIAL CARE PURCHASING,9190002,BLOCK CONTRACT,03/01/2018,J2112651101217,336.56,DIRECT HEALTH UK LTD,CT230243419,Home Care Services,20438800
SHEFFIELD CITY COUNCIL,PEOPLE,14009346039,ADULT SOCIAL CARE PURCHASING,9190002,BLOCK CONTRACT,03/01/2018,J2112625101217,340.04,DIRECT HEALTH UK LTD,CT230243419,Home Care Services,20438800
SHEFFIELD CITY COUNCIL,PEOPLE,14009346039,ADULT SOCIAL CARE PURCHASING,9190002,BLOCK CONTRACT,03/01/2018,J2112651101217,342.04,DIRECT HEALTH UK LTD,CT230243419,Home Care Services,20438800
SHEFFIELD CITY COUNCIL,PEOPLE,14009346039,ADULT SOCIAL CARE PURCHASING,9190002,BLOCK CONTRACT,03/01/2018,J2112625101217,344.96,DIRECT HEALTH UK LTD,CT230243419,Home Care Services,20438800
SHEFFIELD CITY COUNCIL,PEOPLE,14009346039,ADULT SOCIAL CARE PURCHASING,9190002,BLOCK CONTRACT,03/01/2018,J2112625101217,344.96,DIRECT HEALTH UK LTD,CT230243419,Home Care Services,20438800
SHEFFIELD CITY COUNCIL,PEOPLE,14009346039,ADULT SOCIAL CARE PURCHASING,9190002,BLOCK CONTRACT,03/01/2018,J2112652101217,347.76,DIRECT HEALTH UK LTD,CT230243419,Home Care Services,20438800
SHEFFIELD CITY COUNCIL,PEOPLE,14009346039,ADULT SOCIAL CARE PURCHASING,9190002,BLOCK CONTRACT,03/01/2018,J2112652101217,347.76,DIRECT HEALTH UK LTD,CT230243419,Home Care Services,20438800
SHEFFIELD CITY COUNCIL,PEOPLE,14009346039,ADULT SOCIAL CARE PURCHASING,9190002,BLOCK CONTRACT,03/01/2018,J2112652101217,347.76,DIRECT HEALTH UK LTD,CT230243419,Home Care Services,20438800
SHEFFIELD CITY COUNCIL,PEOPLE,14009346039,ADULT SOCIAL CARE PURCHASING,9190002,BLOCK CONTRACT,03/01/2018,J2112652101217,347.76,DIRECT HEALTH UK LTD,CT230243419,Home Care Services,20438800
SHEFFIELD CITY COUNCIL,PEOPLE,14009346039,ADULT SOCIAL CARE PURCHASING,9190002,BLOCK CONTRACT,03/01/2018,J2112652101217,347.76,DIRECT HEALTH UK LTD,CT230243419,Home Care Services,20438800
SHEFFIELD CITY COUNCIL,PEOPLE,14009346039,ADULT SOCIAL CARE PURCHASING,9190002,BLOCK CONTRACT,03/01/2018,J2112652101217,347.76,DIRECT HEALTH UK LTD,CT230243419,Home Care Services,20438800
SHEFFIELD CITY COUNCIL,PEOPLE,14009346039,ADULT SOCIAL CARE PURCHASING,9190002,BLOCK CONTRACT,03/01/2018,J2112626101217,349.84,DIRECT HEALTH UK LTD,CT230243419,Home Care Services,20438800
SHEFFIELD CITY COUNCIL,PEOPLE,14009346039,ADULT SOCIAL CARE PURCHASING,9190002,BLOCK CONTRACT,03/01/2018,J2112624101217,350.84,DIRECT HEALTH UK LTD,CT230243419,Home Care Services,20438800
SHEFFIELD CITY COUNCIL,PEOPLE,14009346039,ADULT SOCIAL CARE PURCHASING,9190002,BLOCK CONTRACT,03/01/2018,J2112624101217,350.84,DIRECT HEALTH UK LTD,CT230243419,Home Care Services,20438800
SHEFFIELD CITY COUNCIL,PEOPLE,14009346039,ADULT SOCIAL CARE PURCHASING,9190002,BLOCK CONTRACT,03/01/2018,J2112624101217,350.84,DIRECT HEALTH UK LTD,CT230243419,Home Care Services,20438800
SHEFFIELD CITY COUNCIL,PEOPLE,14009346039,ADULT SOCIAL CARE PURCHASING,9190002,BLOCK CONTRACT,03/01/2018,J2112652101217,352.62,DIRECT HEALTH UK LTD,CT230243419,Home Care Services,20438800
SHEFFIELD CITY COUNCIL,PEOPLE,14009346039,ADULT SOCIAL CARE PURCHASING,9190002,BLOCK CONTRACT,03/01/2018,J2112651101217,355.30,DIRECT HEALTH UK LTD,CT230243419,Home Care Services,20438800
SHEFFIELD CITY COUNCIL,PEOPLE,14009346039,ADULT SOCIAL CARE PURCHASING,9190002,BLOCK CONTRACT,03/01/2018,J2112626101217,360.08,DIRECT HEALTH UK LTD,CT230243419,Home Care Services,20438800
SHEFFIELD CITY COUNCIL,PEOPLE,14009346039,ADULT SOCIAL CARE PURCHASING,9190002,BLOCK CONTRACT,03/01/2018,J2112626101217,360.08,DIRECT HEALTH UK LTD,CT230243419,Home Care Services,20438800
SHEFFIELD CITY COUNCIL,PEOPLE,14009346039,ADULT SOCIAL CARE PURCHASING,9190002,BLOCK CONTRACT,03/01/2018,J2112626101217,360.08,DIRECT HEALTH UK LTD,CT230243419,Home Care Services,20438800
SHEFFIELD CITY COUNCIL,PEOPLE,14009346039,ADULT SOCIAL CARE PURCHASING,9190002,BLOCK CONTRACT,03/01/2018,J2112626101217,360.08,DIRECT HEALTH UK LTD,CT230243419,Home Care Services,20438800
SHEFFIELD CITY COUNCIL,PEOPLE,14009346039,ADULT SOCIAL CARE PURCHASING,9190002,BLOCK CONTRACT,03/01/2018,J2112624101217,360.96,DIRECT HEALTH UK LTD,CT230243419,Home Care Services,20438800
SHEFFIELD CITY COUNCIL,PEOPLE,14009346039,ADULT SOCIAL CARE PURCHASING,9190002,BLOCK CONTRACT,03/01/2018,J2112652101217,362.53,DIRECT HEALTH UK LTD,CT230243419,Home Care Services,20438800
SHEFFIELD CITY COUNCIL,PEOPLE,14009346039,ADULT SOCIAL CARE PURCHASING,9190002,BLOCK CONTRACT,03/01/2018,J2112651101217,363.44,DIRECT HEALTH UK LTD,CT230243419,Home Care Services,20438800
SHEFFIELD CITY COUNCIL,PEOPLE,14009346039,ADULT SOCIAL CARE PURCHASING,9190002,BLOCK CONTRACT,03/01/2018,J2112624101217,365.88,DIRECT HEALTH UK LTD,CT230243419,Home Care Services,20438800
SHEFFIELD CITY COUNCIL,PEOPLE,14009346039,ADULT SOCIAL CARE PURCHASING,9190002,BLOCK CONTRACT,03/01/2018,J2112652101217,372.64,DIRECT HEALTH UK LTD,CT230243419,Home Care Services,20438800
SHEFFIELD CITY COUNCIL,PEOPLE,14009346039,ADULT SOCIAL CARE PURCHASING,9190002,BLOCK CONTRACT,03/01/2018,J2112651101217,374.08,DIRECT HEALTH UK LTD,CT230243419,Home Care Services,20438800
SHEFFIELD CITY COUNCIL,PEOPLE,14009346039,ADULT SOCIAL CARE PURCHASING,9190002,BLOCK CONTRACT,03/01/2018,J2112651101217,374.08,DIRECT HEALTH UK LTD,CT230243419,Home Care Services,20438800
SHEFFIELD CITY COUNCIL,PEOPLE,14009346039,ADULT SOCIAL CARE PURCHASING,9190002,BLOCK CONTRACT,03/01/2018,J2112625101217,379.40,DIRECT HEALTH UK LTD,CT230243419,Home Care Services,20438800
SHEFFIELD CITY COUNCIL,PEOPLE,14009346039,ADULT SOCIAL CARE PURCHASING,9190002,BLOCK CONTRACT,03/01/2018,J2112624101217,380.96,DIRECT HEALTH UK LTD,CT230243419,Home Care Services,20438800
SHEFFIELD CITY COUNCIL,PEOPLE,14009346039,ADULT SOCIAL CARE PURCHASING,9190002,BLOCK CONTRACT,03/01/2018,J2112652101217,382.48,DIRECT HEALTH UK LTD,CT230243419,Home Care Services,20438800
SHEFFIELD CITY COUNCIL,PEOPLE,14009346039,ADULT SOCIAL CARE PURCHASING,9190002,BLOCK CONTRACT,03/01/2018,J2112626101217,385.88,DIRECT HEALTH UK LTD,CT230243419,Home Care Services,20438800
SHEFFIELD CITY COUNCIL,PEOPLE,14009346039,ADULT SOCIAL CARE PURCHASING,9190002,BLOCK CONTRACT,03/01/2018,J2112652101217,387.44,DIRECT HEALTH UK LTD,CT230243419,Home Care Services,20438800
SHEFFIELD CITY COUNCIL,PEOPLE,14009346039,ADULT SOCIAL CARE PURCHASING,9190002,BLOCK CONTRACT,03/01/2018,J2112625101217,389.28,DIRECT HEALTH UK LTD,CT230243419,Home Care Services,20438800
SHEFFIELD CITY COUNCIL,PEOPLE,14009346039,ADULT SOCIAL CARE PURCHASING,9190002,BLOCK CONTRACT,03/01/2018,J2112652101217,392.40,DIRECT HEALTH UK LTD,CT230243419,Home Care Services,20438800
SHEFFIELD CITY COUNCIL,PEOPLE,14009346039,ADULT SOCIAL CARE PURCHASING,9190002,BLOCK CONTRACT,03/01/2018,J2112625101217,394.24,DIRECT HEALTH UK LTD,CT230243419,Home Care Services,20438800
SHEFFIELD CITY COUNCIL,PEOPLE,14009346039,ADULT SOCIAL CARE PURCHASING,9190002,BLOCK CONTRACT,03/01/2018,J2112593101217,395.92,DIRECT HEALTH UK LTD,CT230243419,Home Care Services,20438800
SHEFFIELD CITY COUNCIL,PEOPLE,14009346039,ADULT SOCIAL CARE PURCHASING,9190002,BLOCK CONTRACT,03/01/2018,J2112593101217,395.92,DIRECT HEALTH UK LTD,CT230243419,Home Care Services,20438800
SHEFFIELD CITY COUNCIL,PEOPLE,14009346039,ADULT SOCIAL CARE PURCHASING,9190002,BLOCK CONTRACT,03/01/2018,J2112593101217,395.92,DIRECT HEALTH UK LTD,CT230243419,Home Care Services,20438800
SHEFFIELD CITY COUNCIL,PEOPLE,14009346039,ADULT SOCIAL CARE PURCHASING,9190002,BLOCK CONTRACT,03/01/2018,J2112593101217,395.92,DIRECT HEALTH UK LTD,CT230243419,Home Care Services,20438800
SHEFFIELD CITY COUNCIL,PEOPLE,14009346039,ADULT SOCIAL CARE PURCHASING,9190002,BLOCK CONTRACT,03/01/2018,J2112593101217,395.92,DIRECT HEALTH UK LTD,CT230243419,Home Care Services,20438800
SHEFFIELD CITY COUNCIL,PEOPLE,14009346039,ADULT SOCIAL CARE PURCHASING,9190002,BLOCK CONTRACT,03/01/2018,J2112593101217,395.92,DIRECT HEALTH UK LTD,CT230243419,Home Care Services,20438800
SHEFFIELD CITY COUNCIL,PEOPLE,14009346039,ADULT SOCIAL CARE PURCHASING,9190002,BLOCK CONTRACT,03/01/2018,J2112593101217,395.92,DIRECT HEALTH UK LTD,CT230243419,Home Care Services,20438800
SHEFFIELD CITY COUNCIL,PEOPLE,14009346039,ADULT SOCIAL CARE PURCHASING,9190002,BLOCK CONTRACT,03/01/2018,J2112593101217,395.92,DIRECT HEALTH UK LTD,CT230243419,Home Care Services,20438800
SHEFFIELD CITY COUNCIL,PEOPLE,14009346039,ADULT SOCIAL CARE PURCHASING,9190002,BLOCK CONTRACT,03/01/2018,J2112593101217,395.92,DIRECT HEALTH UK LTD,CT230243419,Home Care Services,20438800
SHEFFIELD CITY COUNCIL,PEOPLE,14009346039,ADULT SOCIAL CARE PURCHASING,9190002,BLOCK CONTRACT,03/01/2018,J2112593101217,395.92,DIRECT HEALTH UK LTD,CT230243419,Home Care Services,20438800
SHEFFIELD CITY COUNCIL,PEOPLE,14009346039,ADULT SOCIAL CARE PURCHASING,9190002,BLOCK CONTRACT,03/01/2018,J2112593101217,395.92,DIRECT HEALTH UK LTD,CT230243419,Home Care Services,20438800
SHEFFIELD CITY COUNCIL,PEOPLE,14009346039,ADULT SOCIAL CARE PURCHASING,9190002,BLOCK CONTRACT,03/01/2018,J2112593101217,395.92,DIRECT HEALTH UK LTD,CT230243419,Home Care Services,20438800
SHEFFIELD CITY COUNCIL,PEOPLE,14009346039,ADULT SOCIAL CARE PURCHASING,9190002,BLOCK CONTRACT,03/01/2018,J2112593101217,395.92,DIRECT HEALTH UK LTD,CT230243419,Home Care Services,20438800
SHEFFIELD CITY COUNCIL,PEOPLE,14009346039,ADULT SOCIAL CARE PURCHASING,9190002,BLOCK CONTRACT,03/01/2018,J2112625101217,404.00,DIRECT HEALTH UK LTD,CT230243419,Home Care Services,20438800
SHEFFIELD CITY COUNCIL,PEOPLE,14009346039,ADULT SOCIAL CARE PURCHASING,9190002,BLOCK CONTRACT,03/01/2018,J2112625101217,404.08,DIRECT HEALTH UK LTD,CT230243419,Home Care Services,20438800
SHEFFIELD CITY COUNCIL,PEOPLE,14009346039,ADULT SOCIAL CARE PURCHASING,9190002,BLOCK CONTRACT,03/01/2018,J2112625101217,404.08,DIRECT HEALTH UK LTD,CT230243419,Home Care Services,20438800
SHEFFIELD CITY COUNCIL,PEOPLE,14009346039,ADULT SOCIAL CARE PURCHASING,9190002,BLOCK CONTRACT,03/01/2018,J2112651101217,406.16,DIRECT HEALTH UK LTD,CT230243419,Home Care Services,20438800
SHEFFIELD CITY COUNCIL,PEOPLE,14009346039,ADULT SOCIAL CARE PURCHASING,9190002,BLOCK CONTRACT,03/01/2018,J2112651101217,411.32,DIRECT HEALTH UK LTD,CT230243419,Home Care Services,20438800
SHEFFIELD CITY COUNCIL,PEOPLE,14009346039,ADULT SOCIAL CARE PURCHASING,9190002,BLOCK CONTRACT,03/01/2018,J2112625101217,413.84,DIRECT HEALTH UK LTD,CT230243419,Home Care Services,20438800
SHEFFIELD CITY COUNCIL,PEOPLE,14009346039,ADULT SOCIAL CARE PURCHASING,9190002,BLOCK CONTRACT,03/01/2018,J2112625101217,413.84,DIRECT HEALTH UK LTD,CT230243419,Home Care Services,20438800
SHEFFIELD CITY COUNCIL,PEOPLE,14009346039,ADULT SOCIAL CARE PURCHASING,9190002,BLOCK CONTRACT,03/01/2018,J2112625101217,413.84,DIRECT HEALTH UK LTD,CT230243419,Home Care Services,20438800
SHEFFIELD CITY COUNCIL,PEOPLE,14009346039,ADULT SOCIAL CARE PURCHASING,9190002,BLOCK CONTRACT,03/01/2018,J2112625101217,413.84,DIRECT HEALTH UK LTD,CT230243419,Home Care Services,20438800
SHEFFIELD CITY COUNCIL,PEOPLE,14009346039,ADULT SOCIAL CARE PURCHASING,9190002,BLOCK CONTRACT,03/01/2018,J2112625101217,413.84,DIRECT HEALTH UK LTD,CT230243419,Home Care Services,20438800
SHEFFIELD CITY COUNCIL,PEOPLE,14009346039,ADULT SOCIAL CARE PURCHASING,9190002,BLOCK CONTRACT,03/01/2018,J2112626101217,416.56,DIRECT HEALTH UK LTD,CT230243419,Home Care Services,20438800
SHEFFIELD CITY COUNCIL,PEOPLE,14009346039,ADULT SOCIAL CARE PURCHASING,9190002,BLOCK CONTRACT,03/01/2018,J2112652101217,417.20,DIRECT HEALTH UK LTD,CT230243419,Home Care Services,20438800
SHEFFIELD CITY COUNCIL,PEOPLE,14009346039,ADULT SOCIAL CARE PURCHASING,9190002,BLOCK CONTRACT,03/01/2018,J2112652101217,417.20,DIRECT HEALTH UK LTD,CT230243419,Home Care Services,20438800
SHEFFIELD CITY COUNCIL,PEOPLE,14009346039,ADULT SOCIAL CARE PURCHASING,9190002,BLOCK CONTRACT,03/01/2018,J2112652101217,417.20,DIRECT HEALTH UK LTD,CT230243419,Home Care Services,20438800
SHEFFIELD CITY COUNCIL,PEOPLE,14009346039,ADULT SOCIAL CARE PURCHASING,9190002,BLOCK CONTRACT,03/01/2018,J2112652101217,417.20,DIRECT HEALTH UK LTD,CT230243419,Home Care Services,20438800
SHEFFIELD CITY COUNCIL,PEOPLE,14009346039,ADULT SOCIAL CARE PURCHASING,9190002,BLOCK CONTRACT,03/01/2018,J2112652101217,417.20,DIRECT HEALTH UK LTD,CT230243419,Home Care Services,20438800
SHEFFIELD CITY COUNCIL,PEOPLE,14009346039,ADULT SOCIAL CARE PURCHASING,9190002,BLOCK CONTRACT,03/01/2018,J2112652101217,417.20,DIRECT HEALTH UK LTD,CT230243419,Home Care Services,20438800
SHEFFIELD CITY COUNCIL,PEOPLE,14009346039,ADULT SOCIAL CARE PURCHASING,9190002,BLOCK CONTRACT,03/01/2018,J2112652101217,417.20,DIRECT HEALTH UK LTD,CT230243419,Home Care Services,20438800
SHEFFIELD CITY COUNCIL,PEOPLE,14009346039,ADULT SOCIAL CARE PURCHASING,9190002,BLOCK CONTRACT,03/01/2018,J2112652101217,417.20,DIRECT HEALTH UK LTD,CT230243419,Home Care Services,20438800
SHEFFIELD CITY COUNCIL,PEOPLE,14009346039,ADULT SOCIAL CARE PURCHASING,9190002,BLOCK CONTRACT,03/01/2018,J2112652101217,417.20,DIRECT HEALTH UK LTD,CT230243419,Home Care Services,20438800
SHEFFIELD CITY COUNCIL,PEOPLE,14009346039,ADULT SOCIAL CARE PURCHASING,9190002,BLOCK CONTRACT,03/01/2018,J2112624101217,421.12,DIRECT HEALTH UK LTD,CT230243419,Home Care Services,20438800
SHEFFIELD CITY COUNCIL,PEOPLE,14009346039,ADULT SOCIAL CARE PURCHASING,9190002,BLOCK CONTRACT,03/01/2018,J2112624101217,421.12,DIRECT HEALTH UK LTD,CT230243419,Home Care Services,20438800
SHEFFIELD CITY COUNCIL,PEOPLE,14009346039,ADULT SOCIAL CARE PURCHASING,9190002,BLOCK CONTRACT,03/01/2018,J2112624101217,421.12,DIRECT HEALTH UK LTD,CT230243419,Home Care Services,20438800
SHEFFIELD CITY COUNCIL,PEOPLE,14009346039,ADULT SOCIAL CARE PURCHASING,9190002,BLOCK CONTRACT,03/01/2018,J2112624101217,421.12,DIRECT HEALTH UK LTD,CT230243419,Home Care Services,20438800
SHEFFIELD CITY COUNCIL,PEOPLE,14009346039,ADULT SOCIAL CARE PURCHASING,9190002,BLOCK CONTRACT,03/01/2018,J2112624101217,421.12,DIRECT HEALTH UK LTD,CT230243419,Home Care Services,20438800
SHEFFIELD CITY COUNCIL,PEOPLE,14009346039,ADULT SOCIAL CARE PURCHASING,9190002,BLOCK CONTRACT,03/01/2018,J2112651101217,422.28,DIRECT HEALTH UK LTD,CT230243419,Home Care Services,20438800
SHEFFIELD CITY COUNCIL,PEOPLE,14009346039,ADULT SOCIAL CARE PURCHASING,9190002,BLOCK CONTRACT,03/01/2018,J2112651101217,427.52,DIRECT HEALTH UK LTD,CT230243419,Home Care Services,20438800
SHEFFIELD CITY COUNCIL,PEOPLE,14009346039,ADULT SOCIAL CARE PURCHASING,9190002,BLOCK CONTRACT,03/01/2018,J2112624101217,431.12,DIRECT HEALTH UK LTD,CT230243419,Home Care Services,20438800
SHEFFIELD CITY COUNCIL,PEOPLE,14009346039,ADULT SOCIAL CARE PURCHASING,9190002,BLOCK CONTRACT,03/01/2018,J2112624101217,431.12,DIRECT HEALTH UK LTD,CT230243419,Home Care Services,20438800
SHEFFIELD CITY COUNCIL,PEOPLE,14009346039,ADULT SOCIAL CARE PURCHASING,9190002,BLOCK CONTRACT,03/01/2018,J2112626101217,432.04,DIRECT HEALTH UK LTD,CT230243419,Home Care Services,20438800
SHEFFIELD CITY COUNCIL,PEOPLE,14009346039,ADULT SOCIAL CARE PURCHASING,9190002,BLOCK CONTRACT,03/01/2018,J2112626101217,432.04,DIRECT HEALTH UK LTD,CT230243419,Home Care Services,20438800
SHEFFIELD CITY COUNCIL,PEOPLE,14009346039,ADULT SOCIAL CARE PURCHASING,9190002,BLOCK CONTRACT,03/01/2018,J2112626101217,432.04,DIRECT HEALTH UK LTD,CT230243419,Home Care Services,20438800
SHEFFIELD CITY COUNCIL,PEOPLE,14009242034,PURCHASING LEARNING DISABILITI,9190007,FUNDED HOME SUPPORT,03/01/2018,J2112626101217,432.04,DIRECT HEALTH UK LTD,CT230243419,Home Care Services,20438800
SHEFFIELD CITY COUNCIL,PEOPLE,14009346039,ADULT SOCIAL CARE PURCHASING,9190002,BLOCK CONTRACT,03/01/2018,J2112626101217,432.04,DIRECT HEALTH UK LTD,CT230243419,Home Care Services,20438800
SHEFFIELD CITY COUNCIL,PEOPLE,14009346039,ADULT SOCIAL CARE PURCHASING,9190002,BLOCK CONTRACT,03/01/2018,J2112626101217,437.20,DIRECT HEALTH UK LTD,CT230243419,Home Care Services,20438800
SHEFFIELD CITY COUNCIL,PEOPLE,14009346039,ADULT SOCIAL CARE PURCHASING,9190002,BLOCK CONTRACT,03/01/2018,J2112624101217,441.20,DIRECT HEALTH UK LTD,CT230243419,Home Care Services,20438800
SHEFFIELD CITY COUNCIL,PEOPLE,14009346039,ADULT SOCIAL CARE PURCHASING,9190002,BLOCK CONTRACT,03/01/2018,J2112625101217,443.36,DIRECT HEALTH UK LTD,CT230243419,Home Care Services,20438800
SHEFFIELD CITY COUNCIL,PEOPLE,14009346039,ADULT SOCIAL CARE PURCHASING,9190002,BLOCK CONTRACT,03/01/2018,J2112652101217,447.00,DIRECT HEALTH UK LTD,CT230243419,Home Care Services,20438800
SHEFFIELD CITY COUNCIL,PEOPLE,14009346039,ADULT SOCIAL CARE PURCHASING,9190002,BLOCK CONTRACT,03/01/2018,J2112651101217,448.84,DIRECT HEALTH UK LTD,CT230243419,Home Care Services,20438800
SHEFFIELD CITY COUNCIL,PEOPLE,14009346039,ADULT SOCIAL CARE PURCHASING,9190002,BLOCK CONTRACT,03/01/2018,J2112651101217,448.84,DIRECT HEALTH UK LTD,CT230243419,Home Care Services,20438800
SHEFFIELD CITY COUNCIL,PEOPLE,14009346039,ADULT SOCIAL CARE PURCHASING,9190002,BLOCK CONTRACT,03/01/2018,J2112651101217,448.84,DIRECT HEALTH UK LTD,CT230243419,Home Care Services,20438800
SHEFFIELD CITY COUNCIL,PEOPLE,14009346039,ADULT SOCIAL CARE PURCHASING,9190002,BLOCK CONTRACT,03/01/2018,J2112651101217,448.84,DIRECT HEALTH UK LTD,CT230243419,Home Care Services,20438800
SHEFFIELD CITY COUNCIL,PEOPLE,14009346039,ADULT SOCIAL CARE PURCHASING,9190002,BLOCK CONTRACT,03/01/2018,J2112651101217,448.84,DIRECT HEALTH UK LTD,CT230243419,Home Care Services,20438800
SHEFFIELD CITY COUNCIL,PEOPLE,14009346039,ADULT SOCIAL CARE PURCHASING,9190002,BLOCK CONTRACT,03/01/2018,J2112651101217,448.84,DIRECT HEALTH UK LTD,CT230243419,Home Care Services,20438800
SHEFFIELD CITY COUNCIL,PEOPLE,14009346039,ADULT SOCIAL CARE PURCHASING,9190002,BLOCK CONTRACT,03/01/2018,J2112651101217,448.84,DIRECT HEALTH UK LTD,CT230243419,Home Care Services,20438800
SHEFFIELD CITY COUNCIL,PEOPLE,14009346039,ADULT SOCIAL CARE PURCHASING,9190002,BLOCK CONTRACT,03/01/2018,J2112652101217,451.92,DIRECT HEALTH UK LTD,CT230243419,Home Care Services,20438800
SHEFFIELD CITY COUNCIL,PEOPLE,14009346039,ADULT SOCIAL CARE PURCHASING,9190002,BLOCK CONTRACT,03/01/2018,J2112624101217,456.12,DIRECT HEALTH UK LTD,CT230243419,Home Care Services,20438800
SHEFFIELD CITY COUNCIL,PEOPLE,14009346039,ADULT SOCIAL CARE PURCHASING,9190002,BLOCK CONTRACT,03/01/2018,J2112624101217,456.12,DIRECT HEALTH UK LTD,CT230243419,Home Care Services,20438800
SHEFFIELD CITY COUNCIL,PEOPLE,14009346039,ADULT SOCIAL CARE PURCHASING,9190002,BLOCK CONTRACT,03/01/2018,J2112624101217,456.12,DIRECT HEALTH UK LTD,CT230243419,Home Care Services,20438800
SHEFFIELD CITY COUNCIL,PEOPLE,14009346039,ADULT SOCIAL CARE PURCHASING,9190002,BLOCK CONTRACT,03/01/2018,J2112652101217,466.80,DIRECT HEALTH UK LTD,CT230243419,Home Care Services,20438800
SHEFFIELD CITY COUNCIL,PEOPLE,14009346039,ADULT SOCIAL CARE PURCHASING,9190002,BLOCK CONTRACT,03/01/2018,J2112626101217,468.16,DIRECT HEALTH UK LTD,CT230243419,Home Care Services,20438800
SHEFFIELD CITY COUNCIL,PEOPLE,14009346039,ADULT SOCIAL CARE PURCHASING,9190002,BLOCK CONTRACT,03/01/2018,J2112626101217,468.16,DIRECT HEALTH UK LTD,CT230243419,Home Care Services,20438800
SHEFFIELD CITY COUNCIL,PEOPLE,14009346039,ADULT SOCIAL CARE PURCHASING,9190002,BLOCK CONTRACT,03/01/2018,J2112652101217,471.84,DIRECT HEALTH UK LTD,CT230243419,Home Care Services,20438800
SHEFFIELD CITY COUNCIL,PEOPLE,14009346039,ADULT SOCIAL CARE PURCHASING,9190002,BLOCK CONTRACT,03/01/2018,J2112625101217,472.96,DIRECT HEALTH UK LTD,CT230243419,Home Care Services,20438800
SHEFFIELD CITY COUNCIL,PEOPLE,14009346039,ADULT SOCIAL CARE PURCHASING,9190002,BLOCK CONTRACT,03/01/2018,J2112651101217,480.92,DIRECT HEALTH UK LTD,CT230243419,Home Care Services,20438800
SHEFFIELD CITY COUNCIL,PEOPLE,14009346039,ADULT SOCIAL CARE PURCHASING,9190002,BLOCK CONTRACT,03/01/2018,J2112624101217,481.28,DIRECT HEALTH UK LTD,CT230243419,Home Care Services,20438800
SHEFFIELD CITY COUNCIL,PEOPLE,14009346039,ADULT SOCIAL CARE PURCHASING,9190002,BLOCK CONTRACT,03/01/2018,J2112625101217,482.72,DIRECT HEALTH UK LTD,CT230243419,Home Care Services,20438800
SHEFFIELD CITY COUNCIL,PEOPLE,14009346039,ADULT SOCIAL CARE PURCHASING,9190002,BLOCK CONTRACT,03/01/2018,J2112624101217,491.40,DIRECT HEALTH UK LTD,CT230243419,Home Care Services,20438800
SHEFFIELD CITY COUNCIL,PEOPLE,14009346039,ADULT SOCIAL CARE PURCHASING,9190002,BLOCK CONTRACT,03/01/2018,J2112624101217,491.40,DIRECT HEALTH UK LTD,CT230243419,Home Care Services,20438800
SHEFFIELD CITY COUNCIL,PEOPLE,14009346039,ADULT SOCIAL CARE PURCHASING,9190002,BLOCK CONTRACT,03/01/2018,J2112624101217,491.40,DIRECT HEALTH UK LTD,CT230243419,Home Care Services,20438800
SHEFFIELD CITY COUNCIL,PEOPLE,13002639143,CWD INDEPENDENT PLACEMENTS,9270009,INDEPENDENT FOSTERING,03/01/2018,24912,"5,237.10",BANYA FAMILY PLACEMENT AGENCY LTD,CT240201880,Adoption & Fostering,46061800
SHEFFIELD CITY COUNCIL,PEOPLE,13002639143,CWD INDEPENDENT PLACEMENTS,9270009,INDEPENDENT FOSTERING,03/01/2018,25295,"5,237.10",BANYA FAMILY PLACEMENT AGENCY LTD,CT240201880,Adoption & Fostering,46061800
SHEFFIELD CITY COUNCIL,PEOPLE,13002639143,CWD INDEPENDENT PLACEMENTS,9270009,INDEPENDENT FOSTERING,03/01/2018,25109,"5,411.67",BANYA FAMILY PLACEMENT AGENCY LTD,CT240201880,Adoption & Fostering,46061800
SHEFFIELD CITY COUNCIL,PEOPLE,14009346039,ADULT SOCIAL CARE PURCHASING,9190002,BLOCK CONTRACT,03/01/2018,J2112624101217,491.40,DIRECT HEALTH UK LTD,CT230243419,Home Care Services,20438800
SHEFFIELD CITY COUNCIL,PEOPLE,14009346039,ADULT SOCIAL CARE PURCHASING,4260011,NURSING COSTS RECOVERED,03/01/2018,J2103633311217,"-1,320.20",LEONARD CHESHIRE SERVICES,CT230417020,Charities & Voluntary Organisations,32930600
SHEFFIELD CITY COUNCIL,PEOPLE,14009346039,ADULT SOCIAL CARE PURCHASING,4260011,NURSING COSTS RECOVERED,03/01/2018,J2103633311217,-759.24,LEONARD CHESHIRE SERVICES,CT230417020,Charities & Voluntary Organisations,32930600
SHEFFIELD CITY COUNCIL,PEOPLE,14009346039,ADULT SOCIAL CARE PURCHASING,4260011,NURSING COSTS RECOVERED,03/01/2018,J2103633311217,-613.88,LEONARD CHESHIRE SERVICES,CT230417020,Charities & Voluntary Organisations,32930600
SHEFFIELD CITY COUNCIL,PEOPLE,14009346039,ADULT SOCIAL CARE PURCHASING,4260011,NURSING COSTS RECOVERED,03/01/2018,J2103633311217,-575.00,LEONARD CHESHIRE SERVICES,CT230417020,Charities & Voluntary Organisations,32930600
SHEFFIELD CITY COUNCIL,PEOPLE,14009346039,ADULT SOCIAL CARE PURCHASING,4260011,NURSING COSTS RECOVERED,03/01/2018,J2103633311217,-548.92,LEONARD CHESHIRE SERVICES,CT230417020,Charities & Voluntary Organisations,32930600
SHEFFIELD CITY COUNCIL,PEOPLE,14009346039,ADULT SOCIAL CARE PURCHASING,4260011,NURSING COSTS RECOVERED,03/01/2018,J2103633311217,-537.80,LEONARD CHESHIRE SERVICES,CT230417020,Charities & Voluntary Organisations,32930600
SHEFFIELD CITY COUNCIL,PEOPLE,14009242034,PURCHASING LEARNING DISABILITI,4260018,RESIDENTIAL COSTS RECOVERED,03/01/2018,J2103633311217,-537.80,LEONARD CHESHIRE SERVICES,CT230417020,Charities & Voluntary Organisations,32930600
SHEFFIELD CITY COUNCIL,PEOPLE,14009346039,ADULT SOCIAL CARE PURCHASING,4260011,NURSING COSTS RECOVERED,03/01/2018,J2103633311217,-523.00,LEONARD CHESHIRE SERVICES,CT230417020,Charities & Voluntary Organisations,32930600
SHEFFIELD CITY COUNCIL,PEOPLE,14009242034,PURCHASING LEARNING DISABILITI,4260011,NURSING COSTS RECOVERED,03/01/2018,J2103633311217,-402.00,LEONARD CHESHIRE SERVICES,CT230417020,Charities & Voluntary Organisations,32930600
SHEFFIELD CITY COUNCIL,PEOPLE,14009346039,ADULT SOCIAL CARE PURCHASING,4260011,NURSING COSTS RECOVERED,03/01/2018,J2103633311217,-399.00,LEONARD CHESHIRE SERVICES,CT230417020,Charities & Voluntary Organisations,32930600
SHEFFIELD CITY COUNCIL,PEOPLE,14009346039,ADULT SOCIAL CARE PURCHASING,4260011,NURSING COSTS RECOVERED,03/01/2018,J2103633311217,-381.20,LEONARD CHESHIRE SERVICES,CT230417020,Charities & Voluntary Organisations,32930600
SHEFFIELD CITY COUNCIL,PEOPLE,14009346039,ADULT SOCIAL CARE PURCHASING,4260011,NURSING COSTS RECOVERED,03/01/2018,J2103633311217,-336.60,LEONARD CHESHIRE SERVICES,CT230417020,Charities & Voluntary Organisations,32930600
SHEFFIELD CITY COUNCIL,PEOPLE,14009346039,ADULT SOCIAL CARE PURCHASING,4260011,NURSING COSTS RECOVERED,03/01/2018,J2103633311217,-336.60,LEONARD CHESHIRE SERVICES,CT230417020,Charities & Voluntary Organisations,32930600
SHEFFIELD CITY COUNCIL,PEOPLE,14009346039,ADULT SOCIAL CARE PURCHASING,4260011,NURSING COSTS RECOVERED,03/01/2018,J2103633311217,-336.60,LEONARD CHESHIRE SERVICES,CT230417020,Charities & Voluntary Organisations,32930600
SHEFFIELD CITY COUNCIL,PEOPLE,14009346039,ADULT SOCIAL CARE PURCHASING,4260018,RESIDENTIAL COSTS RECOVERED,03/01/2018,J2103633311217,-325.20,LEONARD CHESHIRE SERVICES,CT230417020,Charities & Voluntary Organisations,32930600
SHEFFIELD CITY COUNCIL,PEOPLE,14009242034,PURCHASING LEARNING DISABILITI,4260011,NURSING COSTS RECOVERED,03/01/2018,J2103633311217,-323.00,LEONARD CHESHIRE SERVICES,CT230417020,Charities & Voluntary Organisations,32930600
SHEFFIELD CITY COUNCIL,PEOPLE,14009346039,ADULT SOCIAL CARE PURCHASING,4260018,RESIDENTIAL COSTS RECOVERED,03/01/2018,J2103633311217,-323.00,LEONARD CHESHIRE SERVICES,CT230417020,Charities & Voluntary Organisations,32930600
SHEFFIELD CITY COUNCIL,PEOPLE,14009346039,ADULT SOCIAL CARE PURCHASING,9210001,CONTINUING NURSING CARE,03/01/2018,J2103633311217,"2,160.92",LEONARD CHESHIRE SERVICES,CT230417020,Charities & Voluntary Organisations,32930600
SHEFFIELD CITY COUNCIL,PEOPLE,14009346039,ADULT SOCIAL CARE PURCHASING,9210001,CONTINUING NURSING CARE,03/01/2018,J2103633311217,"2,255.36",LEONARD CHESHIRE SERVICES,CT230417020,Charities & Voluntary Organisations,32930600
SHEFFIELD CITY COUNCIL,PEOPLE,14009346039,ADULT SOCIAL CARE PURCHASING,9210001,CONTINUING NURSING CARE,03/01/2018,J2103633311217,"2,319.80",LEONARD CHESHIRE SERVICES,CT230417020,Charities & Voluntary Organisations,32930600
SHEFFIELD CITY COUNCIL,PEOPLE,14009346039,ADULT SOCIAL CARE PURCHASING,9210001,CONTINUING NURSING CARE,03/01/2018,J2103633311217,"2,559.58",LEONARD CHESHIRE SERVICES,CT230417020,Charities & Voluntary Organisations,32930600
SHEFFIELD CITY COUNCIL,PEOPLE,14009346039,ADULT SOCIAL CARE PURCHASING,9210001,CONTINUING NURSING CARE,03/01/2018,J2103633311217,"2,922.92",LEONARD CHESHIRE SERVICES,CT230417020,Charities & Voluntary Organisations,32930600
SHEFFIELD CITY COUNCIL,PEOPLE,14009346039,ADULT SOCIAL CARE PURCHASING,9210001,CONTINUING NURSING CARE,03/01/2018,J2103633311217,"3,081.08",LEONARD CHESHIRE SERVICES,CT230417020,Charities & Voluntary Organisations,32930600
SHEFFIELD CITY COUNCIL,PEOPLE,14009346039,ADULT SOCIAL CARE PURCHASING,9200001,CONTINUING RESIDENTIAL CARE,03/01/2018,J2103633311217,"3,088.76",LEONARD CHESHIRE SERVICES,CT230417020,Charities & Voluntary Organisations,32930600
SHEFFIELD CITY COUNCIL,PEOPLE,14009242034,PURCHASING LEARNING DISABILITI,9200001,CONTINUING RESIDENTIAL CARE,03/01/2018,J2103633311217,"3,100.08",LEONARD CHESHIRE SERVICES,CT230417020,Charities & Voluntary Organisations,32930600
SHEFFIELD CITY COUNCIL,PEOPLE,14009346039,ADULT SOCIAL CARE PURCHASING,9210001,CONTINUING NURSING CARE,03/01/2018,J2103633311217,"3,171.00",LEONARD CHESHIRE SERVICES,CT230417020,Charities & Voluntary Organisations,32930600
SHEFFIELD CITY COUNCIL,PEOPLE,14009346039,ADULT SOCIAL CARE PURCHASING,9210001,CONTINUING NURSING CARE,03/01/2018,J2103633311217,"3,463.16",LEONARD CHESHIRE SERVICES,CT230417020,Charities & Voluntary Organisations,32930600
SHEFFIELD CITY COUNCIL,PEOPLE,14009346039,ADULT SOCIAL CARE PURCHASING,9210001,CONTINUING NURSING CARE,03/01/2018,J2103633311217,"3,492.00",LEONARD CHESHIRE SERVICES,CT230417020,Charities & Voluntary Organisations,32930600
SHEFFIELD CITY COUNCIL,PEOPLE,14009346039,ADULT SOCIAL CARE PURCHASING,9210001,CONTINUING NURSING CARE,03/01/2018,J2103633311217,"3,573.28",LEONARD CHESHIRE SERVICES,CT230417020,Charities & Voluntary Organisations,32930600
SHEFFIELD CITY COUNCIL,PEOPLE,14009242034,PURCHASING LEARNING DISABILITI,9210001,CONTINUING NURSING CARE,03/01/2018,J2103633311217,"3,599.36",LEONARD CHESHIRE SERVICES,CT230417020,Charities & Voluntary Organisations,32930600
SHEFFIELD CITY COUNCIL,PEOPLE,14009346039,ADULT SOCIAL CARE PURCHASING,9210001,CONTINUING NURSING CARE,03/01/2018,J2103633311217,"4,006.32",LEONARD CHESHIRE SERVICES,CT230417020,Charities & Voluntary Organisations,32930600
SHEFFIELD CITY COUNCIL,PEOPLE,14009346039,ADULT SOCIAL CARE PURCHASING,9210001,CONTINUING NURSING CARE,03/01/2018,J2103633311217,"4,015.20",LEONARD CHESHIRE SERVICES,CT230417020,Charities & Voluntary Organisations,32930600
SHEFFIELD CITY COUNCIL,PEOPLE,14009346039,ADULT SOCIAL CARE PURCHASING,9200001,CONTINUING RESIDENTIAL CARE,03/01/2018,J2103633311217,"4,226.32",LEONARD CHESHIRE SERVICES,CT230417020,Charities & Voluntary Organisations,32930600
SHEFFIELD CITY COUNCIL,PEOPLE,14009346039,ADULT SOCIAL CARE PURCHASING,9210001,CONTINUING NURSING CARE,03/01/2018,J2103633311217,"4,240.24",LEONARD CHESHIRE SERVICES,CT230417020,Charities & Voluntary Organisations,32930600
SHEFFIELD CITY COUNCIL,PEOPLE,14009242034,PURCHASING LEARNING DISABILITI,9210001,CONTINUING NURSING CARE,03/01/2018,J2103633311217,"4,336.80",LEONARD CHESHIRE SERVICES,CT230417020,Charities & Voluntary Organisations,32930600
SHEFFIELD CITY COUNCIL,PEOPLE,14009346039,ADULT SOCIAL CARE PURCHASING,9210001,CONTINUING NURSING CARE,03/01/2018,J2103633311217,"4,997.92",LEONARD CHESHIRE SERVICES,CT230417020,Charities & Voluntary Organisations,32930600
SHEFFIELD CITY COUNCIL,PLACE,11850000000,RESPONSIVE REPAIRS,8530001,SUBCONTRACTOR GENERAL,03/01/2018,19370,"13,810.44",RICHMOND ENVIRONMENTAL SERVICES,CT072127660,Drain & Sewer Clearance,33147200
SHEFFIELD CITY COUNCIL,PEOPLE,14009346039,ADULT SOCIAL CARE PURCHASING,9190002,BLOCK CONTRACT,03/01/2018,J2112624101217,496.32,DIRECT HEALTH UK LTD,CT230243419,Home Care Services,20438800
SHEFFIELD CITY COUNCIL,PEOPLE,14009346039,ADULT SOCIAL CARE PURCHASING,9190002,BLOCK CONTRACT,03/01/2018,J2112624101217,496.32,DIRECT HEALTH UK LTD,CT230243419,Home Care Services,20438800
SHEFFIELD CITY COUNCIL,PEOPLE,14009346039,ADULT SOCIAL CARE PURCHASING,9190002,BLOCK CONTRACT,03/01/2018,J2112624101217,496.36,DIRECT HEALTH UK LTD,CT230243419,Home Care Services,20438800
SHEFFIELD CITY COUNCIL,PEOPLE,14009346039,ADULT SOCIAL CARE PURCHASING,9190002,BLOCK CONTRACT,03/01/2018,J2112652101217,496.68,DIRECT HEALTH UK LTD,CT230243419,Home Care Services,20438800
SHEFFIELD CITY COUNCIL,PEOPLE,14009346039,ADULT SOCIAL CARE PURCHASING,9190002,BLOCK CONTRACT,03/01/2018,J2112652101217,501.68,DIRECT HEALTH UK LTD,CT230243419,Home Care Services,20438800
SHEFFIELD CITY COUNCIL,PEOPLE,14009346039,ADULT SOCIAL CARE PURCHASING,9190002,BLOCK CONTRACT,03/01/2018,J2112651101217,502.28,DIRECT HEALTH UK LTD,CT230243419,Home Care Services,20438800
SHEFFIELD CITY COUNCIL,PEOPLE,14009346039,ADULT SOCIAL CARE PURCHASING,9190002,BLOCK CONTRACT,03/01/2018,J2112625101217,502.56,DIRECT HEALTH UK LTD,CT230243419,Home Care Services,20438800
SHEFFIELD CITY COUNCIL,PEOPLE,14009346039,ADULT SOCIAL CARE PURCHASING,9190002,BLOCK CONTRACT,03/01/2018,J2112626101217,504.00,DIRECT HEALTH UK LTD,CT230243419,Home Care Services,20438800
SHEFFIELD CITY COUNCIL,PEOPLE,14009346039,ADULT SOCIAL CARE PURCHASING,9190002,BLOCK CONTRACT,03/01/2018,J2112626101217,504.00,DIRECT HEALTH UK LTD,CT230243419,Home Care Services,20438800
SCR COMBINED AUTHORITY        ,LOCAL ENTERPRISE PARTNERSHIP,33070830130,CORPORATE AFFAIRS,5610000,AGENCY STAFF,03/01/2018,232061536,426.08,REED EMPLOYMENT,CT160631230,Employment & Recruitment Agencies,34181801
SCR COMBINED AUTHORITY        ,LOCAL ENTERPRISE PARTNERSHIP,33070830130,CORPORATE AFFAIRS,5610000,AGENCY STAFF,03/01/2018,232094153,512.04,REED EMPLOYMENT,CT160631230,Employment & Recruitment Agencies,34181801
SCR COMBINED AUTHORITY        ,LOCAL ENTERPRISE PARTNERSHIP,33070830130,CORPORATE AFFAIRS,5610000,AGENCY STAFF,03/01/2018,232062196,515.78,REED EMPLOYMENT,CT160631230,Employment & Recruitment Agencies,34181801
SCR COMBINED AUTHORITY        ,LOCAL ENTERPRISE PARTNERSHIP,33070830130,CORPORATE AFFAIRS,5610000,AGENCY STAFF,03/01/2018,232094150,560.63,REED EMPLOYMENT,CT160631230,Employment & Recruitment Agencies,34181801
SCR COMBINED AUTHORITY        ,LOCAL ENTERPRISE PARTNERSHIP,33070830130,CORPORATE AFFAIRS,5610000,AGENCY STAFF,03/01/2018,231949930,560.63,REED EMPLOYMENT,CT160631230,Employment & Recruitment Agencies,34181801
SCR COMBINED AUTHORITY        ,LOCAL ENTERPRISE PARTNERSHIP,33075230323,ONE PUBLIC ESTATE,8460000,CONSULTANTS FEES,03/01/2018,232082603,606.76,REED EMPLOYMENT,CT160631230,Employment & Recruitment Agencies,34181801
SCR COMBINED AUTHORITY        ,LOCAL ENTERPRISE PARTNERSHIP,33075230323,ONE PUBLIC ESTATE,8460000,CONSULTANTS FEES,03/01/2018,232061216,"1,087.44",REED EMPLOYMENT,CT160631230,Employment & Recruitment Agencies,34181801
SHEFFIELD CITY COUNCIL,PLACE,12075822253,BUILDING STANDARD PSU+CON DEMO,6150000,ELECTRICITY,03/01/2018,YD20271285,"1,415.00",NORTHERN POWERGRID (YORKSHIRE) PLC,CT270630586,Electricity Companies,34952500
SHEFFIELD CITY COUNCIL,PEOPLE,13002832190,C & F CITYWIDE CONTRACTS,9120000,OTHER AGENCIES,03/01/2018,SI-1309,"6,809.83",SHEFFIELD ALCOHOL SUPPORT SERVICE,CT140203560,Alcohol Misuse - Advice & Counselling,35147000
SHEFFIELD CITY COUNCIL,PEOPLE,13002832190,C & F CITYWIDE CONTRACTS,9120000,OTHER AGENCIES,03/01/2018,SI-1311,"13,333.33",SHEFFIELD ALCOHOL SUPPORT SERVICE,CT140203560,Alcohol Misuse - Advice & Counselling,35147000
SHEFFIELD CITY COUNCIL,PLACE,14058649091,CASEWORK TEAM 1,8440000,FEE EXPENSES,03/01/2018,25735,286.65,ST ANNES COMMUNITY SERVICE,CT050144166,"Housing Associations, Societies, Trusts",35150101
SHEFFIELD CITY COUNCIL,PEOPLE,13002639143,CWD INDEPENDENT PLACEMENTS,9270009,INDEPENDENT FOSTERING,03/01/2018,630241994,"5,243.28",FOSTER CARE ASS (CORE ASSETS FOSTERING),CT240201880,Adoption & Fostering,32861800
SHEFFIELD CITY COUNCIL,PEOPLE,13002639143,CWD INDEPENDENT PLACEMENTS,9270009,INDEPENDENT FOSTERING,03/01/2018,630243245,"5,243.28",FOSTER CARE ASS (CORE ASSETS FOSTERING),CT240201880,Adoption & Fostering,32861800
SHEFFIELD CITY COUNCIL,PEOPLE,13002639143,CWD INDEPENDENT PLACEMENTS,9270009,INDEPENDENT FOSTERING,03/01/2018,630245524,"5,243.28",FOSTER CARE ASS (CORE ASSETS FOSTERING),CT240201880,Adoption & Fostering,32861800
SHEFFIELD CITY COUNCIL,PEOPLE,14009242034,PURCHASING LEARNING DISABILITI,4260018,RESIDENTIAL COSTS RECOVERED,03/01/2018,J2103652311217,-789.44,LITTLE ARCHES RESIDENTIAL HOME,CT230164710,Residential Care Homes,36186900
SHEFFIELD CITY COUNCIL,PEOPLE,14009242034,PURCHASING LEARNING DISABILITI,4260018,RESIDENTIAL COSTS RECOVERED,03/01/2018,J2103652311217,-537.80,LITTLE ARCHES RESIDENTIAL HOME,CT230164710,Residential Care Homes,36186900
SHEFFIELD CITY COUNCIL,PEOPLE,14009242034,PURCHASING LEARNING DISABILITI,9200001,CONTINUING RESIDENTIAL CARE,03/01/2018,J2103652311217,"3,118.44",LITTLE ARCHES RESIDENTIAL HOME,CT230164710,Residential Care Homes,36186900
SHEFFIELD CITY COUNCIL,PEOPLE,14009242034,PURCHASING LEARNING DISABILITI,9200001,CONTINUING RESIDENTIAL CARE,03/01/2018,J2103652311217,"4,860.72",LITTLE ARCHES RESIDENTIAL HOME,CT230164710,Residential Care Homes,36186900
SHEFFIELD CITY COUNCIL,PEOPLE,14009346039,ADULT SOCIAL CARE PURCHASING,4260018,RESIDENTIAL COSTS RECOVERED,03/01/2018,J2103554311217,"-2,489.64",MEADOW GRANGE NURSING HOME,CT230753350,Nursing Homes,36195100
SHEFFIELD CITY COUNCIL,PEOPLE,14009346039,ADULT SOCIAL CARE PURCHASING,9200001,CONTINUING RESIDENTIAL CARE,03/01/2018,J2103554311217,"3,512.00",MEADOW GRANGE NURSING HOME,CT230753350,Nursing Homes,36195100
SHEFFIELD CITY COUNCIL,PEOPLE,14009346039,ADULT SOCIAL CARE PURCHASING,4260018,RESIDENTIAL COSTS RECOVERED,03/01/2018,J2084947031217,"-3,655.05",THE WHITE HOUSE CARE HOME,CT230164710,Residential Care Homes,36208300
SHEFFIELD CITY COUNCIL,PEOPLE,14009346039,ADULT SOCIAL CARE PURCHASING,4260018,RESIDENTIAL COSTS RECOVERED,03/01/2018,J2103549311217,"-1,191.56",THE WHITE HOUSE CARE HOME,CT230164710,Residential Care Homes,36208300
SHEFFIELD CITY COUNCIL,PEOPLE,14009346039,ADULT SOCIAL CARE PURCHASING,4260018,RESIDENTIAL COSTS RECOVERED,03/01/2018,J2103549311217,"-1,093.80",THE WHITE HOUSE CARE HOME,CT230164710,Residential Care Homes,36208300
SHEFFIELD CITY COUNCIL,PEOPLE,14009346039,ADULT SOCIAL CARE PURCHASING,4260018,RESIDENTIAL COSTS RECOVERED,03/01/2018,J2103549311217,-807.63,THE WHITE HOUSE CARE HOME,CT230164710,Residential Care Homes,36208300
SHEFFIELD CITY COUNCIL,PEOPLE,14009346039,ADULT SOCIAL CARE PURCHASING,4260018,RESIDENTIAL COSTS RECOVERED,03/01/2018,J2103549311217,-698.80,THE WHITE HOUSE CARE HOME,CT230164710,Residential Care Homes,36208300
SHEFFIELD CITY COUNCIL,PEOPLE,14009346039,ADULT SOCIAL CARE PURCHASING,4260018,RESIDENTIAL COSTS RECOVERED,03/01/2018,J2103549311217,-637.76,THE WHITE HOUSE CARE HOME,CT230164710,Residential Care Homes,36208300
SHEFFIELD CITY COUNCIL,PEOPLE,14009346039,ADULT SOCIAL CARE PURCHASING,4260018,RESIDENTIAL COSTS RECOVERED,03/01/2018,J2103549311217,-626.76,THE WHITE HOUSE CARE HOME,CT230164710,Residential Care Homes,36208300
SHEFFIELD CITY COUNCIL,PEOPLE,14009346039,ADULT SOCIAL CARE PURCHASING,4260018,RESIDENTIAL COSTS RECOVERED,03/01/2018,J2103549311217,-522.80,THE WHITE HOUSE CARE HOME,CT230164710,Residential Care Homes,36208300
SHEFFIELD CITY COUNCIL,PEOPLE,14009346039,ADULT SOCIAL CARE PURCHASING,9200001,CONTINUING RESIDENTIAL CARE,03/01/2018,J2103549311217,"1,428.57",THE WHITE HOUSE CARE HOME,CT230164710,Residential Care Homes,36208300
SHEFFIELD CITY COUNCIL,PEOPLE,14009346039,ADULT SOCIAL CARE PURCHASING,9200001,CONTINUING RESIDENTIAL CARE,03/01/2018,J2103549311217,"1,632.00",THE WHITE HOUSE CARE HOME,CT230164710,Residential Care Homes,36208300
SHEFFIELD CITY COUNCIL,PEOPLE,14009346039,ADULT SOCIAL CARE PURCHASING,9200001,CONTINUING RESIDENTIAL CARE,03/01/2018,J2103549311217,"1,732.00",THE WHITE HOUSE CARE HOME,CT230164710,Residential Care Homes,36208300
SHEFFIELD CITY COUNCIL,PEOPLE,14009346039,ADULT SOCIAL CARE PURCHASING,9200001,CONTINUING RESIDENTIAL CARE,03/01/2018,J2103549311217,"1,736.00",THE WHITE HOUSE CARE HOME,CT230164710,Residential Care Homes,36208300
SHEFFIELD CITY COUNCIL,PEOPLE,14009346039,ADULT SOCIAL CARE PURCHASING,9200001,CONTINUING RESIDENTIAL CARE,03/01/2018,J2103549311217,"1,736.00",THE WHITE HOUSE CARE HOME,CT230164710,Residential Care Homes,36208300
SHEFFIELD CITY COUNCIL,PEOPLE,14009346039,ADULT SOCIAL CARE PURCHASING,9200001,CONTINUING RESIDENTIAL CARE,03/01/2018,J2103549311217,"1,736.00",THE WHITE HOUSE CARE HOME,CT230164710,Residential Care Homes,36208300
SHEFFIELD CITY COUNCIL,PEOPLE,14009346039,ADULT SOCIAL CARE PURCHASING,9200001,CONTINUING RESIDENTIAL CARE,03/01/2018,J2103549311217,"1,812.00",THE WHITE HOUSE CARE HOME,CT230164710,Residential Care Homes,36208300
SHEFFIELD CITY COUNCIL,PEOPLE,14009346039,ADULT SOCIAL CARE PURCHASING,9200001,CONTINUING RESIDENTIAL CARE,03/01/2018,J2103549311217,"2,312.00",THE WHITE HOUSE CARE HOME,CT230164710,Residential Care Homes,36208300
SHEFFIELD CITY COUNCIL,PEOPLE,14009346039,ADULT SOCIAL CARE PURCHASING,9200001,CONTINUING RESIDENTIAL CARE,03/01/2018,J2084947031217,"6,071.43",THE WHITE HOUSE CARE HOME,CT230164710,Residential Care Homes,36208300
SHEFFIELD CITY COUNCIL,PLACE,11513300000,WORKSHOPS,7010000,ROUTINE VEHICLE REPAIR & MTCE,03/01/2018,1473578,603.77,HUNTSON HOLDINGS,CT260213540,Car Dealers,36605700
SHEFFIELD CITY COUNCIL,PLACE,11513300000,WORKSHOPS,7010000,ROUTINE VEHICLE REPAIR & MTCE,03/01/2018,1473579,606.10,HUNTSON HOLDINGS,CT260213540,Car Dealers,36605700
SHEFFIELD CITY COUNCIL,PEOPLE,14009346039,ADULT SOCIAL CARE PURCHASING,9190002,BLOCK CONTRACT,03/01/2018,J2112651101217,512.88,DIRECT HEALTH UK LTD,CT230243419,Home Care Services,20438800
SHEFFIELD CITY COUNCIL,PEOPLE,14009346039,ADULT SOCIAL CARE PURCHASING,9190002,BLOCK CONTRACT,03/01/2018,J2112651101217,512.96,DIRECT HEALTH UK LTD,CT230243419,Home Care Services,20438800
SHEFFIELD CITY COUNCIL,PEOPLE,14009346039,ADULT SOCIAL CARE PURCHASING,9190002,BLOCK CONTRACT,03/01/2018,J2112652101217,516.48,DIRECT HEALTH UK LTD,CT230243419,Home Care Services,20438800
SHEFFIELD CITY COUNCIL,PLACE,11513300000,WORKSHOPS,7010000,ROUTINE VEHICLE REPAIR & MTCE,03/01/2018,163595,"1,080.81",A AND Y EQUIPMENT LTD,CT269959015,Plant & Machinery Dealers,37338300
SHEFFIELD CITY COUNCIL,PEOPLE,14031544012,PARTNERSHIP & GRANT AID MH,9030000,HEALTH,03/01/2018,3757,"1,995.25",MANOR & CASTLE DEV TRUST LTD - SUNSHINE,CT090453088,Nurseries & Creches,51524400
SHEFFIELD CITY COUNCIL,PEOPLE,14031544012,PARTNERSHIP & GRANT AID MH,9160000,PARTNERSHIP CONTRACTS,03/01/2018,3761,"3,119.00",MANOR & CASTLE DEV TRUST LTD - SUNSHINE,CT090453088,Nurseries & Creches,51524400
SHEFFIELD CITY COUNCIL,PLACE,12046025052,PARKS SERVICE MANAGER,6090000,WASTE DISPOSAL,03/01/2018,0000063132AA,"7,854.08",VIRIDOR WASTE MANAGEMENT,CT102683380,Waste Disposal Services,37539401
SHEFFIELD CITY COUNCIL,PLACE,12046421112,SGMT (MUSEUMS SHEFFIELD),8180000,GRANTS,03/01/2018,100012941ADJ,"90,240.00",MUSEUMS SHEFFIELD,CT200452400,Museums,38057900
SHEFFIELD CITY COUNCIL,PLACE,12046421112,SGMT (MUSEUMS SHEFFIELD),8180000,GRANTS,03/01/2018,SIN003559,"376,000.00",MUSEUMS SHEFFIELD,CT200452400,Museums,38057900
SHEFFIELD CITY COUNCIL,PEOPLE,13002639266,CIN NRTPF,9270003,CARELEAVERS ACCOMMODATION,03/01/2018,428,460.00,EARL MARSHALL GUEST HOUSE LTD,CT010241330,Guest Houses,39158900
SHEFFIELD CITY COUNCIL,PEOPLE,14009346039,ADULT SOCIAL CARE PURCHASING,9190002,BLOCK CONTRACT,03/01/2018,J2112625101217,517.44,DIRECT HEALTH UK LTD,CT230243419,Home Care Services,20438800
SHEFFIELD CITY COUNCIL,PEOPLE,14009346039,ADULT SOCIAL CARE PURCHASING,9190002,BLOCK CONTRACT,03/01/2018,J2112625101217,517.44,DIRECT HEALTH UK LTD,CT230243419,Home Care Services,20438800
SHEFFIELD CITY COUNCIL,PEOPLE,14009346039,ADULT SOCIAL CARE PURCHASING,9190002,BLOCK CONTRACT,03/01/2018,J2112652101217,521.60,DIRECT HEALTH UK LTD,CT230243419,Home Care Services,20438800
SHEFFIELD CITY COUNCIL,PEOPLE,13008633063,PROVIDER CONTRACT AUG17JUL18,9120000,OTHER AGENCIES,03/01/2018,141217-2,295.00,FLOWER ESTATE FAMILY ACTION (GROUP A/C),CT230417020,Charities & Voluntary Organisations,41861600
SHEFFIELD CITY COUNCIL,PEOPLE,13008633063,PROVIDER CONTRACT AUG17JUL18,9120000,OTHER AGENCIES,03/01/2018,111217,679.00,FLOWER ESTATE FAMILY ACTION (GROUP A/C),CT230417020,Charities & Voluntary Organisations,41861600
SHEFFIELD CITY COUNCIL,PEOPLE,13008633063,PROVIDER CONTRACT AUG17JUL18,9120000,OTHER AGENCIES,03/01/2018,111217,679.00,FLOWER ESTATE FAMILY ACTION (GROUP A/C),CT230417020,Charities & Voluntary Organisations,41861600
SHEFFIELD CITY COUNCIL,PEOPLE,13008633063,PROVIDER CONTRACT AUG17JUL18,9120000,OTHER AGENCIES,03/01/2018,111217,679.00,FLOWER ESTATE FAMILY ACTION (GROUP A/C),CT230417020,Charities & Voluntary Organisations,41861600
SHEFFIELD CITY COUNCIL,PEOPLE,13008633063,PROVIDER CONTRACT AUG17JUL18,9120000,OTHER AGENCIES,03/01/2018,111217,738.00,FLOWER ESTATE FAMILY ACTION (GROUP A/C),CT230417020,Charities & Voluntary Organisations,41861600
SHEFFIELD CITY COUNCIL,PEOPLE,14009346039,ADULT SOCIAL CARE PURCHASING,9190004,DIRECT PAYMENTS,03/01/2018,J2124987,424.19,CITIZENSHIP FIRST,CT9999DIRPY,CAREFIRST DIRECT PAYMENTS,55689000
SCR COMBINED AUTHORITY        ,LOCAL ENTERPRISE PARTNERSHIP,33074230107,DISTRIBUTABLE RESOURCE SUSP,8460000,CONSULTANTS FEES,03/01/2018,64277,"2,591.90",THE CONSULTATION INSTITUTE,CT080979960,Training Consultants,43170800
SHEFFIELD CITY COUNCIL,PLACE,14065749331,ESTATE & ENVIRONMENTAL TEAM,6090000,WASTE DISPOSAL,03/01/2018,FOR11757,572.50,FORWARD ENVIRONMENTAL LIMITED,CT101557130,Pest & Vermin Control,44038700
SHEFFIELD CITY COUNCIL,PLACE,12046025049,PARKS GENERAL,8060000,MATERIALS AND SUPPLIES GENERAL,03/01/2018,FOR11685,"1,350.00",FORWARD ENVIRONMENTAL LIMITED,CT101557130,Pest & Vermin Control,44038700
SHEFFIELD CITY COUNCIL,PLACE,14058149005,NATIONAL ASSISTANCE CONTRACT,6150000,ELECTRICITY,03/01/2018,8.50E+11,282.45,BRITISH GAS,CT270339564,Gas Companies,44340100
SHEFFIELD CITY COUNCIL,PLACE,11518915188,SECURITY SERVICES,8540000,SECURITY SERVICES,03/01/2018,13986,300.00,ELITE SECURITY SYSTEMS,CT220369240,Security Services,44500200
SHEFFIELD CITY COUNCIL,PEOPLE,14009346039,ADULT SOCIAL CARE PURCHASING,9190002,BLOCK CONTRACT,03/01/2018,J2112598101217,"-10,384.54",CUSTOM HOME CARE LTD,CT9999DIRPY,CAREFIRST DIRECT PAYMENTS,63052200
SHEFFIELD CITY COUNCIL,PEOPLE,14009346039,ADULT SOCIAL CARE PURCHASING,9190002,BLOCK CONTRACT,03/01/2018,J2112598101217,271.44,CUSTOM HOME CARE LTD,CT9999DIRPY,CAREFIRST DIRECT PAYMENTS,63052200
SHEFFIELD CITY COUNCIL,PEOPLE,14009346039,ADULT SOCIAL CARE PURCHASING,9190002,BLOCK CONTRACT,03/01/2018,J2112598101217,381.36,CUSTOM HOME CARE LTD,CT9999DIRPY,CAREFIRST DIRECT PAYMENTS,63052200
SHEFFIELD CITY COUNCIL,PEOPLE,14009346039,ADULT SOCIAL CARE PURCHASING,9190002,BLOCK CONTRACT,03/01/2018,J2112598101217,401.56,CUSTOM HOME CARE LTD,CT9999DIRPY,CAREFIRST DIRECT PAYMENTS,63052200
SHEFFIELD CITY COUNCIL,PEOPLE,14009346039,ADULT SOCIAL CARE PURCHASING,9190002,BLOCK CONTRACT,03/01/2018,J2112598101217,404.00,CUSTOM HOME CARE LTD,CT9999DIRPY,CAREFIRST DIRECT PAYMENTS,63052200
SHEFFIELD CITY COUNCIL,PEOPLE,14009346039,ADULT SOCIAL CARE PURCHASING,9190002,BLOCK CONTRACT,03/01/2018,J2112598101217,551.88,CUSTOM HOME CARE LTD,CT9999DIRPY,CAREFIRST DIRECT PAYMENTS,63052200
SHEFFIELD CITY COUNCIL,PEOPLE,14009346039,ADULT SOCIAL CARE PURCHASING,9190002,BLOCK CONTRACT,03/01/2018,J2112598101217,586.36,CUSTOM HOME CARE LTD,CT9999DIRPY,CAREFIRST DIRECT PAYMENTS,63052200
SHEFFIELD CITY COUNCIL,PEOPLE,14009346039,ADULT SOCIAL CARE PURCHASING,9190002,BLOCK CONTRACT,03/01/2018,J2112598101217,586.52,CUSTOM HOME CARE LTD,CT9999DIRPY,CAREFIRST DIRECT PAYMENTS,63052200
SHEFFIELD CITY COUNCIL,PEOPLE,14009346039,ADULT SOCIAL CARE PURCHASING,9190002,BLOCK CONTRACT,03/01/2018,J2112598101217,666.16,CUSTOM HOME CARE LTD,CT9999DIRPY,CAREFIRST DIRECT PAYMENTS,63052200
SHEFFIELD CITY COUNCIL,PEOPLE,14009346039,ADULT SOCIAL CARE PURCHASING,9190002,BLOCK CONTRACT,03/01/2018,J2112598101217,864.08,CUSTOM HOME CARE LTD,CT9999DIRPY,CAREFIRST DIRECT PAYMENTS,63052200
SHEFFIELD CITY COUNCIL,PEOPLE,14009346039,ADULT SOCIAL CARE PURCHASING,9190002,BLOCK CONTRACT,03/01/2018,J2112598101217,931.28,CUSTOM HOME CARE LTD,CT9999DIRPY,CAREFIRST DIRECT PAYMENTS,63052200
SHEFFIELD CITY COUNCIL,PEOPLE,14007447009,MINOR WORKS & ADAPTATIONS,6020000,REPAIRS AND MTCE - PROGRAMMED,03/01/2018,V199,650.00,N MARRISON CONSTRUCTION LTD,CT079911400,Building Services,45986400
SHEFFIELD CITY COUNCIL,PEOPLE,14009346039,ADULT SOCIAL CARE PURCHASING,9190002,BLOCK CONTRACT,03/01/2018,J2112598101217,"1,093.63",CUSTOM HOME CARE LTD,CT9999DIRPY,CAREFIRST DIRECT PAYMENTS,63052200
SHEFFIELD CITY COUNCIL,PEOPLE,13007933018,100 APPRENTICES,9120000,OTHER AGENCIES,03/01/2018,46129,265.20,M&G OLYMPIC PRODUCTS LTD,CT079973510,Steel Fabricators & Erectors,46149100
SHEFFIELD CITY COUNCIL,PEOPLE,13007933018,100 APPRENTICES,9120000,OTHER AGENCIES,03/01/2018,46087,331.50,M&G OLYMPIC PRODUCTS LTD,CT079973510,Steel Fabricators & Erectors,46149100
SHEFFIELD CITY COUNCIL,PEOPLE,14009346039,ADULT SOCIAL CARE PURCHASING,9190002,BLOCK CONTRACT,03/01/2018,J2112598101217,"1,108.64",CUSTOM HOME CARE LTD,CT9999DIRPY,CAREFIRST DIRECT PAYMENTS,63052200
SHEFFIELD CITY COUNCIL,PEOPLE,14009242034,PURCHASING LEARNING DISABILITI,9190002,BLOCK CONTRACT,03/01/2018,J2112598101217,"1,110.96",CUSTOM HOME CARE LTD,CT9999DIRPY,CAREFIRST DIRECT PAYMENTS,63052200
SHEFFIELD CITY COUNCIL,PEOPLE,14009346039,ADULT SOCIAL CARE PURCHASING,9190002,BLOCK CONTRACT,03/01/2018,J2112598101217,"1,241.52",CUSTOM HOME CARE LTD,CT9999DIRPY,CAREFIRST DIRECT PAYMENTS,63052200
SHEFFIELD CITY COUNCIL,PEOPLE,14009346039,ADULT SOCIAL CARE PURCHASING,9190002,BLOCK CONTRACT,03/01/2018,J2112598101217,"1,299.51",CUSTOM HOME CARE LTD,CT9999DIRPY,CAREFIRST DIRECT PAYMENTS,63052200
SHEFFIELD CITY COUNCIL,PEOPLE,14009346039,ADULT SOCIAL CARE PURCHASING,9190002,BLOCK CONTRACT,03/01/2018,J2112598101217,"1,524.00",CUSTOM HOME CARE LTD,CT9999DIRPY,CAREFIRST DIRECT PAYMENTS,63052200
SHEFFIELD CITY COUNCIL,PEOPLE,14009346039,ADULT SOCIAL CARE PURCHASING,9190002,BLOCK CONTRACT,03/01/2018,J2112598101217,"1,728.16",CUSTOM HOME CARE LTD,CT9999DIRPY,CAREFIRST DIRECT PAYMENTS,63052200
SHEFFIELD CITY COUNCIL,PLACE,14058300000,SUPPORTED & TEMP ACCOM TEAM,6210000,RENTS,03/01/2018,549,412.50,BURNGREAVE B & B,CT010241330,Guest Houses,46698600
SHEFFIELD CITY COUNCIL,PLACE,14058300000,SUPPORTED & TEMP ACCOM TEAM,6210001,BED & BREAKFAST PAYMENTS,03/01/2018,544,501.00,BURNGREAVE B & B,CT010241330,Guest Houses,46698600
SHEFFIELD CITY COUNCIL,PLACE,14058300000,SUPPORTED & TEMP ACCOM TEAM,6210000,RENTS,03/01/2018,548,528.00,BURNGREAVE B & B,CT010241330,Guest Houses,46698600
SHEFFIELD CITY COUNCIL,PLACE,14058300000,SUPPORTED & TEMP ACCOM TEAM,6210000,RENTS,03/01/2018,545,633.00,BURNGREAVE B & B,CT010241330,Guest Houses,46698600
SHEFFIELD CITY COUNCIL,PEOPLE,14031444001,PURCHASING,9190002,BLOCK CONTRACT,03/01/2018,J2112598101217,"10,368.96",CUSTOM HOME CARE LTD,CT9999DIRPY,CAREFIRST DIRECT PAYMENTS,63052200
SHEFFIELD CITY COUNCIL,PEOPLE,13002832190,C & F CITYWIDE CONTRACTS,9120000,OTHER AGENCIES,03/01/2018,22465,"12,809.75",FAMILY ACTION,CT140222570,Counselling & Advice Services,46965600
SHEFFIELD CITY COUNCIL,PEOPLE,14031444001,PURCHASING,9190007,FUNDED HOME SUPPORT,03/01/2018,J2112598101217,"10,368.96",CUSTOM HOME CARE LTD,CT9999DIRPY,CAREFIRST DIRECT PAYMENTS,63052200
SHEFFIELD CITY COUNCIL,PLACE,12077022262,DFT LARGE MAJOR GRANT BID,9650000,OTHER SERVICE RECHARGES,03/01/2018,64324470,"11,680.00",WSP UK LTD,CT070731590,Engineers - Consulting,47977800
SHEFFIELD CITY COUNCIL,PEOPLE,13008633063,PROVIDER CONTRACT AUG17JUL18,9120000,OTHER AGENCIES,03/01/2018,ACLT1,"6,000.00",WOODHOUSE & DISTRICT COMM - DO NOT USE,CT050220482,Community Projects,48283500
SHEFFIELD CITY COUNCIL,PEOPLE,13007933018,100 APPRENTICES,9120000,OTHER AGENCIES,03/01/2018,27556,266.00,SUNNY MEADOWS NURSERY,CT090453088,Nurseries & Creches,37434000
SHEFFIELD CITY COUNCIL,PLACE,14065397418,PITCHED ROOFING & ROOFLINE,1157000,DWELLINGS MAIN CONTRACT,03/01/2018,80123,"11,784.00",SIG TRADING LTD,CT079965460,ROOFING MATERIALS,48654000
SHEFFIELD CITY COUNCIL,PLACE,14065397418,PITCHED ROOFING & ROOFLINE,1157000,DWELLINGS MAIN CONTRACT,03/01/2018,80349,"17,897.21",SIG TRADING LTD,CT079965460,ROOFING MATERIALS,48654000
SHEFFIELD CITY COUNCIL,PEOPLE,14009346039,ADULT SOCIAL CARE PURCHASING,9190002,BLOCK CONTRACT,03/01/2018,J2112591101217,"-17,069.82",WESTMINSTER HOMECARE LTD,CT230953280,Nursing Agencies,48799300
SHEFFIELD CITY COUNCIL,PEOPLE,14009346039,ADULT SOCIAL CARE PURCHASING,9190002,BLOCK CONTRACT,03/01/2018,J2112594101217,"-7,044.94",WESTMINSTER HOMECARE LTD,CT230953280,Nursing Agencies,48799300
SHEFFIELD CITY COUNCIL,PEOPLE,14009346039,ADULT SOCIAL CARE PURCHASING,9190002,BLOCK CONTRACT,03/01/2018,J2112590101217,"-6,898.37",WESTMINSTER HOMECARE LTD,CT230953280,Nursing Agencies,48799300
SHEFFIELD CITY COUNCIL,PEOPLE,14009346039,ADULT SOCIAL CARE PURCHASING,9190002,BLOCK CONTRACT,03/01/2018,J2112591101217,"-3,695.24",WESTMINSTER HOMECARE LTD,CT230953280,Nursing Agencies,48799300
SHEFFIELD CITY COUNCIL,PEOPLE,14009346039,ADULT SOCIAL CARE PURCHASING,9190002,BLOCK CONTRACT,03/01/2018,J2112590101217,253.60,WESTMINSTER HOMECARE LTD,CT230953280,Nursing Agencies,48799300
SHEFFIELD CITY COUNCIL,PEOPLE,14009346039,ADULT SOCIAL CARE PURCHASING,9190002,BLOCK CONTRACT,03/01/2018,J2112590101217,259.00,WESTMINSTER HOMECARE LTD,CT230953280,Nursing Agencies,48799300
SHEFFIELD CITY COUNCIL,PEOPLE,14009346039,ADULT SOCIAL CARE PURCHASING,9190002,BLOCK CONTRACT,03/01/2018,J2112590101217,259.00,WESTMINSTER HOMECARE LTD,CT230953280,Nursing Agencies,48799300
SHEFFIELD CITY COUNCIL,PEOPLE,14009346039,ADULT SOCIAL CARE PURCHASING,9190002,BLOCK CONTRACT,03/01/2018,J2112594101217,260.96,WESTMINSTER HOMECARE LTD,CT230953280,Nursing Agencies,48799300
SHEFFIELD CITY COUNCIL,PEOPLE,14009346039,ADULT SOCIAL CARE PURCHASING,9190002,BLOCK CONTRACT,03/01/2018,J2112590101217,264.28,WESTMINSTER HOMECARE LTD,CT230953280,Nursing Agencies,48799300
SHEFFIELD CITY COUNCIL,PEOPLE,14009346039,ADULT SOCIAL CARE PURCHASING,9190002,BLOCK CONTRACT,03/01/2018,J2112590101217,269.56,WESTMINSTER HOMECARE LTD,CT230953280,Nursing Agencies,48799300
SHEFFIELD CITY COUNCIL,PEOPLE,14009346039,ADULT SOCIAL CARE PURCHASING,9190002,BLOCK CONTRACT,03/01/2018,J2112591101217,273.60,WESTMINSTER HOMECARE LTD,CT230953280,Nursing Agencies,48799300
SHEFFIELD CITY COUNCIL,PEOPLE,14009346039,ADULT SOCIAL CARE PURCHASING,9190002,BLOCK CONTRACT,03/01/2018,J2112594101217,276.72,WESTMINSTER HOMECARE LTD,CT230953280,Nursing Agencies,48799300
SHEFFIELD CITY COUNCIL,PEOPLE,14009346039,ADULT SOCIAL CARE PURCHASING,9190002,BLOCK CONTRACT,03/01/2018,J2112591101217,278.76,WESTMINSTER HOMECARE LTD,CT230953280,Nursing Agencies,48799300
SHEFFIELD CITY COUNCIL,PEOPLE,14009346039,ADULT SOCIAL CARE PURCHASING,9190002,BLOCK CONTRACT,03/01/2018,J2112592101217,280.28,WESTMINSTER HOMECARE LTD,CT230953280,Nursing Agencies,48799300
SHEFFIELD CITY COUNCIL,PEOPLE,14009346039,ADULT SOCIAL CARE PURCHASING,9190002,BLOCK CONTRACT,03/01/2018,J2112591101217,283.64,WESTMINSTER HOMECARE LTD,CT230953280,Nursing Agencies,48799300
SHEFFIELD CITY COUNCIL,PEOPLE,14009346039,ADULT SOCIAL CARE PURCHASING,9190002,BLOCK CONTRACT,03/01/2018,J2112591101217,283.64,WESTMINSTER HOMECARE LTD,CT230953280,Nursing Agencies,48799300
SHEFFIELD CITY COUNCIL,PEOPLE,14009346039,ADULT SOCIAL CARE PURCHASING,9190002,BLOCK CONTRACT,03/01/2018,J2112591101217,283.64,WESTMINSTER HOMECARE LTD,CT230953280,Nursing Agencies,48799300
SHEFFIELD CITY COUNCIL,PEOPLE,14009346039,ADULT SOCIAL CARE PURCHASING,9190002,BLOCK CONTRACT,03/01/2018,J2112591101217,283.64,WESTMINSTER HOMECARE LTD,CT230953280,Nursing Agencies,48799300
SHEFFIELD CITY COUNCIL,PEOPLE,14009346039,ADULT SOCIAL CARE PURCHASING,9190002,BLOCK CONTRACT,03/01/2018,J2112592101217,290.44,WESTMINSTER HOMECARE LTD,CT230953280,Nursing Agencies,48799300
SHEFFIELD CITY COUNCIL,PEOPLE,14009346039,ADULT SOCIAL CARE PURCHASING,9190002,BLOCK CONTRACT,03/01/2018,J2112590101217,295.96,WESTMINSTER HOMECARE LTD,CT230953280,Nursing Agencies,48799300
SHEFFIELD CITY COUNCIL,PEOPLE,14009346039,ADULT SOCIAL CARE PURCHASING,9190002,BLOCK CONTRACT,03/01/2018,J2112590101217,301.24,WESTMINSTER HOMECARE LTD,CT230953280,Nursing Agencies,48799300
SHEFFIELD CITY COUNCIL,PEOPLE,14009346039,ADULT SOCIAL CARE PURCHASING,9190002,BLOCK CONTRACT,03/01/2018,J2112591101217,304.00,WESTMINSTER HOMECARE LTD,CT230953280,Nursing Agencies,48799300
SHEFFIELD CITY COUNCIL,PEOPLE,14009346039,ADULT SOCIAL CARE PURCHASING,9190002,BLOCK CONTRACT,03/01/2018,J2112591101217,304.00,WESTMINSTER HOMECARE LTD,CT230953280,Nursing Agencies,48799300
SHEFFIELD CITY COUNCIL,PEOPLE,14009346039,ADULT SOCIAL CARE PURCHASING,9190002,BLOCK CONTRACT,03/01/2018,J2112591101217,304.00,WESTMINSTER HOMECARE LTD,CT230953280,Nursing Agencies,48799300
SHEFFIELD CITY COUNCIL,PEOPLE,14009346039,ADULT SOCIAL CARE PURCHASING,9190002,BLOCK CONTRACT,03/01/2018,J2112591101217,304.00,WESTMINSTER HOMECARE LTD,CT230953280,Nursing Agencies,48799300
SHEFFIELD CITY COUNCIL,PEOPLE,14009346039,ADULT SOCIAL CARE PURCHASING,9190002,BLOCK CONTRACT,03/01/2018,J2112594101217,308.84,WESTMINSTER HOMECARE LTD,CT230953280,Nursing Agencies,48799300
SHEFFIELD CITY COUNCIL,PEOPLE,14009346039,ADULT SOCIAL CARE PURCHASING,9190002,BLOCK CONTRACT,03/01/2018,J2112591101217,319.20,WESTMINSTER HOMECARE LTD,CT230953280,Nursing Agencies,48799300
SHEFFIELD CITY COUNCIL,PEOPLE,14009346039,ADULT SOCIAL CARE PURCHASING,9190002,BLOCK CONTRACT,03/01/2018,J2112591101217,319.20,WESTMINSTER HOMECARE LTD,CT230953280,Nursing Agencies,48799300
SHEFFIELD CITY COUNCIL,PEOPLE,14009346039,ADULT SOCIAL CARE PURCHASING,9190002,BLOCK CONTRACT,03/01/2018,J2112591101217,319.20,WESTMINSTER HOMECARE LTD,CT230953280,Nursing Agencies,48799300
SHEFFIELD CITY COUNCIL,PEOPLE,14009346039,ADULT SOCIAL CARE PURCHASING,9190002,BLOCK CONTRACT,03/01/2018,J2112591101217,319.20,WESTMINSTER HOMECARE LTD,CT230953280,Nursing Agencies,48799300
SHEFFIELD CITY COUNCIL,PEOPLE,14009346039,ADULT SOCIAL CARE PURCHASING,9190002,BLOCK CONTRACT,03/01/2018,J2112591101217,319.20,WESTMINSTER HOMECARE LTD,CT230953280,Nursing Agencies,48799300
SHEFFIELD CITY COUNCIL,PEOPLE,14009346039,ADULT SOCIAL CARE PURCHASING,9190002,BLOCK CONTRACT,03/01/2018,J2112590101217,332.92,WESTMINSTER HOMECARE LTD,CT230953280,Nursing Agencies,48799300
SHEFFIELD CITY COUNCIL,PEOPLE,14009346039,ADULT SOCIAL CARE PURCHASING,9190002,BLOCK CONTRACT,03/01/2018,J2112590101217,332.92,WESTMINSTER HOMECARE LTD,CT230953280,Nursing Agencies,48799300
SHEFFIELD CITY COUNCIL,PEOPLE,14009346039,ADULT SOCIAL CARE PURCHASING,9190002,BLOCK CONTRACT,03/01/2018,J2112590101217,332.92,WESTMINSTER HOMECARE LTD,CT230953280,Nursing Agencies,48799300
SHEFFIELD CITY COUNCIL,PEOPLE,14009346039,ADULT SOCIAL CARE PURCHASING,9190002,BLOCK CONTRACT,03/01/2018,J2112591101217,349.60,WESTMINSTER HOMECARE LTD,CT230953280,Nursing Agencies,48799300
SHEFFIELD CITY COUNCIL,PEOPLE,14009346039,ADULT SOCIAL CARE PURCHASING,9190002,BLOCK CONTRACT,03/01/2018,J2112592101217,350.56,WESTMINSTER HOMECARE LTD,CT230953280,Nursing Agencies,48799300
SHEFFIELD CITY COUNCIL,PEOPLE,14009346039,ADULT SOCIAL CARE PURCHASING,9190002,BLOCK CONTRACT,03/01/2018,J2112592101217,350.56,WESTMINSTER HOMECARE LTD,CT230953280,Nursing Agencies,48799300
SHEFFIELD CITY COUNCIL,PEOPLE,14009346039,ADULT SOCIAL CARE PURCHASING,9190002,BLOCK CONTRACT,03/01/2018,J2112591101217,354.76,WESTMINSTER HOMECARE LTD,CT230953280,Nursing Agencies,48799300
SHEFFIELD CITY COUNCIL,PEOPLE,14009346039,ADULT SOCIAL CARE PURCHASING,9190002,BLOCK CONTRACT,03/01/2018,J2112591101217,354.76,WESTMINSTER HOMECARE LTD,CT230953280,Nursing Agencies,48799300
SHEFFIELD CITY COUNCIL,PEOPLE,14009346039,ADULT SOCIAL CARE PURCHASING,9190002,BLOCK CONTRACT,03/01/2018,J2112591101217,354.76,WESTMINSTER HOMECARE LTD,CT230953280,Nursing Agencies,48799300
SHEFFIELD CITY COUNCIL,PEOPLE,14009346039,ADULT SOCIAL CARE PURCHASING,9190002,BLOCK CONTRACT,03/01/2018,J2112591101217,354.76,WESTMINSTER HOMECARE LTD,CT230953280,Nursing Agencies,48799300
SHEFFIELD CITY COUNCIL,PEOPLE,14009346039,ADULT SOCIAL CARE PURCHASING,9190002,BLOCK CONTRACT,03/01/2018,J2112591101217,354.76,WESTMINSTER HOMECARE LTD,CT230953280,Nursing Agencies,48799300
SHEFFIELD CITY COUNCIL,PEOPLE,14009346039,ADULT SOCIAL CARE PURCHASING,9190002,BLOCK CONTRACT,03/01/2018,J2112591101217,354.76,WESTMINSTER HOMECARE LTD,CT230953280,Nursing Agencies,48799300
SHEFFIELD CITY COUNCIL,PEOPLE,14009346039,ADULT SOCIAL CARE PURCHASING,9190002,BLOCK CONTRACT,03/01/2018,J2112591101217,354.76,WESTMINSTER HOMECARE LTD,CT230953280,Nursing Agencies,48799300
SHEFFIELD CITY COUNCIL,PEOPLE,14009346039,ADULT SOCIAL CARE PURCHASING,9190002,BLOCK CONTRACT,03/01/2018,J2112591101217,354.76,WESTMINSTER HOMECARE LTD,CT230953280,Nursing Agencies,48799300
SHEFFIELD CITY COUNCIL,PEOPLE,14009346039,ADULT SOCIAL CARE PURCHASING,9190002,BLOCK CONTRACT,03/01/2018,J2112591101217,354.76,WESTMINSTER HOMECARE LTD,CT230953280,Nursing Agencies,48799300
SHEFFIELD CITY COUNCIL,PEOPLE,14009346039,ADULT SOCIAL CARE PURCHASING,9190002,BLOCK CONTRACT,03/01/2018,J2112591101217,354.76,WESTMINSTER HOMECARE LTD,CT230953280,Nursing Agencies,48799300
SHEFFIELD CITY COUNCIL,PEOPLE,14031444001,PURCHASING,9190002,BLOCK CONTRACT,03/01/2018,J2112590101217,364.60,WESTMINSTER HOMECARE LTD,CT230953280,Nursing Agencies,48799300
SHEFFIELD CITY COUNCIL,PEOPLE,14009346039,ADULT SOCIAL CARE PURCHASING,9190002,BLOCK CONTRACT,03/01/2018,J2112591101217,364.80,WESTMINSTER HOMECARE LTD,CT230953280,Nursing Agencies,48799300
SHEFFIELD CITY COUNCIL,PEOPLE,14009346039,ADULT SOCIAL CARE PURCHASING,9190002,BLOCK CONTRACT,03/01/2018,J2112590101217,369.88,WESTMINSTER HOMECARE LTD,CT230953280,Nursing Agencies,48799300
SHEFFIELD CITY COUNCIL,PEOPLE,14009346039,ADULT SOCIAL CARE PURCHASING,9190002,BLOCK CONTRACT,03/01/2018,J2112590101217,369.88,WESTMINSTER HOMECARE LTD,CT230953280,Nursing Agencies,48799300
SHEFFIELD CITY COUNCIL,PEOPLE,14009346039,ADULT SOCIAL CARE PURCHASING,9190002,BLOCK CONTRACT,03/01/2018,J2112590101217,369.88,WESTMINSTER HOMECARE LTD,CT230953280,Nursing Agencies,48799300
SHEFFIELD CITY COUNCIL,PEOPLE,14009346039,ADULT SOCIAL CARE PURCHASING,9190002,BLOCK CONTRACT,03/01/2018,J2112590101217,369.88,WESTMINSTER HOMECARE LTD,CT230953280,Nursing Agencies,48799300
SHEFFIELD CITY COUNCIL,PEOPLE,14009346039,ADULT SOCIAL CARE PURCHASING,9190002,BLOCK CONTRACT,03/01/2018,J2112590101217,369.96,WESTMINSTER HOMECARE LTD,CT230953280,Nursing Agencies,48799300
SHEFFIELD CITY COUNCIL,PEOPLE,14009346039,ADULT SOCIAL CARE PURCHASING,9190002,BLOCK CONTRACT,03/01/2018,J2112594101217,372.68,WESTMINSTER HOMECARE LTD,CT230953280,Nursing Agencies,48799300
SHEFFIELD CITY COUNCIL,PEOPLE,14009346039,ADULT SOCIAL CARE PURCHASING,9190002,BLOCK CONTRACT,03/01/2018,J2112594101217,372.68,WESTMINSTER HOMECARE LTD,CT230953280,Nursing Agencies,48799300
SHEFFIELD CITY COUNCIL,PEOPLE,14009346039,ADULT SOCIAL CARE PURCHASING,9190002,BLOCK CONTRACT,03/01/2018,J2112594101217,372.68,WESTMINSTER HOMECARE LTD,CT230953280,Nursing Agencies,48799300
SHEFFIELD CITY COUNCIL,PEOPLE,14009346039,ADULT SOCIAL CARE PURCHASING,9190002,BLOCK CONTRACT,03/01/2018,J2112594101217,372.68,WESTMINSTER HOMECARE LTD,CT230953280,Nursing Agencies,48799300
